Workbook

Sheet مدينتى 6
M1: تم الابلاغ
C2: تاريخ الفتره | M2: لم يتم الابلاغ
C4: 2025-01-31
A6: م | B6: الحركة | C6: إسم المقــــــاول / المورد | D6: المشروع | E6: بند الأعمال | F6: طبيعة المستخلص | G6: تاريخ المستخلص | H6: الاعمال الحالية | I6: ضرائب ودمغات | J6: صافى المستخلص | K6: رقم الفاتورة | L6: الابلاغ | M6: موقف الضريبه | N6: موقف الضريبه | O6: 0.14 | P6: قيمه 14%
A7: 1 | B7: 1 | C7: ياسر محمد محمود علام | D7: مركزية | E7: ايجار ميكروباص | F7: جارى | G7: 93 | I7: 8746.3116 | J7: =H7-I7 -> -8746.3116 | M7: =IFERROR(I7/H7,"") ->  | N7: =IF(M7=0.01,"متوافق",IF(M7=0.03,"متوافق",IF(M7="","","14%"))) ->  | O7: =IF(N7="14%",H7/1.14,"") ->  | P7: =IFERROR(O7*14%,"") -> 
A8: 2 | B8: 2 | C8: عبدالنبى طلب عساف حسين | D8: عمارات B7 | E8: نجاره مسلحه | F8: ختامى | G8: 13 | I8: 598.74085 | J8: =H8-I8 -> -598.74085 | M8: =IFERROR(I8/H8,"") ->  | N8: =IF(M8=0.01,"متوافق",IF(M8=0.03,"متوافق",IF(M8="","","14%"))) ->  | O8: =IF(N8="14%",H8/1.14,"") ->  | P8: =IFERROR(O8*14%,"") -> 
A9: 3 | B9: 3 | C9: امجد مختارعبدالعزيز الشيخ | D9: عمارات B7 | E9: ايجار دبابه | F9: متوقف | G9: 3 | I9: 82 | J9: =H9-I9 -> -82 | M9: =IFERROR(I9/H9,"") ->  | N9: =IF(M9=0.01,"متوافق",IF(M9=0.03,"متوافق",IF(M9="","","14%"))) ->  | O9: =IF(N9="14%",H9/1.14,"") ->  | P9: =IFERROR(O9*14%,"") -> 
A10: 4 | B10: 4 | C10: حمدى عبدالرؤف ابراهيم ناصف | D10: عمارات B7 | E10: ايجار جرار ومقطورة | F10: متوقف | G10: 9 | I10: 2789.04 | J10: =H10-I10 -> -2789.04 | M10: =IFERROR(I10/H10,"") ->  | N10: =IF(M10=0.01,"متوافق",IF(M10=0.03,"متوافق",IF(M10="","","14%"))) ->  | O10: =IF(N10="14%",H10/1.14,"") ->  | P10: =IFERROR(O10*14%,"") -> 
A11: 5 | B11: 5 | C11: عبدالفتاح كامل عبدالمالك احمد | D11: عمارات B7 | E11: عماله ومقطوعيات | F11: ختامى | G11: 21 | I11: 1303.14145 | J11: =H11-I11 -> -1303.14145 | M11: =IFERROR(I11/H11,"") ->  | N11: =IF(M11=0.01,"متوافق",IF(M11=0.03,"متوافق",IF(M11="","","14%"))) ->  | O11: =IF(N11="14%",H11/1.14,"") ->  | P11: =IFERROR(O11*14%,"") -> 
A12: 6 | B12: 6 | C12: محمود محمد عبدالكريم ابراهيم | D12: عمارات B7 | E12: ايجار ونش | F12: متوقف | G12: 1 | I12: 24.2 | J12: =H12-I12 -> -24.2 | M12: =IFERROR(I12/H12,"") ->  | N12: =IF(M12=0.01,"متوافق",IF(M12=0.03,"متوافق",IF(M12="","","14%"))) ->  | O12: =IF(N12="14%",H12/1.14,"") ->  | P12: =IFERROR(O12*14%,"") -> 
A13: 7 | B13: 7 | C13: محمود ابراهيم محمد عبدالرحمن | D13: عمارات B7 | E13: ايجار لودر | F13: متوقف | G13: 4 | I13: 972.6 | J13: =H13-I13 -> -972.6 | M13: =IFERROR(I13/H13,"") ->  | N13: =IF(M13=0.01,"متوافق",IF(M13=0.03,"متوافق",IF(M13="","","14%"))) ->  | O13: =IF(N13="14%",H13/1.14,"") ->  | P13: =IFERROR(O13*14%,"") -> 
A14: 8 | B14: 8 | C14: رجب حمودة عبدالله شاهين | D14: مركزية | E14: ايجار دوبل كابينه | F14: متوقف | G14: 39 | I14: 2876.76 | J14: =H14-I14 -> -2876.76 | M14: =IFERROR(I14/H14,"") ->  | N14: =IF(M14=0.01,"متوافق",IF(M14=0.03,"متوافق",IF(M14="","","14%"))) ->  | O14: =IF(N14="14%",H14/1.14,"") ->  | P14: =IFERROR(O14*14%,"") -> 
A15: 9 | B15: 9 | C15: الهدى لتأجير السيارات | D15: مركزية | E15: ايجار ملاكى | F15: متوقف | G15: 12 | I15: 558.4 | J15: =H15-I15 -> -558.4 | M15: =IFERROR(I15/H15,"") ->  | N15: =IF(M15=0.01,"متوافق",IF(M15=0.03,"متوافق",IF(M15="","","14%"))) ->  | O15: =IF(N15="14%",H15/1.14,"") ->  | P15: =IFERROR(O15*14%,"") -> 
A16: 10 | B16: 10 | C16: الدسوقى هاشم عزب هاشم | D16: عمارات B7 | E16: ايجار شاسيه | F16: متوقف | G16: 12 | I16: 992.05 | J16: =H16-I16 -> -992.05 | M16: =IFERROR(I16/H16,"") ->  | N16: =IF(M16=0.01,"متوافق",IF(M16=0.03,"متوافق",IF(M16="","","14%"))) ->  | O16: =IF(N16="14%",H16/1.14,"") ->  | P16: =IFERROR(O16*14%,"") -> 
A17: 11 | B17: 11 | C17: هانى فتحى محمد عفيفى | D17: مركزية | E17: ايجار ميكروباص | F17: متوقف | G17: 13 | I17: 858.95 | J17: =H17-I17 -> -858.95 | M17: =IFERROR(I17/H17,"") ->  | N17: =IF(M17=0.01,"متوافق",IF(M17=0.03,"متوافق",IF(M17="","","14%"))) ->  | O17: =IF(N17="14%",H17/1.14,"") ->  | P17: =IFERROR(O17*14%,"") -> 
A18: 12 | B18: 12 | C18: اسامة جودة عبدالله زيادة | D18: عمارات B7 | E18: ايجار ملاكى | F18: متوقف | G18: 5 | I18: 276.05 | J18: =H18-I18 -> -276.05 | M18: =IFERROR(I18/H18,"") ->  | N18: =IF(M18=0.01,"متوافق",IF(M18=0.03,"متوافق",IF(M18="","","14%"))) ->  | O18: =IF(N18="14%",H18/1.14,"") ->  | P18: =IFERROR(O18*14%,"") -> 
A19: 13 | B19: 13 | C19: المؤسسة المصرية للمولدات الكهربائية | D19: عمارات B7 | E19: ايجار مولدات | F19: جارى | G19: 49 | I19: 42541.06964 | J19: =H19-I19 -> -42541.06964 | M19: =IFERROR(I19/H19,"") ->  | N19: =IF(M19=0.01,"متوافق",IF(M19=0.03,"متوافق",IF(M19="","","14%"))) ->  | O19: =IF(N19="14%",H19/1.14,"") ->  | P19: =IFERROR(O19*14%,"") -> 
A20: 14 | B20: 14 | C20: حسن حسين السيسى | D20: عمارات B7 | E20: ايجار ميكروباص | F20: متوقف | G20: 3 | I20: 190.425 | J20: =H20-I20 -> -190.425 | M20: =IFERROR(I20/H20,"") ->  | N20: =IF(M20=0.01,"متوافق",IF(M20=0.03,"متوافق",IF(M20="","","14%"))) ->  | O20: =IF(N20="14%",H20/1.14,"") ->  | P20: =IFERROR(O20*14%,"") -> 
A21: 15 | B21: 15 | C21: السيد محمد السيد السعيد | D21: عمارات B7 | E21: ايجار دوبل كابينه | F21: متوقف | G21: 1 | I21: 52.5 | J21: =H21-I21 -> -52.5 | M21: =IFERROR(I21/H21,"") ->  | N21: =IF(M21=0.01,"متوافق",IF(M21=0.03,"متوافق",IF(M21="","","14%"))) ->  | O21: =IF(N21="14%",H21/1.14,"") ->  | P21: =IFERROR(O21*14%,"") -> 
A22: 16 | B22: 16 | C22: كامل دسوقى كامل سالم | D22: عمارات B7 | E22: ايجار دوبل كابينه | F22: متوقف | G22: 8 | I22: 363.06 | J22: =H22-I22 -> -363.06 | M22: =IFERROR(I22/H22,"") ->  | N22: =IF(M22=0.01,"متوافق",IF(M22=0.03,"متوافق",IF(M22="","","14%"))) ->  | O22: =IF(N22="14%",H22/1.14,"") ->  | P22: =IFERROR(O22*14%,"") -> 
A23: 17 | B23: 17 | C23: وليد فتحى محمود عبدالحافظ | D23: عمارات B7 | E23: ايجار ميكروباص | F23: متوقف | G23: 1 | I23: 26.8 | J23: =H23-I23 -> -26.8 | M23: =IFERROR(I23/H23,"") ->  | N23: =IF(M23=0.01,"متوافق",IF(M23=0.03,"متوافق",IF(M23="","","14%"))) ->  | O23: =IF(N23="14%",H23/1.14,"") ->  | P23: =IFERROR(O23*14%,"") -> 
A24: 18 | B24: 18 | C24: ناصر عبدالعال عمران احمد | D24: عمارات B7 | E24: ايجار ميكروباص | F24: متوقف | G24: 4 | I24: 251.8 | J24: =H24-I24 -> -251.8 | M24: =IFERROR(I24/H24,"") ->  | N24: =IF(M24=0.01,"متوافق",IF(M24=0.03,"متوافق",IF(M24="","","14%"))) ->  | O24: =IF(N24="14%",H24/1.14,"") ->  | P24: =IFERROR(O24*14%,"") -> 
A25: 19 | B25: 19 | C25: السيد ابوالحمد محمد سليمان | D25: عمارات B7 | E25: حفر وردم | F25: متوقف | G25: 3 | I25: 779.45515 | J25: =H25-I25 -> -779.45515 | M25: =IFERROR(I25/H25,"") ->  | N25: =IF(M25=0.01,"متوافق",IF(M25=0.03,"متوافق",IF(M25="","","14%"))) ->  | O25: =IF(N25="14%",H25/1.14,"") ->  | P25: =IFERROR(O25*14%,"") -> 
A26: 20 | B26: 20 | C26: احمد محمد صلاح احمد | D26: تسويات B7 | E26: حفر وردم | F26: ختامى | G26: 11 | I26: 5094.3671 | J26: =H26-I26 -> -5094.3671 | M26: =IFERROR(I26/H26,"") ->  | N26: =IF(M26=0.01,"متوافق",IF(M26=0.03,"متوافق",IF(M26="","","14%"))) ->  | O26: =IF(N26="14%",H26/1.14,"") ->  | P26: =IFERROR(O26*14%,"") -> 
A27: 21 | B27: 21 | C27: فوزية عبدالخالق عبدالحليم جينة | D27: عمارات B7 | E27: ايجار دوبل كابينه | F27: متوقف | G27: 1 | I27: 70.78 | J27: =H27-I27 -> -70.78 | M27: =IFERROR(I27/H27,"") ->  | N27: =IF(M27=0.01,"متوافق",IF(M27=0.03,"متوافق",IF(M27="","","14%"))) ->  | O27: =IF(N27="14%",H27/1.14,"") ->  | P27: =IFERROR(O27*14%,"") -> 
A28: 22 | B28: 22 | C28: اشرف عبدالعزيز ابوالسعود هلال | D28: مركزية | E28: ايجار ملاكى | F28: جارى | G28: 43 | I28: 2569 | J28: =H28-I28 -> -2569 | M28: =IFERROR(I28/H28,"") ->  | N28: =IF(M28=0.01,"متوافق",IF(M28=0.03,"متوافق",IF(M28="","","14%"))) ->  | O28: =IF(N28="14%",H28/1.14,"") ->  | P28: =IFERROR(O28*14%,"") -> 
A29: 23 | B29: 23 | C29: اس جى جروب للتجارة والمقاولات ( خميس جابر وشريكة) | D29: عمارات B7 | E29: صحى | F29: متوقف | G29: 6 | I29: 888.8365 | J29: =H29-I29 -> -888.8365 | M29: =IFERROR(I29/H29,"") ->  | N29: =IF(M29=0.01,"متوافق",IF(M29=0.03,"متوافق",IF(M29="","","14%"))) ->  | O29: =IF(N29="14%",H29/1.14,"") ->  | P29: =IFERROR(O29*14%,"") -> 
A30: 24 | B30: 24 | C30: حميدة عبدالله السيد بدير | D30: مركزية | E30: ايجار دبابه | F30: متوقف | G30: 7 | I30: 231.3 | J30: =H30-I30 -> -231.3 | M30: =IFERROR(I30/H30,"") ->  | N30: =IF(M30=0.01,"متوافق",IF(M30=0.03,"متوافق",IF(M30="","","14%"))) ->  | O30: =IF(N30="14%",H30/1.14,"") ->  | P30: =IFERROR(O30*14%,"") -> 
A31: 25 | B31: 25 | C31: على سامى على احمد | D31: عمارات B7 | E31: مبانى | F31: ختامى | G31: 2 | I31: 16.0325 | J31: =H31-I31 -> -16.0325 | M31: =IFERROR(I31/H31,"") ->  | N31: =IF(M31=0.01,"متوافق",IF(M31=0.03,"متوافق",IF(M31="","","14%"))) ->  | O31: =IF(N31="14%",H31/1.14,"") ->  | P31: =IFERROR(O31*14%,"") -> 
A32: 26 | B32: 26 | C32: شركة الشمس للمقاولات | D32: عمارات B7 | E32: حفر وردم | F32: متوقف | G32: 5 | I32: 2288.57 | J32: =H32-I32 -> -2288.57 | M32: =IFERROR(I32/H32,"") ->  | N32: =IF(M32=0.01,"متوافق",IF(M32=0.03,"متوافق",IF(M32="","","14%"))) ->  | O32: =IF(N32="14%",H32/1.14,"") ->  | P32: =IFERROR(O32*14%,"") -> 
A33: 27 | B33: 27 | C33: سامح الدسوقى لطفى الحجر | D33: مرافق B7 | E33: ايجار ملاكى | F33: متوقف | G33: 10 | I33: 445.2 | J33: =H33-I33 -> -445.2 | M33: =IFERROR(I33/H33,"") ->  | N33: =IF(M33=0.01,"متوافق",IF(M33=0.03,"متوافق",IF(M33="","","14%"))) ->  | O33: =IF(N33="14%",H33/1.14,"") ->  | P33: =IFERROR(O33*14%,"") -> 
A34: 28 | B34: 28 | C34: محمد ابراهيم سالمان متولى | D34: عمارات B7 | E34: ايجار دوبل كابينه | F34: متوقف | G34: 2 | I34: 26.8 | J34: =H34-I34 -> -26.8 | M34: =IFERROR(I34/H34,"") ->  | N34: =IF(M34=0.01,"متوافق",IF(M34=0.03,"متوافق",IF(M34="","","14%"))) ->  | O34: =IF(N34="14%",H34/1.14,"") ->  | P34: =IFERROR(O34*14%,"") -> 
A35: 29 | B35: 29 | C35: مصطفى محمود مصطفى محمود | D35: مركزية | E35: ايجار ملاكى | F35: جارى | G35: 66 | I35: 4371.75 | J35: =H35-I35 -> -4371.75 | M35: =IFERROR(I35/H35,"") ->  | N35: =IF(M35=0.01,"متوافق",IF(M35=0.03,"متوافق",IF(M35="","","14%"))) ->  | O35: =IF(N35="14%",H35/1.14,"") ->  | P35: =IFERROR(O35*14%,"") -> 
A36: 30 | B36: 30 | C36: محمد عبدالعظيم احمد سند | D36: عمارات B7 | E36: ايجار ملاكى | F36: متوقف | G36: 36 | I36: 1724 | J36: =H36-I36 -> -1724 | M36: =IFERROR(I36/H36,"") ->  | N36: =IF(M36=0.01,"متوافق",IF(M36=0.03,"متوافق",IF(M36="","","14%"))) ->  | O36: =IF(N36="14%",H36/1.14,"") ->  | P36: =IFERROR(O36*14%,"") -> 
A37: 31 | B37: 31 | C37: طارق بسيونى حسين سليمان | D37: عمارات B7 | E37: ايجار ملاكى | F37: متوقف | G37: 17 | I37: 792.8 | J37: =H37-I37 -> -792.8 | M37: =IFERROR(I37/H37,"") ->  | N37: =IF(M37=0.01,"متوافق",IF(M37=0.03,"متوافق",IF(M37="","","14%"))) ->  | O37: =IF(N37="14%",H37/1.14,"") ->  | P37: =IFERROR(O37*14%,"") -> 
A38: 32 | B38: 32 | C38: سيد محمد عبدالسميع حسن | D38: مركزية | E38: ايجار ميكروباص | F38: متوقف | G38: 5 | I38: 488.15 | J38: =H38-I38 -> -488.15 | M38: =IFERROR(I38/H38,"") ->  | N38: =IF(M38=0.01,"متوافق",IF(M38=0.03,"متوافق",IF(M38="","","14%"))) ->  | O38: =IF(N38="14%",H38/1.14,"") ->  | P38: =IFERROR(O38*14%,"") -> 
A39: 33 | B39: 33 | C39: اميمة مسعود احمد محمد | D39: عمارات B7 | E39: ايجار لودر | F39: متوقف | G39: 36 | I39: 5347.2 | J39: =H39-I39 -> -5347.2 | M39: =IFERROR(I39/H39,"") ->  | N39: =IF(M39=0.01,"متوافق",IF(M39=0.03,"متوافق",IF(M39="","","14%"))) ->  | O39: =IF(N39="14%",H39/1.14,"") ->  | P39: =IFERROR(O39*14%,"") -> 
A40: 34 | B40: 34 | C40: محسن حنفى عبدالرحيم محمد | D40: عمارات B7 | E40: ايجار اتوبيس | F40: متوقف | G40: 1 | I40: 132.4 | J40: =H40-I40 -> -132.4 | M40: =IFERROR(I40/H40,"") ->  | N40: =IF(M40=0.01,"متوافق",IF(M40=0.03,"متوافق",IF(M40="","","14%"))) ->  | O40: =IF(N40="14%",H40/1.14,"") ->  | P40: =IFERROR(O40*14%,"") -> 
A41: 35 | B41: 35 | C41: محمد احمد عبدالله سيد | D41: عمارات B7 | E41: ايجار لودر | F41: متوقف | G41: 27 | I41: 3276.95 | J41: =H41-I41 -> -3276.95 | M41: =IFERROR(I41/H41,"") ->  | N41: =IF(M41=0.01,"متوافق",IF(M41=0.03,"متوافق",IF(M41="","","14%"))) ->  | O41: =IF(N41="14%",H41/1.14,"") ->  | P41: =IFERROR(O41*14%,"") -> 
A42: 36 | B42: 36 | C42: عراقى امين عليوة محمود | D42: عمارات B7 | E42: ايجار دبابه | F42: متوقف | G42: 2 | I42: 104.5 | J42: =H42-I42 -> -104.5 | M42: =IFERROR(I42/H42,"") ->  | N42: =IF(M42=0.01,"متوافق",IF(M42=0.03,"متوافق",IF(M42="","","14%"))) ->  | O42: =IF(N42="14%",H42/1.14,"") ->  | P42: =IFERROR(O42*14%,"") -> 
A43: 37 | B43: 37 | C43: هشام سيد احمد | D43: عمارات B7 | E43: اسقف معلقة | F43: متوقف | G43: 1 | I43: 25.795 | J43: =H43-I43 -> -25.795 | M43: =IFERROR(I43/H43,"") ->  | N43: =IF(M43=0.01,"متوافق",IF(M43=0.03,"متوافق",IF(M43="","","14%"))) ->  | O43: =IF(N43="14%",H43/1.14,"") ->  | P43: =IFERROR(O43*14%,"") -> 
A44: 38 | B44: 38 | C44: محمد عبدالله سليمان سيد | D44: عمارات B7 | E44: نجاره مسلحه | F44: ختامى | G44: 15 | I44: 653.6907 | J44: =H44-I44 -> -653.6907 | M44: =IFERROR(I44/H44,"") ->  | N44: =IF(M44=0.01,"متوافق",IF(M44=0.03,"متوافق",IF(M44="","","14%"))) ->  | O44: =IF(N44="14%",H44/1.14,"") ->  | P44: =IFERROR(O44*14%,"") -> 
A45: 39 | B45: 39 | C45: سلطان محمود عطية حسن | D45: عمارات B7 | E45: نجاره مسلحه | F45: ختامى | G45: 7 | I45: 294.81 | J45: =H45-I45 -> -294.81 | M45: =IFERROR(I45/H45,"") ->  | N45: =IF(M45=0.01,"متوافق",IF(M45=0.03,"متوافق",IF(M45="","","14%"))) ->  | O45: =IF(N45="14%",H45/1.14,"") ->  | P45: =IFERROR(O45*14%,"") -> 
A46: 40 | B46: 40 | C46: منصور سليمان جويقل سليمان | D46: عمارات B7 | E46: ايجار دوبل كابينه | F46: متوقف | G46: 2 | I46: 101.96 | J46: =H46-I46 -> -101.96 | M46: =IFERROR(I46/H46,"") ->  | N46: =IF(M46=0.01,"متوافق",IF(M46=0.03,"متوافق",IF(M46="","","14%"))) ->  | O46: =IF(N46="14%",H46/1.14,"") ->  | P46: =IFERROR(O46*14%,"") -> 
A47: 41 | B47: 41 | C47: مهاود عويضة يوسف | D47: عمارات B7 | E47: نجاره مسلحه | F47: ختامى | G47: 21 | I47: 8149.9175 | J47: =H47-I47 -> -8149.9175 | M47: =IFERROR(I47/H47,"") ->  | N47: =IF(M47=0.01,"متوافق",IF(M47=0.03,"متوافق",IF(M47="","","14%"))) ->  | O47: =IF(N47="14%",H47/1.14,"") ->  | P47: =IFERROR(O47*14%,"") -> 
A48: 42 | B48: 42 | C48: عبدالله محمد سليمان | D48: عمارات B7 | E48: حداده | F48: ختامى | G48: 5 | I48: 403.71 | J48: =H48-I48 -> -403.71 | M48: =IFERROR(I48/H48,"") ->  | N48: =IF(M48=0.01,"متوافق",IF(M48=0.03,"متوافق",IF(M48="","","14%"))) ->  | O48: =IF(N48="14%",H48/1.14,"") ->  | P48: =IFERROR(O48*14%,"") -> 
A49: 43 | B49: 43 | C49: طلعت بدر على على | D49: عمارات B7 | E49: تطهير خشب | F49: ختامى | G49: 6 | I49: 115.78 | J49: =H49-I49 -> -115.78 | M49: =IFERROR(I49/H49,"") ->  | N49: =IF(M49=0.01,"متوافق",IF(M49=0.03,"متوافق",IF(M49="","","14%"))) ->  | O49: =IF(N49="14%",H49/1.14,"") ->  | P49: =IFERROR(O49*14%,"") -> 
A50: 44 | B50: 44 | C50: محمد ابراهيم عطية سليمان | D50: عمارات B7 | E50: ايجار دبابه | F50: متوقف | G50: 2 | I50: 92.2 | J50: =H50-I50 -> -92.2 | M50: =IFERROR(I50/H50,"") ->  | N50: =IF(M50=0.01,"متوافق",IF(M50=0.03,"متوافق",IF(M50="","","14%"))) ->  | O50: =IF(N50="14%",H50/1.14,"") ->  | P50: =IFERROR(O50*14%,"") -> 
A51: 45 | B51: 45 | C51: عبدالحميد محمد حسين | D51: عمارات B7 | E51: حداده | F51: ختامى | G51: 33 | I51: 7241.45 | J51: =H51-I51 -> -7241.45 | M51: =IFERROR(I51/H51,"") ->  | N51: =IF(M51=0.01,"متوافق",IF(M51=0.03,"متوافق",IF(M51="","","14%"))) ->  | O51: =IF(N51="14%",H51/1.14,"") ->  | P51: =IFERROR(O51*14%,"") -> 
A52: 46 | B52: 46 | C52: اسماعيل كمال محمد عبدالفتاح | D52: عمارات B7 | E52: نجاره وحداده مسلحه | F52: ختامى | G52: 22 | I52: 5274.523 | J52: =H52-I52 -> -5274.523 | M52: =IFERROR(I52/H52,"") ->  | N52: =IF(M52=0.01,"متوافق",IF(M52=0.03,"متوافق",IF(M52="","","14%"))) ->  | O52: =IF(N52="14%",H52/1.14,"") ->  | P52: =IFERROR(O52*14%,"") -> 
A53: 47 | B53: 47 | C53: السعيد محمود حسن حسن | D53: عمارات B7 | E53: نجارة باب وشباك | F53: نظامى | G53: 0 | I53: 4360 | J53: =H53-I53 -> -4360 | M53: =IFERROR(I53/H53,"") ->  | N53: =IF(M53=0.01,"متوافق",IF(M53=0.03,"متوافق",IF(M53="","","14%"))) ->  | O53: =IF(N53="14%",H53/1.14,"") ->  | P53: =IFERROR(O53*14%,"") -> 
A54: 48 | B54: 48 | C54: عبدالله محمد محمد جامع | D54: عمارات B7 | E54: ايجار دوبل كابينه | F54: متوقف | G54: 2 | I54: 33.02 | J54: =H54-I54 -> -33.02 | M54: =IFERROR(I54/H54,"") ->  | N54: =IF(M54=0.01,"متوافق",IF(M54=0.03,"متوافق",IF(M54="","","14%"))) ->  | O54: =IF(N54="14%",H54/1.14,"") ->  | P54: =IFERROR(O54*14%,"") -> 
A55: 49 | B55: 49 | C55: على احمد حسن حمد | D55: عمارات B7 | E55: ايجار لودر | F55: جارى | G55: 47 | I55: 12618.15 | J55: =H55-I55 -> -12618.15 | M55: =IFERROR(I55/H55,"") ->  | N55: =IF(M55=0.01,"متوافق",IF(M55=0.03,"متوافق",IF(M55="","","14%"))) ->  | O55: =IF(N55="14%",H55/1.14,"") ->  | P55: =IFERROR(O55*14%,"") -> 
A56: 50 | B56: 50 | C56: السيد عبدالرحمن محمد حسين | D56: عمارات B7 | E56: ايجار حفار + لودر | F56: متوقف | G56: 28 | I56: 5605.65 | J56: =H56-I56 -> -5605.65 | M56: =IFERROR(I56/H56,"") ->  | N56: =IF(M56=0.01,"متوافق",IF(M56=0.03,"متوافق",IF(M56="","","14%"))) ->  | O56: =IF(N56="14%",H56/1.14,"") ->  | P56: =IFERROR(O56*14%,"") -> 
A57: 51 | B57: 51 | C57: على محمد عبدالظاهر سعد | D57: عمارات B7 | E57: نجاره مسلحه | F57: ختامى | G57: 3 | I57: 7.47 | J57: =H57-I57 -> -7.47 | M57: =IFERROR(I57/H57,"") ->  | N57: =IF(M57=0.01,"متوافق",IF(M57=0.03,"متوافق",IF(M57="","","14%"))) ->  | O57: =IF(N57="14%",H57/1.14,"") ->  | P57: =IFERROR(O57*14%,"") -> 
A58: 52 | B58: 52 | C58: الجواد للمقاولات ( حسام عبدالجواد محمد ) | D58: عمارات B7 | E58: ايجار لودر | F58: متوقف | G58: 6 | I58: 800.2 | J58: =H58-I58 -> -800.2 | M58: =IFERROR(I58/H58,"") ->  | N58: =IF(M58=0.01,"متوافق",IF(M58=0.03,"متوافق",IF(M58="","","14%"))) ->  | O58: =IF(N58="14%",H58/1.14,"") ->  | P58: =IFERROR(O58*14%,"") -> 
A59: 53 | B59: 53 | C59: محمد فهمى ابوالحسن حسن | D59: عمارات B7 | E59: ايجار لودر | F59: متوقف | G59: 7 | I59: 1888 | J59: =H59-I59 -> -1888 | M59: =IFERROR(I59/H59,"") ->  | N59: =IF(M59=0.01,"متوافق",IF(M59=0.03,"متوافق",IF(M59="","","14%"))) ->  | O59: =IF(N59="14%",H59/1.14,"") ->  | P59: =IFERROR(O59*14%,"") -> 
A60: 54 | B60: 54 | C60: محمود رشدى شحاتة | D60: عمارات B7 | E60: نجاره مسلحه | F60: متوقف | G60: 14 | I60: 2353.3 | J60: =H60-I60 -> -2353.3 | M60: =IFERROR(I60/H60,"") ->  | N60: =IF(M60=0.01,"متوافق",IF(M60=0.03,"متوافق",IF(M60="","","14%"))) ->  | O60: =IF(N60="14%",H60/1.14,"") ->  | P60: =IFERROR(O60*14%,"") -> 
A61: 55 | B61: 55 | C61: جمال محمد احمد بدرى | D61: عمارات B7 | E61: ايجار لودر | F61: متوقف | G61: 4 | I61: 701.6 | J61: =H61-I61 -> -701.6 | M61: =IFERROR(I61/H61,"") ->  | N61: =IF(M61=0.01,"متوافق",IF(M61=0.03,"متوافق",IF(M61="","","14%"))) ->  | O61: =IF(N61="14%",H61/1.14,"") ->  | P61: =IFERROR(O61*14%,"") -> 
A62: 56 | B62: 56 | C62: محمد عبدالعزيز ابوالفضل السيد | D62: عمارات B7 | E62: ايجار دوبل كابينه | F62: متوقف | G62: 3 | I62: 201.46 | J62: =H62-I62 -> -201.46 | M62: =IFERROR(I62/H62,"") ->  | N62: =IF(M62=0.01,"متوافق",IF(M62=0.03,"متوافق",IF(M62="","","14%"))) ->  | O62: =IF(N62="14%",H62/1.14,"") ->  | P62: =IFERROR(O62*14%,"") -> 
A63: 57 | B63: 57 | C63: شعبان شعبان عبدالله نصار | D63: مركزية | E63: ايجار ميكروباص | F63: متوقف | G63: 3 | I63: 384 | J63: =H63-I63 -> -384 | M63: =IFERROR(I63/H63,"") ->  | N63: =IF(M63=0.01,"متوافق",IF(M63=0.03,"متوافق",IF(M63="","","14%"))) ->  | O63: =IF(N63="14%",H63/1.14,"") ->  | P63: =IFERROR(O63*14%,"") -> 
A64: 58 | B64: 58 | C64: السيد سليمان محمد حفنى | D64: مركزية | E64: ايجار اتوبيس | F64: متوقف | G64: 4 | I64: 590.8 | J64: =H64-I64 -> -590.8 | M64: =IFERROR(I64/H64,"") ->  | N64: =IF(M64=0.01,"متوافق",IF(M64=0.03,"متوافق",IF(M64="","","14%"))) ->  | O64: =IF(N64="14%",H64/1.14,"") ->  | P64: =IFERROR(O64*14%,"") -> 
A65: 59 | B65: 59 | C65: عبدالصادق مجاهد قرشم | D65: عمارات B7 | E65: ايجار جرار ومقطورة | F65: متوقف | G65: 2 | I65: 49.3 | J65: =H65-I65 -> -49.3 | M65: =IFERROR(I65/H65,"") ->  | N65: =IF(M65=0.01,"متوافق",IF(M65=0.03,"متوافق",IF(M65="","","14%"))) ->  | O65: =IF(N65="14%",H65/1.14,"") ->  | P65: =IFERROR(O65*14%,"") -> 
A66: 60 | B66: 60 | C66: العربى لتأجير المعدات (خالد محمد عبد الكريم) | D66: عمارات B7 | E66: ايجار ونش | F66: متوقف | G66: 4 | I66: 2556.6 | J66: =H66-I66 -> -2556.6 | M66: =IFERROR(I66/H66,"") ->  | N66: =IF(M66=0.01,"متوافق",IF(M66=0.03,"متوافق",IF(M66="","","14%"))) ->  | O66: =IF(N66="14%",H66/1.14,"") ->  | P66: =IFERROR(O66*14%,"") -> 
A67: 61 | B67: 61 | C67: يوسف محمد ابراهيم جبريل | D67: عمارات B7 | E67: ايجار دوبل كابينه | F67: متوقف | G67: 1 | I67: 52.4 | J67: =H67-I67 -> -52.4 | M67: =IFERROR(I67/H67,"") ->  | N67: =IF(M67=0.01,"متوافق",IF(M67=0.03,"متوافق",IF(M67="","","14%"))) ->  | O67: =IF(N67="14%",H67/1.14,"") ->  | P67: =IFERROR(O67*14%,"") -> 
A68: 62 | B68: 62 | C68: ابراهيم حمدى عبدالرحمن | D68: عمارات B7 | E68: نجاره مسلحه | F68: ختامى | G68: 24 | I68: 8010.28075 | J68: =H68-I68 -> -8010.28075 | M68: =IFERROR(I68/H68,"") ->  | N68: =IF(M68=0.01,"متوافق",IF(M68=0.03,"متوافق",IF(M68="","","14%"))) ->  | O68: =IF(N68="14%",H68/1.14,"") ->  | P68: =IFERROR(O68*14%,"") -> 
A69: 63 | B69: 63 | C69: ايمن صالح عليان قنديل | D69: عمارات B7 | E69: حفر وردم | F69: متوقف | G69: 10 | I69: 5441.6846 | J69: =H69-I69 -> -5441.6846 | M69: =IFERROR(I69/H69,"") ->  | N69: =IF(M69=0.01,"متوافق",IF(M69=0.03,"متوافق",IF(M69="","","14%"))) ->  | O69: =IF(N69="14%",H69/1.14,"") ->  | P69: =IFERROR(O69*14%,"") -> 
A70: 64 | B70: 64 | C70: خالد حامد محمد عبدالله | D70: عمارات B7 | E70: سيراميك | F70: ختامى | G70: 7 | I70: 289.0869 | J70: =H70-I70 -> -289.0869 | M70: =IFERROR(I70/H70,"") ->  | N70: =IF(M70=0.01,"متوافق",IF(M70=0.03,"متوافق",IF(M70="","","14%"))) ->  | O70: =IF(N70="14%",H70/1.14,"") ->  | P70: =IFERROR(O70*14%,"") -> 
A71: 65 | B71: 65 | C71: عبدالحليم عبدالحافظ عبدالله | D71: مركزية | E71: دهانات | F71: ختامى | G71: 8 | I71: 304.3979 | J71: =H71-I71 -> -304.3979 | M71: =IFERROR(I71/H71,"") ->  | N71: =IF(M71=0.01,"متوافق",IF(M71=0.03,"متوافق",IF(M71="","","14%"))) ->  | O71: =IF(N71="14%",H71/1.14,"") ->  | P71: =IFERROR(O71*14%,"") -> 
A72: 66 | B72: 66 | C72: ابراهيم فتحى سالم صالح | D72: عمارات B7 | E72: عماله | F72: جارى | G72: 35 | I72: 4756.9175 | J72: =H72-I72 -> -4756.9175 | M72: =IFERROR(I72/H72,"") ->  | N72: =IF(M72=0.01,"متوافق",IF(M72=0.03,"متوافق",IF(M72="","","14%"))) ->  | O72: =IF(N72="14%",H72/1.14,"") ->  | P72: =IFERROR(O72*14%,"") -> 
A73: 67 | B73: 67 | C73: عبدالعظيم عبداللطيف مصطفى سيد | D73: عمارات B7 | E73: عماله | F73: متوقف | G73: 3 | I73: 147.89 | J73: =H73-I73 -> -147.89 | M73: =IFERROR(I73/H73,"") ->  | N73: =IF(M73=0.01,"متوافق",IF(M73=0.03,"متوافق",IF(M73="","","14%"))) ->  | O73: =IF(N73="14%",H73/1.14,"") ->  | P73: =IFERROR(O73*14%,"") -> 
A74: 68 | B74: 68 | C74: عبدالحليم محمد عبدالحليم | D74: عمارات B7 | E74: حداده | F74: ختامى | G74: 5 | I74: 228.59 | J74: =H74-I74 -> -228.59 | M74: =IFERROR(I74/H74,"") ->  | N74: =IF(M74=0.01,"متوافق",IF(M74=0.03,"متوافق",IF(M74="","","14%"))) ->  | O74: =IF(N74="14%",H74/1.14,"") ->  | P74: =IFERROR(O74*14%,"") -> 
A75: 69 | B75: 69 | C75: حشمت يوسف محمد يوسف | D75: عمارات B7 | E75: نجاره مسلحه | F75: ختامى | G75: 5 | I75: 55.2465 | J75: =H75-I75 -> -55.2465 | M75: =IFERROR(I75/H75,"") ->  | N75: =IF(M75=0.01,"متوافق",IF(M75=0.03,"متوافق",IF(M75="","","14%"))) ->  | O75: =IF(N75="14%",H75/1.14,"") ->  | P75: =IFERROR(O75*14%,"") -> 
A76: 70 | B76: 70 | C76: كامل غيط احمد حسن | D76: عمارات B7 | E76: صب خرسانه | F76: متوقف | G76: 1 | I76: 4.72 | J76: =H76-I76 -> -4.72 | M76: =IFERROR(I76/H76,"") ->  | N76: =IF(M76=0.01,"متوافق",IF(M76=0.03,"متوافق",IF(M76="","","14%"))) ->  | O76: =IF(N76="14%",H76/1.14,"") ->  | P76: =IFERROR(O76*14%,"") -> 
A77: 71 | B77: 71 | C77: عطية محمود جاد عبدالقادر | D77: عمارات B7 | E77: مبانى | F77: ختامى | G77: 2 | I77: 20.55 | J77: =H77-I77 -> -20.55 | M77: =IFERROR(I77/H77,"") ->  | N77: =IF(M77=0.01,"متوافق",IF(M77=0.03,"متوافق",IF(M77="","","14%"))) ->  | O77: =IF(N77="14%",H77/1.14,"") ->  | P77: =IFERROR(O77*14%,"") -> 
A78: 72 | B78: 72 | C78: مهاود عياده يوسف | D78: عمارات B7 | E78: نجاره مسلحه | F78: متوقف | G78: 0 | I78: 0 | J78: =H78-I78 -> 0 | M78: =IFERROR(I78/H78,"") ->  | N78: =IF(M78=0.01,"متوافق",IF(M78=0.03,"متوافق",IF(M78="","","14%"))) ->  | O78: =IF(N78="14%",H78/1.14,"") ->  | P78: =IFERROR(O78*14%,"") -> 
A79: 73 | B79: 73 | C79: شركة سيلفر للاستيراد والتجارة (خالد فايد) | D79: عمارات B7 | E79: تصوير | F79: متوقف | G79: 16 | I79: 1017.79035 | J79: =H79-I79 -> -1017.79035 | M79: =IFERROR(I79/H79,"") ->  | N79: =IF(M79=0.01,"متوافق",IF(M79=0.03,"متوافق",IF(M79="","","14%"))) ->  | O79: =IF(N79="14%",H79/1.14,"") ->  | P79: =IFERROR(O79*14%,"") -> 
A80: 74 | B80: 74 | C80: ممتاز سيد محمود محمد | D80: عمارات B7 | E80: ايجار كلارك | F80: جارى | G80: 56 | I80: 9619.975 | J80: =H80-I80 -> -9619.975 | M80: =IFERROR(I80/H80,"") ->  | N80: =IF(M80=0.01,"متوافق",IF(M80=0.03,"متوافق",IF(M80="","","14%"))) ->  | O80: =IF(N80="14%",H80/1.14,"") ->  | P80: =IFERROR(O80*14%,"") -> 
A81: 75 | B81: 75 | C81: عبدالخالق جمال احمد عبدالخالق | D81: مركزية | E81: ايجار ميكروباص | F81: متوقف | G81: 4 | I81: 326.6 | J81: =H81-I81 -> -326.6 | M81: =IFERROR(I81/H81,"") ->  | N81: =IF(M81=0.01,"متوافق",IF(M81=0.03,"متوافق",IF(M81="","","14%"))) ->  | O81: =IF(N81="14%",H81/1.14,"") ->  | P81: =IFERROR(O81*14%,"") -> 
A82: 76 | B82: 76 | C82: أشرف ناجى عطية قطب | D82: مرافق B7 | E82: ايجار دبابه | F82: متوقف | G82: 2 | I82: 65.6 | J82: =H82-I82 -> -65.6 | M82: =IFERROR(I82/H82,"") ->  | N82: =IF(M82=0.01,"متوافق",IF(M82=0.03,"متوافق",IF(M82="","","14%"))) ->  | O82: =IF(N82="14%",H82/1.14,"") ->  | P82: =IFERROR(O82*14%,"") -> 
A83: 77 | B83: 77 | C83: عبدالفتاح كامل عبدالمالك احمد | D83: عمارات B7 | E83: صب خرسانه | F83: متوقف | G83: 7 | I83: 190.609 | J83: =H83-I83 -> -190.609 | M83: =IFERROR(I83/H83,"") ->  | N83: =IF(M83=0.01,"متوافق",IF(M83=0.03,"متوافق",IF(M83="","","14%"))) ->  | O83: =IF(N83="14%",H83/1.14,"") ->  | P83: =IFERROR(O83*14%,"") -> 
A84: 78 | B84: 78 | C84: اسماعيل عبدالموجود كامل | D84: عمارات B7 | E84: صب خرسانه | F84: ختامى | G84: 6 | I84: 83.01 | J84: =H84-I84 -> -83.01 | M84: =IFERROR(I84/H84,"") ->  | N84: =IF(M84=0.01,"متوافق",IF(M84=0.03,"متوافق",IF(M84="","","14%"))) ->  | O84: =IF(N84="14%",H84/1.14,"") ->  | P84: =IFERROR(O84*14%,"") -> 
A85: 79 | B85: 79 | C85: صبرى عبدالنبى بكرى ابوطالب | D85: عمارات B7 | E85: حداده | F85: ختامى | G85: 12 | I85: 620.7877 | J85: =H85-I85 -> -620.7877 | M85: =IFERROR(I85/H85,"") ->  | N85: =IF(M85=0.01,"متوافق",IF(M85=0.03,"متوافق",IF(M85="","","14%"))) ->  | O85: =IF(N85="14%",H85/1.14,"") ->  | P85: =IFERROR(O85*14%,"") -> 
A86: 80 | B86: 80 | C86: محمد محمد عبدالعزيز ابوالسعود | D86: عمارات B7 | E86: ايجار شاسيه | F86: متوقف | G86: 2 | I86: 83.93 | J86: =H86-I86 -> -83.93 | M86: =IFERROR(I86/H86,"") ->  | N86: =IF(M86=0.01,"متوافق",IF(M86=0.03,"متوافق",IF(M86="","","14%"))) ->  | O86: =IF(N86="14%",H86/1.14,"") ->  | P86: =IFERROR(O86*14%,"") -> 
A87: 81 | B87: 81 | C87: احمد محمود عامر محمود | D87: عمارات B7 | E87: نجاره مسلحه | F87: ختامى | G87: 6 | I87: 174.22 | J87: =H87-I87 -> -174.22 | M87: =IFERROR(I87/H87,"") ->  | N87: =IF(M87=0.01,"متوافق",IF(M87=0.03,"متوافق",IF(M87="","","14%"))) ->  | O87: =IF(N87="14%",H87/1.14,"") ->  | P87: =IFERROR(O87*14%,"") -> 
A88: 82 | B88: 82 | C88: حمدى عبدالوهاب محمد عبدالوهاب | D88: عمارات B7 | E88: حداده | F88: ختامى | G88: 6 | I88: 147.9928 | J88: =H88-I88 -> -147.9928 | M88: =IFERROR(I88/H88,"") ->  | N88: =IF(M88=0.01,"متوافق",IF(M88=0.03,"متوافق",IF(M88="","","14%"))) ->  | O88: =IF(N88="14%",H88/1.14,"") ->  | P88: =IFERROR(O88*14%,"") -> 
A89: 83 | B89: 83 | C89: عبدالله جودة عبدالله زيادة | D89: عمارات B7 | E89: ايجار ملاكى | F89: متوقف | G89: 11 | I89: 580.9 | J89: =H89-I89 -> -580.9 | M89: =IFERROR(I89/H89,"") ->  | N89: =IF(M89=0.01,"متوافق",IF(M89=0.03,"متوافق",IF(M89="","","14%"))) ->  | O89: =IF(N89="14%",H89/1.14,"") ->  | P89: =IFERROR(O89*14%,"") -> 
A90: 84 | B90: 84 | C90: عفيفى عبدالله عفيفى السماحى | D90: عمارات B7 | E90: ايجار دبابه | F90: متوقف | G90: 2 | I90: 77.7 | J90: =H90-I90 -> -77.7 | M90: =IFERROR(I90/H90,"") ->  | N90: =IF(M90=0.01,"متوافق",IF(M90=0.03,"متوافق",IF(M90="","","14%"))) ->  | O90: =IF(N90="14%",H90/1.14,"") ->  | P90: =IFERROR(O90*14%,"") -> 
A91: 85 | B91: 85 | C91: السيد السيد كامل السطوحى | D91: عمارات B7 | E91: حداده | F91: ختامى | G91: 35 | I91: 43913.274 | J91: =H91-I91 -> -43913.274 | M91: =IFERROR(I91/H91,"") ->  | N91: =IF(M91=0.01,"متوافق",IF(M91=0.03,"متوافق",IF(M91="","","14%"))) ->  | O91: =IF(N91="14%",H91/1.14,"") ->  | P91: =IFERROR(O91*14%,"") -> 
A92: 86 | B92: 86 | C92: عصام السيد على حديوى | D92: عمارات B7 | E92: عماله | F92: متوقف | G92: 3 | I92: 54.9 | J92: =H92-I92 -> -54.9 | M92: =IFERROR(I92/H92,"") ->  | N92: =IF(M92=0.01,"متوافق",IF(M92=0.03,"متوافق",IF(M92="","","14%"))) ->  | O92: =IF(N92="14%",H92/1.14,"") ->  | P92: =IFERROR(O92*14%,"") -> 
A93: 87 | B93: 87 | C93: احمد فريد محمد ربيع | D93: عمارات B7 | E93: ايجار دبابه | F93: متوقف | G93: 25 | I93: 1193.8 | J93: =H93-I93 -> -1193.8 | M93: =IFERROR(I93/H93,"") ->  | N93: =IF(M93=0.01,"متوافق",IF(M93=0.03,"متوافق",IF(M93="","","14%"))) ->  | O93: =IF(N93="14%",H93/1.14,"") ->  | P93: =IFERROR(O93*14%,"") -> 
A94: 88 | B94: 88 | C94: احمد محمد ابراهيم بدر | D94: مرافق B7 | E94: ايجار حفار + لودر | F94: متوقف | G94: 4 | I94: 417.2 | J94: =H94-I94 -> -417.2 | M94: =IFERROR(I94/H94,"") ->  | N94: =IF(M94=0.01,"متوافق",IF(M94=0.03,"متوافق",IF(M94="","","14%"))) ->  | O94: =IF(N94="14%",H94/1.14,"") ->  | P94: =IFERROR(O94*14%,"") -> 
A95: 89 | B95: 89 | C95: رضوان السيد ابراهيم حسن | D95: عمارات B7 | E95: ايجار دوبل كابينه | F95: متوقف | G95: 2 | I95: 42.72 | J95: =H95-I95 -> -42.72 | M95: =IFERROR(I95/H95,"") ->  | N95: =IF(M95=0.01,"متوافق",IF(M95=0.03,"متوافق",IF(M95="","","14%"))) ->  | O95: =IF(N95="14%",H95/1.14,"") ->  | P95: =IFERROR(O95*14%,"") -> 
A96: 90 | B96: 90 | C96: احمد هشام عبدالستارابراهيم (بولاية والده) | D96: عمارات B7 | E96: ايجار دبابه | F96: متوقف | G96: 13 | I96: 718.6 | J96: =H96-I96 -> -718.6 | M96: =IFERROR(I96/H96,"") ->  | N96: =IF(M96=0.01,"متوافق",IF(M96=0.03,"متوافق",IF(M96="","","14%"))) ->  | O96: =IF(N96="14%",H96/1.14,"") ->  | P96: =IFERROR(O96*14%,"") -> 
A97: 91 | B97: 91 | C97: واليد عبدالباسط السيد ابوعمر | D97: عمارات B7 | E97: ايجار جرار ومقطورة | F97: متوقف | G97: 21 | I97: 852.825 | J97: =H97-I97 -> -852.825 | M97: =IFERROR(I97/H97,"") ->  | N97: =IF(M97=0.01,"متوافق",IF(M97=0.03,"متوافق",IF(M97="","","14%"))) ->  | O97: =IF(N97="14%",H97/1.14,"") ->  | P97: =IFERROR(O97*14%,"") -> 
A98: 92 | B98: 92 | C98: عبدالمنعم اسماعيل عبده اسماعيل | D98: مرافق B7 | E98: ايجار دوبل كابينه | F98: جارى | G98: 37 | I98: 2651.24 | J98: =H98-I98 -> -2651.24 | M98: =IFERROR(I98/H98,"") ->  | N98: =IF(M98=0.01,"متوافق",IF(M98=0.03,"متوافق",IF(M98="","","14%"))) ->  | O98: =IF(N98="14%",H98/1.14,"") ->  | P98: =IFERROR(O98*14%,"") -> 
A99: 93 | B99: 93 | C99: على احمد حسن حمد | D99: مرافق B7 | E99: ايجار لودر | F99: متوقف | G99: 4 | I99: 345.8 | J99: =H99-I99 -> -345.8 | M99: =IFERROR(I99/H99,"") ->  | N99: =IF(M99=0.01,"متوافق",IF(M99=0.03,"متوافق",IF(M99="","","14%"))) ->  | O99: =IF(N99="14%",H99/1.14,"") ->  | P99: =IFERROR(O99*14%,"") -> 
A100: 94 | B100: 94 | C100: حمدى عبدالرؤف ابراهيم ناصف | D100: مرافق B7 | E100: ايجار جرار ومقطورة | F100: متوقف | G100: 1 | I100: 61.7 | J100: =H100-I100 -> -61.7 | M100: =IFERROR(I100/H100,"") ->  | N100: =IF(M100=0.01,"متوافق",IF(M100=0.03,"متوافق",IF(M100="","","14%"))) ->  | O100: =IF(N100="14%",H100/1.14,"") ->  | P100: =IFERROR(O100*14%,"") -> 
A101: 95 | B101: 95 | C101: كمال محمود محمد عباس | D101: مرافق B7 | E101: شبكات الصرف والمياه والرى | F101: ختامى | G101: 38 | I101: 2315.92525 | J101: =H101-I101 -> -2315.92525 | M101: =IFERROR(I101/H101,"") ->  | N101: =IF(M101=0.01,"متوافق",IF(M101=0.03,"متوافق",IF(M101="","","14%"))) ->  | O101: =IF(N101="14%",H101/1.14,"") ->  | P101: =IFERROR(O101*14%,"") -> 
A102: 96 | B102: 96 | C102: عبدالفتاح كامل عبدالمالك احمد | D102: عينات فندق الفور سيزون | E102: صب خرسانه | F102: متوقف | G102: 3 | I102: 3.96355 | J102: =H102-I102 -> -3.96355 | M102: =IFERROR(I102/H102,"") ->  | N102: =IF(M102=0.01,"متوافق",IF(M102=0.03,"متوافق",IF(M102="","","14%"))) ->  | O102: =IF(N102="14%",H102/1.14,"") ->  | P102: =IFERROR(O102*14%,"") -> 
A103: 97 | B103: 97 | C103: الجواد للمقاولات ( حسام عبدالجواد محمد ) | D103: مرافق B7 | E103: ايجار حفار + لودر | F103: متوقف | G103: 11 | I103: 4191.45 | J103: =H103-I103 -> -4191.45 | M103: =IFERROR(I103/H103,"") ->  | N103: =IF(M103=0.01,"متوافق",IF(M103=0.03,"متوافق",IF(M103="","","14%"))) ->  | O103: =IF(N103="14%",H103/1.14,"") ->  | P103: =IFERROR(O103*14%,"") -> 
A104: 98 | B104: 98 | C104: هانى عبده فاروق محمد | D104: عمارات B7 | E104: عماله | F104: ختامى | G104: 23 | I104: 1909.59 | J104: =H104-I104 -> -1909.59 | M104: =IFERROR(I104/H104,"") ->  | N104: =IF(M104=0.01,"متوافق",IF(M104=0.03,"متوافق",IF(M104="","","14%"))) ->  | O104: =IF(N104="14%",H104/1.14,"") ->  | P104: =IFERROR(O104*14%,"") -> 
A105: 99 | B105: 99 | C105: اسماعيل عبدالموجود كامل | D105: عينات فندق الفور سيزون | E105: صب خرسانه | F105: ختامى | G105: 2 | I105: 1.25135 | J105: =H105-I105 -> -1.25135 | M105: =IFERROR(I105/H105,"") ->  | N105: =IF(M105=0.01,"متوافق",IF(M105=0.03,"متوافق",IF(M105="","","14%"))) ->  | O105: =IF(N105="14%",H105/1.14,"") ->  | P105: =IFERROR(O105*14%,"") -> 
A106: 100 | B106: 100 | C106: شركة الشمس للمقاولات | D106: عمارات B7 | E106: تسويات | F106: متوقف | G106: 1 | I106: 24.04 | J106: =H106-I106 -> -24.04 | M106: =IFERROR(I106/H106,"") ->  | N106: =IF(M106=0.01,"متوافق",IF(M106=0.03,"متوافق",IF(M106="","","14%"))) ->  | O106: =IF(N106="14%",H106/1.14,"") ->  | P106: =IFERROR(O106*14%,"") -> 
A107: 101 | B107: 101 | C107: طلعت محمد ابراهيم جعفر | D107: عمارات B7 | E107: ايجار شاسيه | F107: جارى | G107: 42 | I107: 2160.31 | J107: =H107-I107 -> -2160.31 | M107: =IFERROR(I107/H107,"") ->  | N107: =IF(M107=0.01,"متوافق",IF(M107=0.03,"متوافق",IF(M107="","","14%"))) ->  | O107: =IF(N107="14%",H107/1.14,"") ->  | P107: =IFERROR(O107*14%,"") -> 
A108: 102 | B108: 102 | C108: هانى عبده فاروق محمد بولايه والده | D108: مركزية | E108: عماله | F108: متوقف | G108: 0 | I108: 0 | J108: =H108-I108 -> 0 | M108: =IFERROR(I108/H108,"") ->  | N108: =IF(M108=0.01,"متوافق",IF(M108=0.03,"متوافق",IF(M108="","","14%"))) ->  | O108: =IF(N108="14%",H108/1.14,"") ->  | P108: =IFERROR(O108*14%,"") -> 
A109: 103 | B109: 103 | C109: عبدالرحمن عبدالجيد سيد عبدالكريم | D109: عمارات B7 | E109: عماله | F109: متوقف | G109: 9 | I109: 676.775 | J109: =H109-I109 -> -676.775 | M109: =IFERROR(I109/H109,"") ->  | N109: =IF(M109=0.01,"متوافق",IF(M109=0.03,"متوافق",IF(M109="","","14%"))) ->  | O109: =IF(N109="14%",H109/1.14,"") ->  | P109: =IFERROR(O109*14%,"") -> 
A110: 104 | B110: 104 | C110: رضا محب محمود محمد | D110: عمارات B7 | E110: نجاره مسلحه | F110: ختامى | G110: 6 | I110: 298.6583 | J110: =H110-I110 -> -298.6583 | M110: =IFERROR(I110/H110,"") ->  | N110: =IF(M110=0.01,"متوافق",IF(M110=0.03,"متوافق",IF(M110="","","14%"))) ->  | O110: =IF(N110="14%",H110/1.14,"") ->  | P110: =IFERROR(O110*14%,"") -> 
A111: 105 | B111: 105 | C111: باسم محمد احمد الكومى | D111: عمارات B7 | E111: نجاره مسلحه | F111: ختامى | G111: 5 | I111: 96.36385 | J111: =H111-I111 -> -96.36385 | M111: =IFERROR(I111/H111,"") ->  | N111: =IF(M111=0.01,"متوافق",IF(M111=0.03,"متوافق",IF(M111="","","14%"))) ->  | O111: =IF(N111="14%",H111/1.14,"") ->  | P111: =IFERROR(O111*14%,"") -> 
A112: 106 | B112: 106 | C112: خالد حامد محمد عبدالله | D112: عمارات B7 | E112: مبانى وبياض | F112: ختامى | G112: 48 | I112: 178888.6288 | J112: =H112-I112 -> -178888.6288 | M112: =IFERROR(I112/H112,"") ->  | N112: =IF(M112=0.01,"متوافق",IF(M112=0.03,"متوافق",IF(M112="","","14%"))) ->  | O112: =IF(N112="14%",H112/1.14,"") ->  | P112: =IFERROR(O112*14%,"") -> 
A113: 107 | B113: 107 | C113: عبدالهادى على عبدالوهاب | D113: مركزية | E113: كريتال | F113: متوقف | G113: 1 | I113: 24.99 | J113: =H113-I113 -> -24.99 | M113: =IFERROR(I113/H113,"") ->  | N113: =IF(M113=0.01,"متوافق",IF(M113=0.03,"متوافق",IF(M113="","","14%"))) ->  | O113: =IF(N113="14%",H113/1.14,"") ->  | P113: =IFERROR(O113*14%,"") -> 
A114: 108 | B114: 108 | C114: شركة مصر ريموند للاساسات | D114: عمارات B7 | E114: اختبارات معمليه | F114: جارى | G114: 24 | I114: 929.4 | J114: =H114-I114 -> -929.4 | M114: =IFERROR(I114/H114,"") ->  | N114: =IF(M114=0.01,"متوافق",IF(M114=0.03,"متوافق",IF(M114="","","14%"))) ->  | O114: =IF(N114="14%",H114/1.14,"") ->  | P114: =IFERROR(O114*14%,"") -> 
A115: 109 | B115: 109 | C115: ابراهيم احمد محمد المقاول | D115: عمارات B7 | E115: ايجار دبابه | F115: متوقف | G115: 4 | I115: 144.6 | J115: =H115-I115 -> -144.6 | M115: =IFERROR(I115/H115,"") ->  | N115: =IF(M115=0.01,"متوافق",IF(M115=0.03,"متوافق",IF(M115="","","14%"))) ->  | O115: =IF(N115="14%",H115/1.14,"") ->  | P115: =IFERROR(O115*14%,"") -> 
A116: 110 | B116: 110 | C116: عبدالله ابراهيم احمد مطر | D116: عمارات B7 | E116: نجاره مسلحه | F116: ختامى | G116: 10 | I116: 1072.13825 | J116: =H116-I116 -> -1072.13825 | M116: =IFERROR(I116/H116,"") ->  | N116: =IF(M116=0.01,"متوافق",IF(M116=0.03,"متوافق",IF(M116="","","14%"))) ->  | O116: =IF(N116="14%",H116/1.14,"") ->  | P116: =IFERROR(O116*14%,"") -> 
A117: 111 | B117: 111 | C117: وحيد وجدى محمد | D117: عمارات B7 | E117: حداده | F117: ختامى | G117: 7 | I117: 516.4771 | J117: =H117-I117 -> -516.4771 | M117: =IFERROR(I117/H117,"") ->  | N117: =IF(M117=0.01,"متوافق",IF(M117=0.03,"متوافق",IF(M117="","","14%"))) ->  | O117: =IF(N117="14%",H117/1.14,"") ->  | P117: =IFERROR(O117*14%,"") -> 
A118: 112 | B118: 112 | C118: عماد حمدى السيد محمد | D118: عمارات B7 | E118: حداده | F118: ختامى | G118: 5 | I118: 58.96 | J118: =H118-I118 -> -58.96 | M118: =IFERROR(I118/H118,"") ->  | N118: =IF(M118=0.01,"متوافق",IF(M118=0.03,"متوافق",IF(M118="","","14%"))) ->  | O118: =IF(N118="14%",H118/1.14,"") ->  | P118: =IFERROR(O118*14%,"") -> 
A119: 113 | B119: 113 | C119: تاج الدين على محمد على | D119: عمارات B7 | E119: مقطوعيات | F119: ختامى | G119: 0 | I119: 6571.9681 | J119: =H119-I119 -> -6571.9681 | M119: =IFERROR(I119/H119,"") ->  | N119: =IF(M119=0.01,"متوافق",IF(M119=0.03,"متوافق",IF(M119="","","14%"))) ->  | O119: =IF(N119="14%",H119/1.14,"") ->  | P119: =IFERROR(O119*14%,"") -> 
A120: 114 | B120: 114 | C120: حسن السيد حسن السيد الشحات | D120: عمارات B7 | E120: ايجار دبابه | F120: متوقف | G120: 1 | I120: 22.6 | J120: =H120-I120 -> -22.6 | M120: =IFERROR(I120/H120,"") ->  | N120: =IF(M120=0.01,"متوافق",IF(M120=0.03,"متوافق",IF(M120="","","14%"))) ->  | O120: =IF(N120="14%",H120/1.14,"") ->  | P120: =IFERROR(O120*14%,"") -> 
A121: 115 | B121: 115 | C121: حمدى ابوبكر محمود على | D121: عمارات B7 | E121: نجاره مسلحه | F121: ختامى | G121: 5 | I121: 201.201 | J121: =H121-I121 -> -201.201 | M121: =IFERROR(I121/H121,"") ->  | N121: =IF(M121=0.01,"متوافق",IF(M121=0.03,"متوافق",IF(M121="","","14%"))) ->  | O121: =IF(N121="14%",H121/1.14,"") ->  | P121: =IFERROR(O121*14%,"") -> 
A122: 116 | B122: 116 | C122: اشرف الحسينى صالح محمد | D122: عمارات B7 | E122: نجاره مسلحه | F122: ختامى | G122: 6 | I122: 299.0975 | J122: =H122-I122 -> -299.0975 | M122: =IFERROR(I122/H122,"") ->  | N122: =IF(M122=0.01,"متوافق",IF(M122=0.03,"متوافق",IF(M122="","","14%"))) ->  | O122: =IF(N122="14%",H122/1.14,"") ->  | P122: =IFERROR(O122*14%,"") -> 
A123: 117 | B123: 117 | C123: رجب محمد شبل شديد | D123: عمارات B7 | E123: حداده | F123: ختامى | G123: 4 | I123: 67.325 | J123: =H123-I123 -> -67.325 | M123: =IFERROR(I123/H123,"") ->  | N123: =IF(M123=0.01,"متوافق",IF(M123=0.03,"متوافق",IF(M123="","","14%"))) ->  | O123: =IF(N123="14%",H123/1.14,"") ->  | P123: =IFERROR(O123*14%,"") -> 
A124: 118 | B124: 118 | C124: وائل فؤاد شاكر بليدى | D124: عمارات B7 | E124: حداده | F124: ختامى | G124: 4 | I124: 74.97 | J124: =H124-I124 -> -74.97 | M124: =IFERROR(I124/H124,"") ->  | N124: =IF(M124=0.01,"متوافق",IF(M124=0.03,"متوافق",IF(M124="","","14%"))) ->  | O124: =IF(N124="14%",H124/1.14,"") ->  | P124: =IFERROR(O124*14%,"") -> 
A125: =IF(B125="","",SUBTOTAL(3,$B$7:B125)) ->  | J125: =H125-I125 -> 0 | M125: =IFERROR(I125/H125,"") ->  | N125: =IF(M125=0.01,"متوافق",IF(M125=0.03,"متوافق",IF(M125="","","14%"))) ->  | O125: =IF(N125="14%",H125/1.14,"") ->  | P125: =IFERROR(O125*14%,"") -> 
A126: =IF(B126="","",SUBTOTAL(3,$B$7:B126)) ->  | J126: =H126-I126 -> 0 | M126: =IFERROR(I126/H126,"") ->  | N126: =IF(M126=0.01,"متوافق",IF(M126=0.03,"متوافق",IF(M126="","","14%"))) ->  | O126: =IF(N126="14%",H126/1.14,"") ->  | P126: =IFERROR(O126*14%,"") -> 
A127: =IF(B127="","",SUBTOTAL(3,$B$7:B127)) ->  | J127: =H127-I127 -> 0 | M127: =IFERROR(I127/H127,"") ->  | N127: =IF(M127=0.01,"متوافق",IF(M127=0.03,"متوافق",IF(M127="","","14%"))) ->  | O127: =IF(N127="14%",H127/1.14,"") ->  | P127: =IFERROR(O127*14%,"") -> 
A128: =IF(B128="","",SUBTOTAL(3,$B$7:B128)) ->  | J128: =H128-I128 -> 0 | M128: =IFERROR(I128/H128,"") ->  | N128: =IF(M128=0.01,"متوافق",IF(M128=0.03,"متوافق",IF(M128="","","14%"))) ->  | O128: =IF(N128="14%",H128/1.14,"") ->  | P128: =IFERROR(O128*14%,"") -> 
A129: =IF(B129="","",SUBTOTAL(3,$B$7:B129)) ->  | J129: =H129-I129 -> 0 | M129: =IFERROR(I129/H129,"") ->  | N129: =IF(M129=0.01,"متوافق",IF(M129=0.03,"متوافق",IF(M129="","","14%"))) ->  | O129: =IF(N129="14%",H129/1.14,"") ->  | P129: =IFERROR(O129*14%,"") -> 
A130: =IF(B130="","",SUBTOTAL(3,$B$7:B130)) ->  | J130: =H130-I130 -> 0 | M130: =IFERROR(I130/H130,"") ->  | N130: =IF(M130=0.01,"متوافق",IF(M130=0.03,"متوافق",IF(M130="","","14%"))) ->  | O130: =IF(N130="14%",H130/1.14,"") ->  | P130: =IFERROR(O130*14%,"") -> 
A131: =IF(B131="","",SUBTOTAL(3,$B$7:B131)) ->  | J131: =H131-I131 -> 0 | M131: =IFERROR(I131/H131,"") ->  | N131: =IF(M131=0.01,"متوافق",IF(M131=0.03,"متوافق",IF(M131="","","14%"))) ->  | O131: =IF(N131="14%",H131/1.14,"") ->  | P131: =IFERROR(O131*14%,"") -> 
A132: =IF(B132="","",SUBTOTAL(3,$B$7:B132)) ->  | J132: =H132-I132 -> 0 | M132: =IFERROR(I132/H132,"") ->  | N132: =IF(M132=0.01,"متوافق",IF(M132=0.03,"متوافق",IF(M132="","","14%"))) ->  | O132: =IF(N132="14%",H132/1.14,"") ->  | P132: =IFERROR(O132*14%,"") -> 
A133: =IF(B133="","",SUBTOTAL(3,$B$7:B133)) ->  | J133: =H133-I133 -> 0 | M133: =IFERROR(I133/H133,"") ->  | N133: =IF(M133=0.01,"متوافق",IF(M133=0.03,"متوافق",IF(M133="","","14%"))) ->  | O133: =IF(N133="14%",H133/1.14,"") ->  | P133: =IFERROR(O133*14%,"") -> 
A134: =IF(B134="","",SUBTOTAL(3,$B$7:B134)) ->  | J134: =H134-I134 -> 0 | M134: =IFERROR(I134/H134,"") ->  | N134: =IF(M134=0.01,"متوافق",IF(M134=0.03,"متوافق",IF(M134="","","14%"))) ->  | O134: =IF(N134="14%",H134/1.14,"") ->  | P134: =IFERROR(O134*14%,"") -> 
A135: =IF(B135="","",SUBTOTAL(3,$B$7:B135)) ->  | J135: =H135-I135 -> 0 | M135: =IFERROR(I135/H135,"") ->  | N135: =IF(M135=0.01,"متوافق",IF(M135=0.03,"متوافق",IF(M135="","","14%"))) ->  | O135: =IF(N135="14%",H135/1.14,"") ->  | P135: =IFERROR(O135*14%,"") -> 
A136: =IF(B136="","",SUBTOTAL(3,$B$7:B136)) ->  | J136: =H136-I136 -> 0 | M136: =IFERROR(I136/H136,"") ->  | N136: =IF(M136=0.01,"متوافق",IF(M136=0.03,"متوافق",IF(M136="","","14%"))) ->  | O136: =IF(N136="14%",H136/1.14,"") ->  | P136: =IFERROR(O136*14%,"") -> 
A137: =IF(B137="","",SUBTOTAL(3,$B$7:B137)) ->  | J137: =H137-I137 -> 0 | M137: =IFERROR(I137/H137,"") ->  | N137: =IF(M137=0.01,"متوافق",IF(M137=0.03,"متوافق",IF(M137="","","14%"))) ->  | O137: =IF(N137="14%",H137/1.14,"") ->  | P137: =IFERROR(O137*14%,"") -> 
A138: =IF(B138="","",SUBTOTAL(3,$B$7:B138)) ->  | J138: =H138-I138 -> 0 | M138: =IFERROR(I138/H138,"") ->  | N138: =IF(M138=0.01,"متوافق",IF(M138=0.03,"متوافق",IF(M138="","","14%"))) ->  | O138: =IF(N138="14%",H138/1.14,"") ->  | P138: =IFERROR(O138*14%,"") -> 
A139: =IF(B139="","",SUBTOTAL(3,$B$7:B139)) ->  | J139: =H139-I139 -> 0 | M139: =IFERROR(I139/H139,"") ->  | N139: =IF(M139=0.01,"متوافق",IF(M139=0.03,"متوافق",IF(M139="","","14%"))) ->  | O139: =IF(N139="14%",H139/1.14,"") ->  | P139: =IFERROR(O139*14%,"") -> 
A140: =IF(B140="","",SUBTOTAL(3,$B$7:B140)) ->  | J140: =H140-I140 -> 0 | M140: =IFERROR(I140/H140,"") ->  | N140: =IF(M140=0.01,"متوافق",IF(M140=0.03,"متوافق",IF(M140="","","14%"))) ->  | O140: =IF(N140="14%",H140/1.14,"") ->  | P140: =IFERROR(O140*14%,"") -> 
A141: =IF(B141="","",SUBTOTAL(3,$B$7:B141)) ->  | J141: =H141-I141 -> 0 | M141: =IFERROR(I141/H141,"") ->  | N141: =IF(M141=0.01,"متوافق",IF(M141=0.03,"متوافق",IF(M141="","","14%"))) ->  | O141: =IF(N141="14%",H141/1.14,"") ->  | P141: =IFERROR(O141*14%,"") -> 
A142: =IF(B142="","",SUBTOTAL(3,$B$7:B142)) ->  | J142: =H142-I142 -> 0 | M142: =IFERROR(I142/H142,"") ->  | N142: =IF(M142=0.01,"متوافق",IF(M142=0.03,"متوافق",IF(M142="","","14%"))) ->  | O142: =IF(N142="14%",H142/1.14,"") ->  | P142: =IFERROR(O142*14%,"") -> 
A143: =IF(B143="","",SUBTOTAL(3,$B$7:B143)) ->  | J143: =H143-I143 -> 0 | M143: =IFERROR(I143/H143,"") ->  | N143: =IF(M143=0.01,"متوافق",IF(M143=0.03,"متوافق",IF(M143="","","14%"))) ->  | O143: =IF(N143="14%",H143/1.14,"") ->  | P143: =IFERROR(O143*14%,"") -> 
A144: =IF(B144="","",SUBTOTAL(3,$B$7:B144)) ->  | J144: =H144-I144 -> 0 | M144: =IFERROR(I144/H144,"") ->  | N144: =IF(M144=0.01,"متوافق",IF(M144=0.03,"متوافق",IF(M144="","","14%"))) ->  | O144: =IF(N144="14%",H144/1.14,"") ->  | P144: =IFERROR(O144*14%,"") -> 
A145: =IF(B145="","",SUBTOTAL(3,$B$7:B145)) ->  | J145: =H145-I145 -> 0 | M145: =IFERROR(I145/H145,"") ->  | N145: =IF(M145=0.01,"متوافق",IF(M145=0.03,"متوافق",IF(M145="","","14%"))) ->  | O145: =IF(N145="14%",H145/1.14,"") ->  | P145: =IFERROR(O145*14%,"") -> 
A146: =IF(B146="","",SUBTOTAL(3,$B$7:B146)) ->  | J146: =H146-I146 -> 0 | M146: =IFERROR(I146/H146,"") ->  | N146: =IF(M146=0.01,"متوافق",IF(M146=0.03,"متوافق",IF(M146="","","14%"))) ->  | O146: =IF(N146="14%",H146/1.14,"") ->  | P146: =IFERROR(O146*14%,"") -> 
A147: =IF(B147="","",SUBTOTAL(3,$B$7:B147)) ->  | J147: =H147-I147 -> 0 | M147: =IFERROR(I147/H147,"") ->  | N147: =IF(M147=0.01,"متوافق",IF(M147=0.03,"متوافق",IF(M147="","","14%"))) ->  | O147: =IF(N147="14%",H147/1.14,"") ->  | P147: =IFERROR(O147*14%,"") -> 
A148: =IF(B148="","",SUBTOTAL(3,$B$7:B148)) ->  | J148: =H148-I148 -> 0 | M148: =IFERROR(I148/H148,"") ->  | N148: =IF(M148=0.01,"متوافق",IF(M148=0.03,"متوافق",IF(M148="","","14%"))) ->  | O148: =IF(N148="14%",H148/1.14,"") ->  | P148: =IFERROR(O148*14%,"") -> 
A149: =IF(B149="","",SUBTOTAL(3,$B$7:B149)) ->  | J149: =H149-I149 -> 0 | M149: =IFERROR(I149/H149,"") ->  | N149: =IF(M149=0.01,"متوافق",IF(M149=0.03,"متوافق",IF(M149="","","14%"))) ->  | O149: =IF(N149="14%",H149/1.14,"") ->  | P149: =IFERROR(O149*14%,"") -> 
A150: =IF(B150="","",SUBTOTAL(3,$B$7:B150)) ->  | J150: =H150-I150 -> 0 | M150: =IFERROR(I150/H150,"") ->  | N150: =IF(M150=0.01,"متوافق",IF(M150=0.03,"متوافق",IF(M150="","","14%"))) ->  | O150: =IF(N150="14%",H150/1.14,"") ->  | P150: =IFERROR(O150*14%,"") -> 
A151: =IF(B151="","",SUBTOTAL(3,$B$7:B151)) ->  | J151: =H151-I151 -> 0 | M151: =IFERROR(I151/H151,"") ->  | N151: =IF(M151=0.01,"متوافق",IF(M151=0.03,"متوافق",IF(M151="","","14%"))) ->  | O151: =IF(N151="14%",H151/1.14,"") ->  | P151: =IFERROR(O151*14%,"") -> 
A152: =IF(B152="","",SUBTOTAL(3,$B$7:B152)) ->  | J152: =H152-I152 -> 0 | M152: =IFERROR(I152/H152,"") ->  | N152: =IF(M152=0.01,"متوافق",IF(M152=0.03,"متوافق",IF(M152="","","14%"))) ->  | O152: =IF(N152="14%",H152/1.14,"") ->  | P152: =IFERROR(O152*14%,"") -> 
A153: =IF(B153="","",SUBTOTAL(3,$B$7:B153)) ->  | J153: =H153-I153 -> 0 | M153: =IFERROR(I153/H153,"") ->  | N153: =IF(M153=0.01,"متوافق",IF(M153=0.03,"متوافق",IF(M153="","","14%"))) ->  | O153: =IF(N153="14%",H153/1.14,"") ->  | P153: =IFERROR(O153*14%,"") -> 
A154: =IF(B154="","",SUBTOTAL(3,$B$7:B154)) ->  | J154: =H154-I154 -> 0 | M154: =IFERROR(I154/H154,"") ->  | N154: =IF(M154=0.01,"متوافق",IF(M154=0.03,"متوافق",IF(M154="","","14%"))) ->  | O154: =IF(N154="14%",H154/1.14,"") ->  | P154: =IFERROR(O154*14%,"") -> 
A155: =IF(B155="","",SUBTOTAL(3,$B$7:B155)) ->  | J155: =H155-I155 -> 0 | M155: =IFERROR(I155/H155,"") ->  | N155: =IF(M155=0.01,"متوافق",IF(M155=0.03,"متوافق",IF(M155="","","14%"))) ->  | O155: =IF(N155="14%",H155/1.14,"") ->  | P155: =IFERROR(O155*14%,"") -> 
A156: =IF(B156="","",SUBTOTAL(3,$B$7:B156)) ->  | J156: =H156-I156 -> 0 | M156: =IFERROR(I156/H156,"") ->  | N156: =IF(M156=0.01,"متوافق",IF(M156=0.03,"متوافق",IF(M156="","","14%"))) ->  | O156: =IF(N156="14%",H156/1.14,"") ->  | P156: =IFERROR(O156*14%,"") -> 
A157: =IF(B157="","",SUBTOTAL(3,$B$7:B157)) ->  | J157: =H157-I157 -> 0 | M157: =IFERROR(I157/H157,"") ->  | N157: =IF(M157=0.01,"متوافق",IF(M157=0.03,"متوافق",IF(M157="","","14%"))) ->  | O157: =IF(N157="14%",H157/1.14,"") ->  | P157: =IFERROR(O157*14%,"") -> 
A158: =IF(B158="","",SUBTOTAL(3,$B$7:B158)) ->  | J158: =H158-I158 -> 0 | M158: =IFERROR(I158/H158,"") ->  | N158: =IF(M158=0.01,"متوافق",IF(M158=0.03,"متوافق",IF(M158="","","14%"))) ->  | O158: =IF(N158="14%",H158/1.14,"") ->  | P158: =IFERROR(O158*14%,"") -> 
A159: =IF(B159="","",SUBTOTAL(3,$B$7:B159)) ->  | J159: =H159-I159 -> 0 | M159: =IFERROR(I159/H159,"") ->  | N159: =IF(M159=0.01,"متوافق",IF(M159=0.03,"متوافق",IF(M159="","","14%"))) ->  | O159: =IF(N159="14%",H159/1.14,"") ->  | P159: =IFERROR(O159*14%,"") -> 
A160: =IF(B160="","",SUBTOTAL(3,$B$7:B160)) ->  | J160: =H160-I160 -> 0 | M160: =IFERROR(I160/H160,"") ->  | N160: =IF(M160=0.01,"متوافق",IF(M160=0.03,"متوافق",IF(M160="","","14%"))) ->  | O160: =IF(N160="14%",H160/1.14,"") ->  | P160: =IFERROR(O160*14%,"") -> 
A161: =IF(B161="","",SUBTOTAL(3,$B$7:B161)) ->  | J161: =H161-I161 -> 0 | M161: =IFERROR(I161/H161,"") ->  | N161: =IF(M161=0.01,"متوافق",IF(M161=0.03,"متوافق",IF(M161="","","14%"))) ->  | O161: =IF(N161="14%",H161/1.14,"") ->  | P161: =IFERROR(O161*14%,"") -> 
A162: =IF(B162="","",SUBTOTAL(3,$B$7:B162)) ->  | J162: =H162-I162 -> 0 | M162: =IFERROR(I162/H162,"") ->  | N162: =IF(M162=0.01,"متوافق",IF(M162=0.03,"متوافق",IF(M162="","","14%"))) ->  | O162: =IF(N162="14%",H162/1.14,"") ->  | P162: =IFERROR(O162*14%,"") -> 
A163: =IF(B163="","",SUBTOTAL(3,$B$7:B163)) ->  | J163: =H163-I163 -> 0 | M163: =IFERROR(I163/H163,"") ->  | N163: =IF(M163=0.01,"متوافق",IF(M163=0.03,"متوافق",IF(M163="","","14%"))) ->  | O163: =IF(N163="14%",H163/1.14,"") ->  | P163: =IFERROR(O163*14%,"") -> 
A164: =IF(B164="","",SUBTOTAL(3,$B$7:B164)) ->  | J164: =H164-I164 -> 0 | M164: =IFERROR(I164/H164,"") ->  | N164: =IF(M164=0.01,"متوافق",IF(M164=0.03,"متوافق",IF(M164="","","14%"))) ->  | O164: =IF(N164="14%",H164/1.14,"") ->  | P164: =IFERROR(O164*14%,"") -> 
A165: =IF(B165="","",SUBTOTAL(3,$B$7:B165)) ->  | J165: =H165-I165 -> 0 | M165: =IFERROR(I165/H165,"") ->  | N165: =IF(M165=0.01,"متوافق",IF(M165=0.03,"متوافق",IF(M165="","","14%"))) ->  | O165: =IF(N165="14%",H165/1.14,"") ->  | P165: =IFERROR(O165*14%,"") -> 
A166: =IF(B166="","",SUBTOTAL(3,$B$7:B166)) ->  | J166: =H166-I166 -> 0 | M166: =IFERROR(I166/H166,"") ->  | N166: =IF(M166=0.01,"متوافق",IF(M166=0.03,"متوافق",IF(M166="","","14%"))) ->  | O166: =IF(N166="14%",H166/1.14,"") ->  | P166: =IFERROR(O166*14%,"") -> 
A167: =IF(B167="","",SUBTOTAL(3,$B$7:B167)) ->  | J167: =H167-I167 -> 0 | M167: =IFERROR(I167/H167,"") ->  | N167: =IF(M167=0.01,"متوافق",IF(M167=0.03,"متوافق",IF(M167="","","14%"))) ->  | O167: =IF(N167="14%",H167/1.14,"") ->  | P167: =IFERROR(O167*14%,"") -> 
A168: =IF(B168="","",SUBTOTAL(3,$B$7:B168)) ->  | J168: =H168-I168 -> 0 | M168: =IFERROR(I168/H168,"") ->  | N168: =IF(M168=0.01,"متوافق",IF(M168=0.03,"متوافق",IF(M168="","","14%"))) ->  | O168: =IF(N168="14%",H168/1.14,"") ->  | P168: =IFERROR(O168*14%,"") -> 
A169: =IF(B169="","",SUBTOTAL(3,$B$7:B169)) ->  | J169: =H169-I169 -> 0 | M169: =IFERROR(I169/H169,"") ->  | N169: =IF(M169=0.01,"متوافق",IF(M169=0.03,"متوافق",IF(M169="","","14%"))) ->  | O169: =IF(N169="14%",H169/1.14,"") ->  | P169: =IFERROR(O169*14%,"") -> 
A170: =IF(B170="","",SUBTOTAL(3,$B$7:B170)) ->  | J170: =H170-I170 -> 0 | M170: =IFERROR(I170/H170,"") ->  | N170: =IF(M170=0.01,"متوافق",IF(M170=0.03,"متوافق",IF(M170="","","14%"))) ->  | O170: =IF(N170="14%",H170/1.14,"") ->  | P170: =IFERROR(O170*14%,"") -> 
A171: =IF(B171="","",SUBTOTAL(3,$B$7:B171)) ->  | J171: =H171-I171 -> 0 | M171: =IFERROR(I171/H171,"") ->  | N171: =IF(M171=0.01,"متوافق",IF(M171=0.03,"متوافق",IF(M171="","","14%"))) ->  | O171: =IF(N171="14%",H171/1.14,"") ->  | P171: =IFERROR(O171*14%,"") -> 
A172: =IF(B172="","",SUBTOTAL(3,$B$7:B172)) ->  | J172: =H172-I172 -> 0 | M172: =IFERROR(I172/H172,"") ->  | N172: =IF(M172=0.01,"متوافق",IF(M172=0.03,"متوافق",IF(M172="","","14%"))) ->  | O172: =IF(N172="14%",H172/1.14,"") ->  | P172: =IFERROR(O172*14%,"") -> 
A173: =IF(B173="","",SUBTOTAL(3,$B$7:B173)) ->  | J173: =H173-I173 -> 0 | M173: =IFERROR(I173/H173,"") ->  | N173: =IF(M173=0.01,"متوافق",IF(M173=0.03,"متوافق",IF(M173="","","14%"))) ->  | O173: =IF(N173="14%",H173/1.14,"") ->  | P173: =IFERROR(O173*14%,"") -> 
A174: =IF(B174="","",SUBTOTAL(3,$B$7:B174)) ->  | J174: =H174-I174 -> 0 | M174: =IFERROR(I174/H174,"") ->  | N174: =IF(M174=0.01,"متوافق",IF(M174=0.03,"متوافق",IF(M174="","","14%"))) ->  | O174: =IF(N174="14%",H174/1.14,"") ->  | P174: =IFERROR(O174*14%,"") -> 
A175: =IF(B175="","",SUBTOTAL(3,$B$7:B175)) ->  | J175: =H175-I175 -> 0 | M175: =IFERROR(I175/H175,"") ->  | N175: =IF(M175=0.01,"متوافق",IF(M175=0.03,"متوافق",IF(M175="","","14%"))) ->  | O175: =IF(N175="14%",H175/1.14,"") ->  | P175: =IFERROR(O175*14%,"") -> 
A176: =IF(B176="","",SUBTOTAL(3,$B$7:B176)) ->  | J176: =H176-I176 -> 0 | M176: =IFERROR(I176/H176,"") ->  | N176: =IF(M176=0.01,"متوافق",IF(M176=0.03,"متوافق",IF(M176="","","14%"))) ->  | O176: =IF(N176="14%",H176/1.14,"") ->  | P176: =IFERROR(O176*14%,"") -> 
A177: =IF(B177="","",SUBTOTAL(3,$B$7:B177)) ->  | J177: =H177-I177 -> 0 | M177: =IFERROR(I177/H177,"") ->  | N177: =IF(M177=0.01,"متوافق",IF(M177=0.03,"متوافق",IF(M177="","","14%"))) ->  | O177: =IF(N177="14%",H177/1.14,"") ->  | P177: =IFERROR(O177*14%,"") -> 
A178: =IF(B178="","",SUBTOTAL(3,$B$7:B178)) ->  | J178: =H178-I178 -> 0 | M178: =IFERROR(I178/H178,"") ->  | N178: =IF(M178=0.01,"متوافق",IF(M178=0.03,"متوافق",IF(M178="","","14%"))) ->  | O178: =IF(N178="14%",H178/1.14,"") ->  | P178: =IFERROR(O178*14%,"") -> 
A179: =IF(B179="","",SUBTOTAL(3,$B$7:B179)) ->  | J179: =H179-I179 -> 0 | M179: =IFERROR(I179/H179,"") ->  | N179: =IF(M179=0.01,"متوافق",IF(M179=0.03,"متوافق",IF(M179="","","14%"))) ->  | O179: =IF(N179="14%",H179/1.14,"") ->  | P179: =IFERROR(O179*14%,"") -> 
A180: =IF(B180="","",SUBTOTAL(3,$B$7:B180)) ->  | J180: =H180-I180 -> 0 | M180: =IFERROR(I180/H180,"") ->  | N180: =IF(M180=0.01,"متوافق",IF(M180=0.03,"متوافق",IF(M180="","","14%"))) ->  | O180: =IF(N180="14%",H180/1.14,"") ->  | P180: =IFERROR(O180*14%,"") -> 
A181: =IF(B181="","",SUBTOTAL(3,$B$7:B181)) ->  | J181: =H181-I181 -> 0 | M181: =IFERROR(I181/H181,"") ->  | N181: =IF(M181=0.01,"متوافق",IF(M181=0.03,"متوافق",IF(M181="","","14%"))) ->  | O181: =IF(N181="14%",H181/1.14,"") ->  | P181: =IFERROR(O181*14%,"") -> 
A182: =IF(B182="","",SUBTOTAL(3,$B$7:B182)) ->  | J182: =H182-I182 -> 0 | M182: =IFERROR(I182/H182,"") ->  | N182: =IF(M182=0.01,"متوافق",IF(M182=0.03,"متوافق",IF(M182="","","14%"))) ->  | O182: =IF(N182="14%",H182/1.14,"") ->  | P182: =IFERROR(O182*14%,"") -> 
A183: =IF(B183="","",SUBTOTAL(3,$B$7:B183)) ->  | J183: =H183-I183 -> 0 | M183: =IFERROR(I183/H183,"") ->  | N183: =IF(M183=0.01,"متوافق",IF(M183=0.03,"متوافق",IF(M183="","","14%"))) ->  | O183: =IF(N183="14%",H183/1.14,"") ->  | P183: =IFERROR(O183*14%,"") -> 
A184: =IF(B184="","",SUBTOTAL(3,$B$7:B184)) ->  | J184: =H184-I184 -> 0 | M184: =IFERROR(I184/H184,"") ->  | N184: =IF(M184=0.01,"متوافق",IF(M184=0.03,"متوافق",IF(M184="","","14%"))) ->  | O184: =IF(N184="14%",H184/1.14,"") ->  | P184: =IFERROR(O184*14%,"") -> 
A185: =IF(B185="","",SUBTOTAL(3,$B$7:B185)) ->  | J185: =H185-I185 -> 0 | M185: =IFERROR(I185/H185,"") ->  | N185: =IF(M185=0.01,"متوافق",IF(M185=0.03,"متوافق",IF(M185="","","14%"))) ->  | O185: =IF(N185="14%",H185/1.14,"") ->  | P185: =IFERROR(O185*14%,"") -> 
A186: =IF(B186="","",SUBTOTAL(3,$B$7:B186)) ->  | J186: =H186-I186 -> 0 | M186: =IFERROR(I186/H186,"") ->  | N186: =IF(M186=0.01,"متوافق",IF(M186=0.03,"متوافق",IF(M186="","","14%"))) ->  | O186: =IF(N186="14%",H186/1.14,"") ->  | P186: =IFERROR(O186*14%,"") -> 
A187: =IF(B187="","",SUBTOTAL(3,$B$7:B187)) ->  | J187: =H187-I187 -> 0 | M187: =IFERROR(I187/H187,"") ->  | N187: =IF(M187=0.01,"متوافق",IF(M187=0.03,"متوافق",IF(M187="","","14%"))) ->  | O187: =IF(N187="14%",H187/1.14,"") ->  | P187: =IFERROR(O187*14%,"") -> 
A188: =IF(B188="","",SUBTOTAL(3,$B$7:B188)) ->  | J188: =H188-I188 -> 0 | M188: =IFERROR(I188/H188,"") ->  | N188: =IF(M188=0.01,"متوافق",IF(M188=0.03,"متوافق",IF(M188="","","14%"))) ->  | O188: =IF(N188="14%",H188/1.14,"") ->  | P188: =IFERROR(O188*14%,"") -> 
A189: =IF(B189="","",SUBTOTAL(3,$B$7:B189)) ->  | J189: =H189-I189 -> 0 | M189: =IFERROR(I189/H189,"") ->  | N189: =IF(M189=0.01,"متوافق",IF(M189=0.03,"متوافق",IF(M189="","","14%"))) ->  | O189: =IF(N189="14%",H189/1.14,"") ->  | P189: =IFERROR(O189*14%,"") -> 
A190: =IF(B190="","",SUBTOTAL(3,$B$7:B190)) ->  | J190: =H190-I190 -> 0 | M190: =IFERROR(I190/H190,"") ->  | N190: =IF(M190=0.01,"متوافق",IF(M190=0.03,"متوافق",IF(M190="","","14%"))) ->  | O190: =IF(N190="14%",H190/1.14,"") ->  | P190: =IFERROR(O190*14%,"") -> 
A191: =IF(B191="","",SUBTOTAL(3,$B$7:B191)) ->  | J191: =H191-I191 -> 0 | M191: =IFERROR(I191/H191,"") ->  | N191: =IF(M191=0.01,"متوافق",IF(M191=0.03,"متوافق",IF(M191="","","14%"))) ->  | O191: =IF(N191="14%",H191/1.14,"") ->  | P191: =IFERROR(O191*14%,"") -> 
A192: =IF(B192="","",SUBTOTAL(3,$B$7:B192)) ->  | J192: =H192-I192 -> 0 | M192: =IFERROR(I192/H192,"") ->  | N192: =IF(M192=0.01,"متوافق",IF(M192=0.03,"متوافق",IF(M192="","","14%"))) ->  | O192: =IF(N192="14%",H192/1.14,"") ->  | P192: =IFERROR(O192*14%,"") -> 
A193: =IF(B193="","",SUBTOTAL(3,$B$7:B193)) ->  | J193: =H193-I193 -> 0 | M193: =IFERROR(I193/H193,"") ->  | N193: =IF(M193=0.01,"متوافق",IF(M193=0.03,"متوافق",IF(M193="","","14%"))) ->  | O193: =IF(N193="14%",H193/1.14,"") ->  | P193: =IFERROR(O193*14%,"") -> 
A194: =IF(B194="","",SUBTOTAL(3,$B$7:B194)) ->  | J194: =H194-I194 -> 0 | M194: =IFERROR(I194/H194,"") ->  | N194: =IF(M194=0.01,"متوافق",IF(M194=0.03,"متوافق",IF(M194="","","14%"))) ->  | O194: =IF(N194="14%",H194/1.14,"") ->  | P194: =IFERROR(O194*14%,"") -> 
A195: =IF(B195="","",SUBTOTAL(3,$B$7:B195)) ->  | J195: =H195-I195 -> 0 | M195: =IFERROR(I195/H195,"") ->  | N195: =IF(M195=0.01,"متوافق",IF(M195=0.03,"متوافق",IF(M195="","","14%"))) ->  | O195: =IF(N195="14%",H195/1.14,"") ->  | P195: =IFERROR(O195*14%,"") -> 
A196: =IF(B196="","",SUBTOTAL(3,$B$7:B196)) ->  | J196: =H196-I196 -> 0 | M196: =IFERROR(I196/H196,"") ->  | N196: =IF(M196=0.01,"متوافق",IF(M196=0.03,"متوافق",IF(M196="","","14%"))) ->  | O196: =IF(N196="14%",H196/1.14,"") ->  | P196: =IFERROR(O196*14%,"") -> 
A197: =IF(B197="","",SUBTOTAL(3,$B$7:B197)) ->  | J197: =H197-I197 -> 0 | M197: =IFERROR(I197/H197,"") ->  | N197: =IF(M197=0.01,"متوافق",IF(M197=0.03,"متوافق",IF(M197="","","14%"))) ->  | O197: =IF(N197="14%",H197/1.14,"") ->  | P197: =IFERROR(O197*14%,"") -> 
A198: =IF(B198="","",SUBTOTAL(3,$B$7:B198)) ->  | J198: =H198-I198 -> 0 | M198: =IFERROR(I198/H198,"") ->  | N198: =IF(M198=0.01,"متوافق",IF(M198=0.03,"متوافق",IF(M198="","","14%"))) ->  | O198: =IF(N198="14%",H198/1.14,"") ->  | P198: =IFERROR(O198*14%,"") -> 
A199: =IF(B199="","",SUBTOTAL(3,$B$7:B199)) ->  | J199: =H199-I199 -> 0 | M199: =IFERROR(I199/H199,"") ->  | N199: =IF(M199=0.01,"متوافق",IF(M199=0.03,"متوافق",IF(M199="","","14%"))) ->  | O199: =IF(N199="14%",H199/1.14,"") ->  | P199: =IFERROR(O199*14%,"") -> 
A200: =IF(B200="","",SUBTOTAL(3,$B$7:B200)) ->  | J200: =H200-I200 -> 0 | M200: =IFERROR(I200/H200,"") ->  | N200: =IF(M200=0.01,"متوافق",IF(M200=0.03,"متوافق",IF(M200="","","14%"))) ->  | O200: =IF(N200="14%",H200/1.14,"") ->  | P200: =IFERROR(O200*14%,"") -> 
A201: =IF(B201="","",SUBTOTAL(3,$B$7:B201)) ->  | J201: =H201-I201 -> 0 | M201: =IFERROR(I201/H201,"") ->  | N201: =IF(M201=0.01,"متوافق",IF(M201=0.03,"متوافق",IF(M201="","","14%"))) ->  | O201: =IF(N201="14%",H201/1.14,"") ->  | P201: =IFERROR(O201*14%,"") -> 
A202: =IF(B202="","",SUBTOTAL(3,$B$7:B202)) ->  | J202: =H202-I202 -> 0 | M202: =IFERROR(I202/H202,"") ->  | N202: =IF(M202=0.01,"متوافق",IF(M202=0.03,"متوافق",IF(M202="","","14%"))) ->  | O202: =IF(N202="14%",H202/1.14,"") ->  | P202: =IFERROR(O202*14%,"") -> 
... 253 more rows

Sheet التحليلى
AX1: 00:00:00
A2: شركة الإسكندرية للإنشاءات
A3: مشروع مدينتي 6 | G3: بيان أرصدة أعمال مقاولو مدينتى "عمارات المرحلة السادسة - B7 " عن عام 2025 | AI3: =NOW() -> 2025-01-21T03:54:08.060
A4: 1 | B4: 2* | C4: 3 | F4: 4 | G4: 5 | I4: 6 | J4: 7 | K4: 8 | L4: 9 | M4: 10 | R4: 11 | S4: 12 | T4: 13 | U4: 14 | V4: 15 | W4: 16 | X4: 17 | Y4: 18 | Z4: 18 | AA4: 18 | AB4: 19 | AC4: 20 | AD4: 21 | AE4: 22 | AG4: 23 | AV4: 24 | AW4: 25 | AX4: 26 | AZ4: 29 | BA4: =BA5-AZ126 -> 0.2015
A5: الرصيد | G5: اجمالى الاعمال | K5: =M6-#REF! ->  | L5: =L6-L126 -> 0 | M5: 0 | N5: 0 | O5: 0 | P5: 0 | Q5: 0 | R5: 0 | S5: 0 | T5: 0 | U5: 0 | V5: 0 | W5: 0 | X5: 0 | Y5: 0 | Z5: 0 | AA5: 0 | AB5: 0 | AC5: 0 | AD5: 0 | AE5: 0 | AF5: -10879.1889 | AG5: 0 | AH5: 0 | AI5: 0 | AJ5: 0 | AK5: 0 | AL5: 13796.16911 | AM5: 0 | AN5: -3308865.353 | AO5: -996948.72 | AP5: -1551111.41 | AQ5: -50100.08 | AR5: -27617 | AS5: 0 | AT5: 0 | AU5: 0 | AV5: 0 | AW5: 0 | AX5: 0 | AY5: 0 | AZ5: 0 | BA5: =SUBTOTAL(109,AZ8:AZ125) -> 13796.37061
A6: =AL6 -> 13796.16911 | G6: =M6 -> 66177307.06 | K6: =AZ6-#REF! ->  | L6: =L126 -> 0 | M6: =M126 -> 66177307.06 | R6: =R126 -> 661773.0706 | S6: =S126 -> 21621241.59 | T6: =T126 -> 20855418.49 | U6: =U126 -> 3308865.353 | V6: =V126 -> 0 | W6: =W126 -> 0 | X6: 19288715.69 | Y6: =Y126 -> 1071239.832 | Z6: =Z126 -> 0 | AA6: =AA126 -> 0 | AB6: 70282.83 | AC6: =AC126 -> -65648.72 | AD6: 0 | AE6: 0 | AG6: =AG126 -> 16046.37061 | AH6: =AH126 -> 0 | AK6: =AK126 -> 16046.37061 | AL6: =AZ6 -> 13796.16911 | AS6: =AS126 -> 683088.143 | AU6: =AU126 -> 16046.37061 | AV6: =AV126 -> 2250 | AW6: 0 | AX6: =AX126 -> 0 | AY6: =AY126 -> 13796.37061 | AZ6: =AZ126 -> 13796.16911
A7: كود المقاول | B7: الحركة | C7: إسم المقــــــاول / المورد | D7: النوع | E7: القطاع | F7: المشروع | G7: بند الأعمال | H7: توصيف البند | I7: طبيعة المستخلص | J7: رقم المستخلص | K7: تاريخ المستخلص | L7: القيمه التعاقديه | M7: الاعمال الحالية | N7: ضريبه مضافه 5% | O7: ضريبه مضافه 10% | P7: ضريبه مضافه 14% | Q7: ضريبه مضافه 14%مؤجله شهر نوفمبر 2018 | R7: ضرائب ودمغات | S7: دفعات نقدية | T7: دفعات بشيكات | U7: تأمين أعمال 5% | V7: تامين اعمال نهائي | W7: هالك اعمال | X7: صرف مخازن | Y7: خصومات | Z7: خصومات شدة معدنية | AA7: خصومات فرق استهلاك هندسى | AB7: اعمال بمعرفة الشركة | AC7: تحويلات ارصدة | AD7: الدفعات المقدمة | AE7: استهلاك الدفعات المقدمة | AF7: اخرى | AG7: رصيد الأعمال | AH7: اجمالي القيمة المضافة | AI7: المنصرف من القيمة المضافه | AJ7: رصيد القيمة المضافة | AK7: رصيد الاعمال بعد القيمة المضافة | AL7: ملاحـــــــــظات | AM7: حجم اعمال التوريد والتركيب 5% خلال الشهر | AN7: تأمين بالمستخلص | AO7: دفعات نقدية | AP7: دفعات شيكات | AQ7: خصومات | AR7: اقفال رصيد تامين | AS7: رصيد التأمين | AT7: ملاحـــــظات | AU7: الرصيد قبل التعليه | AV7: تعليه ضريبة مبيعات / عدم تقديم خطاب ضمان / تأمينات اجتماعية | AW7: تعليه تنفيذ | AX7: تعلية استهلاك هندسى | AY7: الرصيد بعد التعليه بدون القيمة المضافة | AZ7: رصيد الاعمال بعد التعلية والقيمة المضافة | BA7: ملاحظات*** | BB7: ملاحظات ( 2 )
A8: 1 | B8: 1 | C8: ياسر محمد محمود علام | D8: مقاول | E8: مدينتى 6 | F8: مركزية | G8: ايجار ميكروباص | I8: جارى | J8: 93 | K8: 2018-10-31 | L8: 0 | M8: 428513.08 | N8: 0 | O8: 0 | P8: 0 | Q8: 0 | R8: 8746.3116 | S8: 231859 | T8: 187903.67 | U8: 0 | V8: 0 | W8: 0 | X8: 0 | Y8: 0 | Z8: 0 | AA8: 0 | AB8: 0 | AC8: 0 | AD8: 0 | AF8: 0 | AG8: =(M8-R8-SUM(S8:AF8))+AD8 -> 4.0984 | AH8: 0 | AI8: 0 | AJ8: 0 | AK8: =AJ8+AG8 -> 4.0984 | AN8: =+U8 -> 0 | AO8: 0 | AP8: 0 | AQ8: 0 | AR8: 0 | AS8: =+AN8-AO8-AP8-AQ8-AR8 -> 0 | AU8: 4.0984 | AV8: 0 | AW8: 0 | AX8: 0 | AY8: =AU8-AW8-AV8-AX8 -> 4.0984 | AZ8: =AY8+AJ8 -> 4.0984
A9: 2 | B9: 2 | C9: عبدالنبى طلب عساف حسين | D9: مقاول | E9: مدينتى 6 | F9: عمارات B7 | G9: نجاره مسلحه | I9: ختامى | J9: 13 | K9: 2014-03-31 | L9: 0 | M9: 119428.17 | N9: 0 | O9: 0 | P9: 0 | Q9: 0 | R9: 598.74085 | S9: 105500 | T9: 7000 | U9: 5971.4085 | V9: 0 | W9: 0 | X9: 0 | Y9: 160 | Z9: 0 | AA9: 0 | AB9: 0 | AC9: 0 | AD9: 0 | AF9: 198.01 | AG9: =(M9-R9-SUM(S9:AF9))+AD9 -> 0.01065 | AH9: 0 | AI9: 0 | AJ9: 0 | AK9: =AJ9+AG9 -> 0.01065 | AN9: 5971.4085 | AO9: 0 | AP9: 0 | AQ9: 0 | AR9: 0 | AS9: =+AN9-AO9-AP9-AQ9-AR9 -> 5971.4085 | AU9: 0.01065 | AV9: 0 | AW9: 0 | AX9: 0 | AY9: 0.01065 | AZ9: 0.01065
A10: 3 | B10: 3 | C10: امجد مختارعبدالعزيز الشيخ | D10: مقاول | E10: مدينتى 6 | F10: عمارات B7 | G10: ايجار دبابه | I10: متوقف | J10: 3 | K10: 2009-12-31 | L10: 0 | M10: 4040 | N10: 0 | O10: 0 | P10: 0 | Q10: 0 | R10: 82 | S10: 3950 | T10: 0 | U10: 0 | V10: 0 | W10: 0 | X10: 0 | Y10: 0 | Z10: 0 | AA10: 0 | AB10: 0 | AC10: 0 | AD10: 0 | AF10: 8 | AG10: 0 | AH10: 0 | AI10: 0 | AJ10: 0 | AK10: 0 | AN10: 0 | AO10: 0 | AP10: 0 | AQ10: 0 | AR10: 0 | AS10: 0 | AU10: 0 | AV10: 0 | AW10: 0 | AX10: 0 | AY10: 0 | AZ10: 0
A11: 4 | B11: 4 | C11: حمدى عبدالرؤف ابراهيم ناصف | D11: مقاول | E11: مدينتى 6 | F11: عمارات B7 | G11: ايجار جرار ومقطورة | I11: متوقف | J11: 9 | K11: 2010-06-30 | L11: 0 | M11: 139292 | N11: 0 | O11: 0 | P11: 0 | Q11: 0 | R11: 2789.04 | S11: 63750 | T11: 71500 | U11: 0 | V11: 0 | W11: 0 | X11: 0 | Y11: 1240 | Z11: 0 | AA11: 0 | AB11: 0 | AC11: 0 | AD11: 0 | AF11: 12.96 | AG11: 0 | AH11: 0 | AI11: 0 | AJ11: 0 | AK11: 0 | AN11: 0 | AO11: 0 | AP11: 0 | AQ11: 0 | AR11: 0 | AS11: 0 | AU11: 0 | AV11: 0 | AW11: 0 | AX11: 0 | AY11: 0 | AZ11: 0
A12: 5 | B12: 5 | C12: عبدالفتاح كامل عبدالمالك احمد | D12: مقاول | E12: مدينتى 6 | F12: عمارات B7 | G12: عماله ومقطوعيات | I12: ختامى | J12: 21 | K12: 2021-02-28 | L12: 0 | M12: 256372.29 | N12: 0 | O12: 0 | P12: 0 | Q12: 0 | R12: 1303.14145 | S12: 192950 | T12: 50000 | U12: 7288.1645 | V12: 0 | W12: 0 | X12: 125 | Y12: 1300 | Z12: 0 | AA12: 0 | AB12: 0 | AC12: 0 | AD12: 0 | AF12: 6.94405 | AG12: 3399.04 | AH12: 0 | AI12: 0 | AJ12: 0 | AK12: 3399.04 | AN12: 7288.1645 | AO12: 0 | AP12: 0 | AQ12: 0 | AR12: 0 | AS12: 7288.1645 | AU12: 3399.04 | AV12: 0 | AW12: 0 | AX12: 0 | AY12: 3399.04 | AZ12: 3399.04
A13: 6 | B13: 6 | C13: محمود محمد عبدالكريم ابراهيم | D13: مقاول | E13: مدينتى 6 | F13: عمارات B7 | G13: ايجار ونش | I13: متوقف | J13: 1 | K13: 2009-11-30 | L13: 0 | M13: 1190 | N13: 0 | O13: 0 | P13: 0 | Q13: 0 | R13: 24.2 | S13: 1100 | T13: 0 | U13: 0 | V13: 0 | W13: 0 | X13: 0 | Y13: 65.8 | Z13: 0 | AA13: 0 | AB13: 0 | AC13: 0 | AD13: 0 | AF13: 0 | AG13: 0 | AH13: 0 | AI13: 0 | AJ13: 0 | AK13: 0 | AN13: 0 | AO13: 0 | AP13: 0 | AQ13: 0 | AR13: 0 | AS13: 0 | AU13: 0 | AV13: 0 | AW13: 0 | AX13: 0 | AY13: 0 | AZ13: 0
A14: 7 | B14: 7 | C14: محمود ابراهيم محمد عبدالرحمن | D14: مقاول | E14: مدينتى 6 | F14: عمارات B7 | G14: ايجار لودر | I14: متوقف | J14: 4 | K14: 2010-01-31 | L14: 0 | M14: 48550 | N14: 0 | O14: 0 | P14: 0 | Q14: 0 | R14: 972.6 | S14: 27550 | T14: 20000 | U14: 0 | V14: 0 | W14: 0 | X14: 0 | Y14: 0 | Z14: 0 | AA14: 0 | AB14: 0 | AC14: 0 | AD14: 0 | AF14: 27.4 | AG14: 0 | AH14: 0 | AI14: 0 | AJ14: 0 | AK14: 0 | AN14: 0 | AO14: 0 | AP14: 0 | AQ14: 0 | AR14: 0 | AS14: 0 | AU14: 0 | AV14: 0 | AW14: 0 | AX14: 0 | AY14: 0 | AZ14: 0
A15: 8 | B15: 8 | C15: رجب حمودة عبدالله شاهين | D15: مقاول | E15: مدينتى 6 | F15: مركزية | G15: ايجار دوبل كابينه | I15: متوقف | J15: 39 | K15: 2012-12-31 | L15: 0 | M15: 143678 | N15: 0 | O15: 0 | P15: 0 | Q15: 0 | R15: 2876.76 | S15: 141000 | T15: 0 | U15: 0 | V15: 0 | W15: 0 | X15: 0 | Y15: -223.25 | Z15: 0 | AA15: 0 | AB15: 0 | AC15: 0 | AD15: 0 | AF15: 24.49 | AG15: 0 | AH15: 0 | AI15: 0 | AJ15: 0 | AK15: 0 | AN15: 0 | AO15: 0 | AP15: 0 | AQ15: 0 | AR15: 0 | AS15: 0 | AU15: 0 | AV15: 0 | AW15: 0 | AX15: 0 | AY15: 0 | AZ15: 0
A16: 9 | B16: 9 | C16: الهدى لتأجير السيارات | D16: مقاول | E16: مدينتى 6 | F16: مركزية | G16: ايجار ملاكى | I16: متوقف | J16: 12 | K16: 2010-09-30 | L16: 0 | M16: 27760 | N16: 0 | O16: 0 | P16: 0 | Q16: 0 | R16: 558.4 | S16: 25695 | T16: 0 | U16: 0 | V16: 0 | W16: 0 | X16: 0 | Y16: 1944 | Z16: 0 | AA16: 0 | AB16: 0 | AC16: -437.4 | AD16: 0 | AF16: 0 | AG16: 0 | AH16: 0 | AI16: 0 | AJ16: 0 | AK16: 0 | AN16: 0 | AO16: 0 | AP16: 0 | AQ16: 0 | AR16: 0 | AS16: 0 | AU16: 0 | AV16: 0 | AW16: 0 | AX16: 0 | AY16: 0 | AZ16: 0
A17: 10 | B17: 10 | C17: الدسوقى هاشم عزب هاشم | D17: مقاول | E17: مدينتى 6 | F17: عمارات B7 | G17: ايجار شاسيه | I17: متوقف | J17: 12 | K17: 2010-10-31 | L17: 0 | M17: 49462.5 | N17: 0 | O17: 0 | P17: 0 | Q17: 0 | R17: 992.05 | S17: 48450 | T17: 0 | U17: 0 | V17: 0 | W17: 0 | X17: 0 | Y17: 0 | Z17: 0 | AA17: 0 | AB17: 0 | AC17: 0 | AD17: 0 | AF17: 20.45 | AG17: 0 | AH17: 0 | AI17: 0 | AJ17: 0 | AK17: 0 | AN17: 0 | AO17: 0 | AP17: 0 | AQ17: 0 | AR17: 0 | AS17: 0 | AU17: 0 | AV17: 0 | AW17: 0 | AX17: 0 | AY17: 0 | AZ17: 0
A18: 11 | B18: 11 | C18: هانى فتحى محمد عفيفى | D18: مقاول | E18: مدينتى 6 | F18: مركزية | G18: ايجار ميكروباص | I18: متوقف | J18: 13 | K18: 2010-10-31 | L18: 0 | M18: 42787.5 | N18: 0 | O18: 0 | P18: 0 | Q18: 0 | R18: 858.95 | S18: 38900 | T18: 0 | U18: 0 | V18: 0 | W18: 0 | X18: 0 | Y18: 0 | Z18: 0 | AA18: 0 | AB18: 0 | AC18: 3000 | AD18: 0 | AF18: 28.55 | AG18: 0 | AH18: 0 | AI18: 0 | AJ18: 0 | AK18: 0 | AN18: 0 | AO18: 0 | AP18: 0 | AQ18: 0 | AR18: 0 | AS18: 0 | AU18: 0 | AV18: 0 | AW18: 0 | AX18: 0 | AY18: 0 | AZ18: 0
A19: 12 | B19: 12 | C19: اسامة جودة عبدالله زيادة | D19: مقاول | E19: مدينتى 6 | F19: عمارات B7 | G19: ايجار ملاكى | I19: متوقف | J19: 5 | K19: 2010-02-28 | L19: 0 | M19: 13702.5 | N19: 0 | O19: 0 | P19: 0 | Q19: 0 | R19: 276.05 | S19: 10800 | T19: 0 | U19: 0 | V19: 0 | W19: 0 | X19: 0 | Y19: 0 | Z19: 0 | AA19: 0 | AB19: 2615 | AC19: 0 | AD19: 0 | AF19: 11.45 | AG19: 0 | AH19: 0 | AI19: 0 | AJ19: 0 | AK19: 0 | AN19: 0 | AO19: 0 | AP19: 0 | AQ19: 0 | AR19: 0 | AS19: 0 | AU19: 0 | AV19: 0 | AW19: 0 | AX19: 0 | AY19: 0 | AZ19: 0
A20: 13 | B20: 13 | C20: المؤسسة المصرية للمولدات الكهربائية | D20: مقاول | E20: مدينتى 6 | F20: عمارات B7 | G20: ايجار مولدات | I20: جارى | J20: 49 | K20: 2013-12-31 | L20: 0 | M20: 2339582.83 | N20: 0 | O20: 0 | P20: 0 | Q20: 0 | R20: 42541.06964 | S20: 275000 | T20: 1992000 | U20: 0 | V20: 0 | W20: 0 | X20: 0 | Y20: 29896.1125 | Z20: 0 | AA20: 0 | AB20: 0 | AC20: 145.65 | AD20: 0 | AF20: 0 | AG20: -0.002136363182 | AH20: 0 | AI20: 0 | AJ20: 0 | AK20: -0.002136363182 | AN20: 0 | AO20: 0 | AP20: 0 | AQ20: 0 | AR20: 0 | AS20: 0 | AU20: -0.002136363182 | AV20: 0 | AW20: 0 | AX20: 0 | AY20: -0.002136363182 | AZ20: -0.002136363182
A21: 14 | B21: 14 | C21: حسن حسين السيسى | D21: مقاول | E21: مدينتى 6 | F21: عمارات B7 | G21: ايجار ميكروباص | I21: متوقف | J21: 3 | K21: 2010-01-31 | L21: 0 | M21: 9461.25 | N21: 0 | O21: 0 | P21: 0 | Q21: 0 | R21: 190.425 | S21: 9450 | T21: 0 | U21: 0 | V21: 0 | W21: 0 | X21: 0 | Y21: 0 | Z21: 0 | AA21: 0 | AB21: 0 | AC21: -250 | AD21: 0 | AF21: 70.825 | AG21: 0 | AH21: 0 | AI21: 0 | AJ21: 0 | AK21: 0 | AN21: 0 | AO21: 0 | AP21: 0 | AQ21: 0 | AR21: 0 | AS21: 0 | AU21: 0 | AV21: 0 | AW21: 0 | AX21: 0 | AY21: 0 | AZ21: 0
A22: 15 | B22: 15 | C22: السيد محمد السيد السعيد | D22: مقاول | E22: مدينتى 6 | F22: عمارات B7 | G22: ايجار دوبل كابينه | I22: متوقف | J22: 1 | K22: 2009-11-30 | L22: 0 | M22: 2605 | N22: 0 | O22: 0 | P22: 0 | Q22: 0 | R22: 52.5 | S22: 2400 | T22: 0 | U22: 0 | V22: 0 | W22: 0 | X22: 0 | Y22: 120 | Z22: 0 | AA22: 0 | AB22: 0 | AC22: 0 | AD22: 0 | AF22: 32.5 | AG22: 0 | AH22: 0 | AI22: 0 | AJ22: 0 | AK22: 0 | AN22: 0 | AO22: 0 | AP22: 0 | AQ22: 0 | AR22: 0 | AS22: 0 | AU22: 0 | AV22: 0 | AW22: 0 | AX22: 0 | AY22: 0 | AZ22: 0
A23: 16 | B23: 16 | C23: كامل دسوقى كامل سالم | D23: مقاول | E23: مدينتى 6 | F23: عمارات B7 | G23: ايجار دوبل كابينه | I23: متوقف | J23: 8 | K23: 2012-10-31 | L23: 0 | M23: 18133 | N23: 0 | O23: 0 | P23: 0 | Q23: 0 | R23: 363.06 | S23: 17600 | T23: 0 | U23: 0 | V23: 0 | W23: 0 | X23: 0 | Y23: 168.75 | Z23: 0 | AA23: 0 | AB23: 0 | AC23: 0 | AD23: 0 | AF23: 1.19 | AG23: 0 | AH23: 0 | AI23: 0 | AJ23: 0 | AK23: 0 | AN23: 0 | AO23: 0 | AP23: 0 | AQ23: 0 | AR23: 0 | AS23: 0 | AU23: 0 | AV23: 0 | AW23: 0 | AX23: 0 | AY23: 0 | AZ23: 0
A24: 17 | B24: 17 | C24: وليد فتحى محمود عبدالحافظ | D24: مقاول | E24: مدينتى 6 | F24: عمارات B7 | G24: ايجار ميكروباص | I24: متوقف | J24: 1 | K24: 2009-11-20 | L24: 0 | M24: 1320 | N24: 0 | O24: 0 | P24: 0 | Q24: 0 | R24: 26.8 | S24: 1250 | T24: 0 | U24: 0 | V24: 0 | W24: 0 | X24: 0 | Y24: 0 | Z24: 0 | AA24: 0 | AB24: 0 | AC24: 0 | AD24: 0 | AF24: 43.2 | AG24: 0 | AH24: 0 | AI24: 0 | AJ24: 0 | AK24: 0 | AN24: 0 | AO24: 0 | AP24: 0 | AQ24: 0 | AR24: 0 | AS24: 0 | AU24: 0 | AV24: 0 | AW24: 0 | AX24: 0 | AY24: 0 | AZ24: 0
A25: 18 | B25: 18 | C25: ناصر عبدالعال عمران احمد | D25: مقاول | E25: مدينتى 6 | F25: عمارات B7 | G25: ايجار ميكروباص | I25: متوقف | J25: 4 | K25: 2010-02-28 | L25: 0 | M25: 12510 | N25: 0 | O25: 0 | P25: 0 | Q25: 0 | R25: 251.8 | S25: 12258.2 | T25: 0 | U25: 0 | V25: 0 | W25: 0 | X25: 0 | Y25: 0 | Z25: 0 | AA25: 0 | AB25: 0 | AC25: 0 | AD25: 0 | AF25: 0 | AG25: 0 | AH25: 0 | AI25: 0 | AJ25: 0 | AK25: 0 | AN25: 0 | AO25: 0 | AP25: 0 | AQ25: 0 | AR25: 0 | AS25: 0 | AU25: 0 | AV25: 0 | AW25: 0 | AX25: 0 | AY25: 0 | AZ25: 0
A26: 19 | B26: 19 | C26: السيد ابوالحمد محمد سليمان | D26: مقاول | E26: مدينتى 6 | F26: عمارات B7 | G26: حفر وردم | I26: متوقف | J26: 3 | K26: 2010-01-31 | L26: 0 | M26: 155651.03 | N26: 0 | O26: 0 | P26: 0 | Q26: 0 | R26: 779.45515 | S26: 50000 | T26: 50000 | U26: 26.55 | V26: 0 | W26: 0 | X26: 0 | Y26: 54845.02 | Z26: 0 | AA26: 0 | AB26: 0 | AC26: 0 | AD26: 0 | AF26: 0 | AG26: 0.004849999998 | AH26: 0 | AI26: 0 | AJ26: 0 | AK26: 0.004849999998 | AN26: 26.55 | AO26: 0 | AP26: 0 | AQ26: 0 | AR26: 26.55 | AS26: 0 | AU26: 0.004849999998 | AV26: 0 | AW26: 0 | AX26: 0 | AY26: 0.004849999998 | AZ26: 0.004849999998
A27: 20 | B27: 20 | C27: احمد محمد صلاح احمد | D27: مقاول | E27: مدينتى 6 | F27: تسويات B7 | G27: حفر وردم | I27: ختامى | J27: 11 | K27: 2013-05-31 | L27: 0 | M27: 842855.92 | N27: 0 | O27: 0 | P27: 0 | Q27: 0 | R27: 5094.3671 | S27: 317000 | T27: 570000 | U27: 39217.171 | V27: 0 | W27: 0 | X27: 0 | Y27: 15797.1 | Z27: 0 | AA27: 0 | AB27: 0 | AC27: -104252.72 | AD27: 0 | AF27: 0 | AG27: 0.001900000032 | AH27: 0 | AI27: 0 | AJ27: 0 | AK27: 0.001900000032 | AN27: 39217.171 | AO27: 37932.92 | AP27: 0 | AQ27: 1267 | AR27: 17.32 | AS27: -0.069 | AU27: 0.001900000032 | AV27: 0 | AW27: 0 | AX27: 0 | AY27: 0.001900000032 | AZ27: 0.001900000032 | BA27: اقفال رصيد التامين مذكرة من الادارة المالية
A28: 21 | B28: 21 | C28: فوزية عبدالخالق عبدالحليم جينة | D28: مقاول | E28: مدينتى 6 | F28: عمارات B7 | G28: ايجار دوبل كابينه | I28: متوقف | J28: 1 | K28: 2009-12-31 | L28: 0 | M28: 3519 | N28: 0 | O28: 0 | P28: 0 | Q28: 0 | R28: 70.78 | S28: 3400 | T28: 0 | U28: 0 | V28: 0 | W28: 0 | X28: 0 | Y28: 0 | Z28: 0 | AA28: 0 | AB28: 0 | AC28: 0 | AD28: 0 | AF28: 48.22 | AG28: 0 | AH28: 0 | AI28: 0 | AJ28: 0 | AK28: 0 | AN28: 0 | AO28: 0 | AP28: 0 | AQ28: 0 | AR28: 0 | AS28: 0 | AU28: 0 | AV28: 0 | AW28: 0 | AX28: 0 | AY28: 0 | AZ28: 0
A29: 22 | B29: 22 | C29: اشرف عبدالعزيز ابوالسعود هلال | D29: مقاول | E29: مدينتى 6 | F29: مركزية | G29: ايجار ملاكى | I29: جارى | J29: 43 | K29: 2013-12-31 | L29: 0 | M29: 128310 | N29: 0 | O29: 0 | P29: 0 | Q29: 0 | R29: 2569 | S29: 106491 | T29: 19250 | U29: 0 | V29: 0 | W29: 0 | X29: 0 | Y29: 0 | Z29: 0 | AA29: 0 | AB29: 0 | AC29: 0 | AD29: 0 | AF29: 0 | AG29: 0 | AH29: 0 | AI29: 0 | AJ29: 0 | AK29: 0 | AN29: 0 | AO29: 0 | AP29: 0 | AQ29: 0 | AR29: 0 | AS29: 0 | AU29: 0 | AV29: 0 | AW29: 0 | AX29: 0 | AY29: 0 | AZ29: 0
A30: 23 | B30: 23 | C30: اس جى جروب للتجارة والمقاولات ( خميس جابر وشريكة) | D30: مقاول | E30: مدينتى 6 | F30: عمارات B7 | G30: صحى | I30: متوقف | J30: 6 | K30: 2011-06-30 | L30: 0 | M30: 177527.3 | N30: 0 | O30: 0 | P30: 0 | Q30: 0 | R30: 888.8365 | S30: 129000 | T30: 33000 | U30: 8876.365 | V30: 0 | W30: 0 | X30: 0 | Y30: 0 | Z30: 0 | AA30: 0 | AB30: 0 | AC30: 5762.1 | AD30: 0 | AF30: 0 | AG30: -0.001499999984 | AH30: 0 | AI30: 0 | AJ30: 0 | AK30: -0.001499999984 | AN30: 8876.365 | AO30: 0 | AP30: 0 | AQ30: 0 | AR30: 0 | AS30: 8876.365 | AU30: -0.001499999984 | AV30: 0 | AW30: 0 | AX30: 0 | AY30: -0.001499999984 | AZ30: -0.001499999984
A31: 24 | B31: 24 | C31: حميدة عبدالله السيد بدير | D31: مقاول | E31: مدينتى 6 | F31: مركزية | G31: ايجار دبابه | I31: متوقف | J31: 7 | K31: 2010-06-30 | L31: 0 | M31: 11445 | N31: 0 | O31: 0 | P31: 0 | Q31: 0 | R31: 231.3 | S31: 11213.7 | T31: 0 | U31: 0 | V31: 0 | W31: 0 | X31: 0 | Y31: 0 | Z31: 0 | AA31: 0 | AB31: 0 | AC31: 0 | AD31: 0 | AF31: 0 | AG31: 0 | AH31: 0 | AI31: 0 | AJ31: 0 | AK31: 0 | AN31: 0 | AO31: 0 | AP31: 0 | AQ31: 0 | AR31: 0 | AS31: 0 | AU31: 0 | AV31: 0 | AW31: 0 | AX31: 0 | AY31: 0 | AZ31: 0
A32: 25 | B32: 25 | C32: على سامى على احمد | D32: مقاول | E32: مدينتى 6 | F32: عمارات B7 | G32: مبانى | I32: ختامى | J32: 2 | K32: 2014-03-31 | L32: 0 | M32: 3126.5 | N32: 0 | O32: 0 | P32: 0 | Q32: 0 | R32: 16.0325 | S32: 3000 | T32: 0 | U32: 110.465 | V32: 0 | W32: 0 | X32: 0 | Y32: 0 | Z32: 0 | AA32: 0 | AB32: 0 | AC32: 0 | AD32: 0 | AF32: 0 | AG32: 0.0025 | AH32: 0 | AI32: 0 | AJ32: 0 | AK32: 0.0025 | AN32: 110.465 | AO32: 0 | AP32: 0 | AQ32: 0 | AR32: 110.47 | AS32: -0.005 | AU32: 0.0025 | AV32: 0 | AW32: 0 | AX32: 0 | AY32: 0.0025 | AZ32: 0.0025
A33: 26 | B33: 26 | C33: شركة الشمس للمقاولات | D33: مقاول | E33: مدينتى 6 | F33: عمارات B7 | G33: حفر وردم | I33: متوقف | J33: 5 | K33: 2010-05-31 | L33: 0 | M33: 457314.58 | N33: 0 | O33: 0 | P33: 0 | Q33: 0 | R33: 2288.57 | S33: 180000 | T33: 237888 | U33: 22865.729 | V33: 0 | W33: 0 | X33: 0 | Y33: 14272.27 | Z33: 0 | AA33: 0 | AB33: 0 | AC33: 0 | AD33: 0 | AF33: 0.01 | AG33: 0.0009999999893 | AH33: 0 | AI33: 0 | AJ33: 0 | AK33: 0.0009999999893 | AN33: 22865.729 | AO33: 0 | AP33: 0 | AQ33: 10937.25 | AR33: 0 | AS33: 11928.479 | AU33: 0.0009999999893 | AV33: 0 | AW33: 0 | AX33: 0 | AY33: 0.0009999999893 | AZ33: 0.0009999999893
A34: 27 | B34: 27 | C34: سامح الدسوقى لطفى الحجر | D34: مقاول | E34: مدينتى 6 | F34: مرافق B7 | G34: ايجار ملاكى | I34: متوقف | J34: 10 | K34: 2010-09-30 | L34: 0 | M34: 22140 | N34: 0 | O34: 0 | P34: 0 | Q34: 0 | R34: 445.2 | S34: 21300 | T34: 0 | U34: 0 | V34: 0 | W34: 0 | X34: 0 | Y34: 376 | Z34: 0 | AA34: 0 | AB34: 0 | AC34: 0 | AD34: 0 | AF34: 18.8 | AG34: 0 | AH34: 0 | AI34: 0 | AJ34: 0 | AK34: 0 | AN34: 0 | AO34: 0 | AP34: 0 | AQ34: 0 | AR34: 0 | AS34: 0 | AU34: 0 | AV34: 0 | AW34: 0 | AX34: 0 | AY34: 0 | AZ34: 0
A35: 28 | B35: 28 | C35: محمد ابراهيم سالمان متولى | D35: مقاول | E35: مدينتى 6 | F35: عمارات B7 | G35: ايجار دوبل كابينه | I35: متوقف | J35: 2 | K35: 2010-01-31 | L35: 0 | M35: 1300 | N35: 0 | O35: 0 | P35: 0 | Q35: 0 | R35: 26.8 | S35: 1200 | T35: 0 | U35: 0 | V35: 0 | W35: 0 | X35: 0 | Y35: 0 | Z35: 0 | AA35: 0 | AB35: 0 | AC35: 0 | AD35: 0 | AF35: 73.2 | AG35: 0 | AH35: 0 | AI35: 0 | AJ35: 0 | AK35: 0 | AN35: 0 | AO35: 0 | AP35: 0 | AQ35: 0 | AR35: 0 | AS35: 0 | AU35: 0 | AV35: 0 | AW35: 0 | AX35: 0 | AY35: 0 | AZ35: 0
A36: 29 | B36: 29 | C36: مصطفى محمود مصطفى محمود | D36: مقاول | E36: مدينتى 6 | F36: مركزية | G36: ايجار ملاكى | I36: جارى | J36: 66 | K36: 2019-06-30 | L36: 0 | M36: 197475 | N36: 0 | O36: 0 | P36: 0 | Q36: 0 | R36: 4371.75 | S36: 72750 | T36: 119350 | U36: 0 | V36: 0 | W36: 0 | X36: 0 | Y36: 450 | Z36: 0 | AA36: 0 | AB36: 0 | AC36: 515.25 | AD36: 0 | AF36: 38 | AG36: 0 | AH36: 0 | AI36: 0 | AJ36: 0 | AK36: 0 | AN36: 0 | AO36: 0 | AP36: 0 | AQ36: 0 | AR36: 0 | AS36: 0 | AU36: 0 | AV36: 0 | AW36: 0 | AX36: 0 | AY36: 0 | AZ36: 0
A37: 30 | B37: 30 | C37: محمد عبدالعظيم احمد سند | D37: مقاول | E37: مدينتى 6 | F37: عمارات B7 | G37: ايجار ملاكى | I37: متوقف | J37: 36 | K37: 2012-11-30 | L37: 0 | M37: 86080 | N37: 0 | O37: 0 | P37: 0 | Q37: 0 | R37: 1724 | S37: 80650 | T37: 0 | U37: 0 | V37: 0 | W37: 0 | X37: 0 | Y37: 3692.12 | Z37: 0 | AA37: 0 | AB37: 0 | AC37: 0 | AD37: 0 | AF37: 13.88 | AG37: 0 | AH37: 0 | AI37: 0 | AJ37: 0 | AK37: 0 | AN37: 0 | AO37: 0 | AP37: 0 | AQ37: 0 | AR37: 0 | AS37: 0 | AU37: 0 | AV37: 0 | AW37: 0 | AX37: 0 | AY37: 0 | AZ37: 0
A38: 31 | B38: 31 | C38: طارق بسيونى حسين سليمان | D38: مقاول | E38: مدينتى 6 | F38: عمارات B7 | G38: ايجار ملاكى | I38: متوقف | J38: 17 | K38: 2011-04-30 | L38: 0 | M38: 39520 | N38: 0 | O38: 0 | P38: 0 | Q38: 0 | R38: 792.8 | S38: 37445 | T38: 0 | U38: 0 | V38: 0 | W38: 0 | X38: 0 | Y38: 1282 | Z38: 0 | AA38: 0 | AB38: 0 | AC38: 0 | AD38: 0 | AF38: 0.2 | AG38: 0 | AH38: 0 | AI38: 0 | AJ38: 0 | AK38: 0 | AN38: 0 | AO38: 0 | AP38: 0 | AQ38: 0 | AR38: 0 | AS38: 0 | AU38: 0 | AV38: 0 | AW38: 0 | AX38: 0 | AY38: 0 | AZ38: 0
A39: 32 | B39: 32 | C39: سيد محمد عبدالسميع حسن | D39: مقاول | E39: مدينتى 6 | F39: مركزية | G39: ايجار ميكروباص | I39: متوقف | J39: 5 | K39: 2010-04-30 | L39: 0 | M39: 24307.5 | N39: 0 | O39: 0 | P39: 0 | Q39: 0 | R39: 488.15 | S39: 20819.35 | T39: 3000 | U39: 0 | V39: 0 | W39: 0 | X39: 0 | Y39: 0 | Z39: 0 | AA39: 0 | AB39: 0 | AC39: 0 | AD39: 0 | AF39: 0 | AG39: 0 | AH39: 0 | AI39: 0 | AJ39: 0 | AK39: 0 | AN39: 0 | AO39: 0 | AP39: 0 | AQ39: 0 | AR39: 0 | AS39: 0 | AU39: 0 | AV39: 0 | AW39: 0 | AX39: 0 | AY39: 0 | AZ39: 0
A40: 33 | B40: 33 | C40: اميمة مسعود احمد محمد | D40: مقاول | E40: مدينتى 6 | F40: عمارات B7 | G40: ايجار لودر | I40: متوقف | J40: 36 | K40: 2012-11-30 | L40: 0 | M40: 267240 | N40: 0 | O40: 0 | P40: 0 | Q40: 0 | R40: 5347.2 | S40: 139350 | T40: 120000 | U40: 0 | V40: 0 | W40: 0 | X40: 0 | Y40: 2520 | Z40: 0 | AA40: 0 | AB40: 0 | AC40: 0 | AD40: 0 | AF40: 22.8 | AG40: 0 | AH40: 0 | AI40: 0 | AJ40: 0 | AK40: 0 | AN40: 0 | AO40: 0 | AP40: 0 | AQ40: 0 | AR40: 0 | AS40: 0 | AU40: 0 | AV40: 0 | AW40: 0 | AX40: 0 | AY40: 0 | AZ40: 0
A41: 34 | B41: 34 | C41: محسن حنفى عبدالرحيم محمد | D41: مقاول | E41: مدينتى 6 | F41: عمارات B7 | G41: ايجار اتوبيس | I41: متوقف | J41: 1 | K41: 2010-01-31 | L41: 0 | M41: 6600 | N41: 0 | O41: 0 | P41: 0 | Q41: 0 | R41: 132.4 | S41: 6467.6 | T41: 0 | U41: 0 | V41: 0 | W41: 0 | X41: 0 | Y41: 0 | Z41: 0 | AA41: 0 | AB41: 0 | AC41: 0 | AD41: 0 | AF41: 0 | AG41: 0 | AH41: 0 | AI41: 0 | AJ41: 0 | AK41: 0 | AN41: 0 | AO41: 0 | AP41: 0 | AQ41: 0 | AR41: 0 | AS41: 0 | AU41: 0 | AV41: 0 | AW41: 0 | AX41: 0 | AY41: 0 | AZ41: 0
A42: 35 | B42: 35 | C42: محمد احمد عبدالله سيد | D42: مقاول | E42: مدينتى 6 | F42: عمارات B7 | G42: ايجار لودر | I42: متوقف | J42: 27 | K42: 2012-10-31 | L42: 0 | M42: 163807.5 | N42: 0 | O42: 0 | P42: 0 | Q42: 0 | R42: 3276.95 | S42: 133050.8 | T42: 24000 | U42: 0 | V42: 0 | W42: 0 | X42: 0 | Y42: 2765.62 | Z42: 0 | AA42: 0 | AB42: 700 | AC42: 0 | AD42: 0 | AF42: 14.13 | AG42: 0 | AH42: 0 | AI42: 0 | AJ42: 0 | AK42: 0 | AN42: 0 | AO42: 0 | AP42: 0 | AQ42: 0 | AR42: 0 | AS42: 0 | AU42: 0 | AV42: 0 | AW42: 0 | AX42: 0 | AY42: 0 | AZ42: 0
A43: 36 | B43: 36 | C43: عراقى امين عليوة محمود | D43: مقاول | E43: مدينتى 6 | F43: عمارات B7 | G43: ايجار دبابه | I43: متوقف | J43: 2 | K43: 2010-02-28 | L43: 0 | M43: 5185 | N43: 0 | O43: 0 | P43: 0 | Q43: 0 | R43: 104.5 | S43: 5000 | T43: 0 | U43: 0 | V43: 0 | W43: 0 | X43: 0 | Y43: 0 | Z43: 0 | AA43: 0 | AB43: 0 | AC43: 0 | AD43: 0 | AF43: 80.5 | AG43: 0 | AH43: 0 | AI43: 0 | AJ43: 0 | AK43: 0 | AN43: 0 | AO43: 0 | AP43: 0 | AQ43: 0 | AR43: 0 | AS43: 0 | AU43: 0 | AV43: 0 | AW43: 0 | AX43: 0 | AY43: 0 | AZ43: 0
A44: 37 | B44: 37 | C44: هشام سيد احمد | D44: مقاول | E44: مدينتى 6 | F44: عمارات B7 | G44: اسقف معلقة | I44: متوقف | J44: 1 | K44: 2010-01-31 | L44: 0 | M44: 5079 | N44: 0 | O44: 0 | P44: 0 | Q44: 0 | R44: 25.795 | S44: 4500 | T44: 0 | U44: 253.95 | V44: 0 | W44: 0 | X44: 0 | Y44: 0 | Z44: 0 | AA44: 0 | AB44: 0 | AC44: 0 | AD44: 0 | AF44: 299.25 | AG44: 0.005 | AH44: 0 | AI44: 0 | AJ44: 0 | AK44: 0.005 | AN44: 253.95 | AO44: 0 | AP44: 0 | AQ44: 0 | AR44: 253.95 | AS44: 0 | AU44: 0.005 | AV44: 0 | AW44: 0 | AX44: 0 | AY44: 0.005 | AZ44: 0.005
A45: 38 | B45: 38 | C45: محمد عبدالله سليمان سيد | D45: مقاول | E45: مدينتى 6 | F45: عمارات B7 | G45: نجاره مسلحه | I45: ختامى | J45: 15 | K45: 2014-03-31 | L45: 0 | M45: 130498.14 | N45: 0 | O45: 0 | P45: 0 | Q45: 0 | R45: 653.6907 | S45: 109500 | T45: 0 | U45: 6524.907 | V45: 0 | W45: 0 | X45: 5793.9 | Y45: 7945 | Z45: 0 | AA45: 0 | AB45: 0 | AC45: 0 | AD45: 0 | AF45: 77.7 | AG45: 2.9423 | AH45: 0 | AI45: 0 | AJ45: 0 | AK45: 2.9423 | AN45: 6524.907 | AO45: 3274.91 | AP45: 3250 | AQ45: 0 | AR45: 0 | AS45: -0.003000000001 | AU45: 2.9423 | AV45: 0 | AW45: 0 | AX45: 0 | AY45: 2.9423 | AZ45: 2.9423
A46: 39 | B46: 39 | C46: سلطان محمود عطية حسن | D46: مقاول | E46: مدينتى 6 | F46: عمارات B7 | G46: نجاره مسلحه | I46: ختامى | J46: 7 | K46: 2014-03-31 | L46: 0 | M46: 58722 | N46: 0 | O46: 0 | P46: 0 | Q46: 0 | R46: 294.81 | S46: 51300 | T46: 0 | U46: 2936.11 | V46: 0 | W46: 0 | X46: 2962.5 | Y46: 1000 | Z46: 0 | AA46: 0 | AB46: 0 | AC46: 0 | AD46: 0 | AF46: 228.57 | AG46: 0.01 | AH46: 0 | AI46: 0 | AJ46: 0 | AK46: 0.01 | AN46: 2936.11 | AO46: 0 | AP46: 0 | AQ46: 0 | AR46: 2936.11 | AS46: 0 | AU46: 0.01 | AV46: 0 | AW46: 0 | AX46: 0 | AY46: 0.01 | AZ46: 0.01
A47: 40 | B47: 40 | C47: منصور سليمان جويقل سليمان | D47: مقاول | E47: مدينتى 6 | F47: عمارات B7 | G47: ايجار دوبل كابينه | I47: متوقف | J47: 2 | K47: 2010-02-28 | L47: 0 | M47: 5058 | N47: 0 | O47: 0 | P47: 0 | Q47: 0 | R47: 101.96 | S47: 4950 | T47: 0 | U47: 0 | V47: 0 | W47: 0 | X47: 0 | Y47: 0 | Z47: 0 | AA47: 0 | AB47: 0 | AC47: 0 | AD47: 0 | AF47: 6.04 | AG47: 0 | AH47: 0 | AI47: 0 | AJ47: 0 | AK47: 0 | AN47: 0 | AO47: 0 | AP47: 0 | AQ47: 0 | AR47: 0 | AS47: 0 | AU47: 0 | AV47: 0 | AW47: 0 | AX47: 0 | AY47: 0 | AZ47: 0
A48: 41 | B48: 41 | C48: مهاود عويضة يوسف | D48: مقاول | E48: مدينتى 6 | F48: عمارات B7 | G48: نجاره مسلحه | I48: ختامى | J48: 21 | K48: 2014-03-31 | L48: 0 | M48: 1629663.5 | N48: 0 | O48: 0 | P48: 0 | Q48: 0 | R48: 8149.9175 | S48: 903500 | T48: 453000 | U48: 81483.175 | V48: 0 | W48: 0 | X48: 38062 | Y48: 138378.85 | Z48: 0 | AA48: 0 | AB48: 0 | AC48: 7000 | AD48: 0 | AF48: 89.56 | AG48: -0.002500000177 | AH48: 0 | AI48: 0 | AJ48: 0 | AK48: -0.002500000177 | AN48: 81483.175 | AO48: 0 | AP48: 0 | AQ48: 0 | AR48: 0 | AS48: 81483.175 | AU48: -0.002500000177 | AV48: 0 | AW48: 0 | AX48: 0 | AY48: -0.002500000177 | AZ48: -0.002500000177
A49: 42 | B49: 42 | C49: عبدالله محمد سليمان | D49: مقاول | E49: مدينتى 6 | F49: عمارات B7 | G49: حداده | I49: ختامى | J49: 5 | K49: 2014-03-31 | L49: 0 | M49: 80422 | N49: 0 | O49: 0 | P49: 0 | Q49: 0 | R49: 403.71 | S49: 65500 | T49: 0 | U49: 4021.1 | V49: 0 | W49: 0 | X49: 5591 | Y49: 3930 | Z49: 0 | AA49: 0 | AB49: 0 | AC49: 0 | AD49: 0 | AF49: 976.19 | AG49: -1.455191523e-11 | AH49: 0 | AI49: 0 | AJ49: 0 | AK49: -1.455191523e-11 | AN49: 4021.1 | AO49: 0 | AP49: 0 | AQ49: 0 | AR49: 0 | AS49: 4021.1 | AU49: -1.455191523e-11 | AV49: 0 | AW49: 0 | AX49: 0 | AY49: -1.455191523e-11 | AZ49: -1.455191523e-11
A50: 43 | B50: 43 | C50: طلعت بدر على على | D50: مقاول | E50: مدينتى 6 | F50: عمارات B7 | G50: تطهير خشب | I50: ختامى | J50: 6 | K50: 2014-03-31 | L50: 0 | M50: 22996 | N50: 0 | O50: 0 | P50: 0 | Q50: 0 | R50: 115.78 | S50: 21500 | T50: 0 | U50: 1149.8 | V50: 0 | W50: 0 | X50: 0 | Y50: 0 | Z50: 0 | AA50: 0 | AB50: 200 | AC50: 0 | AD50: 0 | AF50: 30.42 | AG50: 3.637978807e-12 | AH50: 0 | AI50: 0 | AJ50: 0 | AK50: 3.637978807e-12 | AN50: 1149.8 | AO50: 0 | AP50: 0 | AQ50: 0 | AR50: 1149.8 | AS50: 0 | AU50: 3.637978807e-12 | AV50: 0 | AW50: 0 | AX50: 0 | AY50: 3.637978807e-12 | AZ50: 3.637978807e-12
A51: 44 | B51: 44 | C51: محمد ابراهيم عطية سليمان | D51: مقاول | E51: مدينتى 6 | F51: عمارات B7 | G51: ايجار دبابه | I51: متوقف | J51: 2 | K51: 2010-02-28 | L51: 0 | M51: 4570 | N51: 0 | O51: 0 | P51: 0 | Q51: 0 | R51: 92.2 | S51: 4477.8 | T51: 0 | U51: 0 | V51: 0 | W51: 0 | X51: 0 | Y51: 400 | Z51: 0 | AA51: 0 | AB51: 0 | AC51: -400 | AD51: 0 | AF51: 0 | AG51: 0 | AH51: 0 | AI51: 0 | AJ51: 0 | AK51: 0 | AN51: 0 | AO51: 0 | AP51: 0 | AQ51: 0 | AR51: 0 | AS51: 0 | AU51: 0 | AV51: 0 | AW51: 0 | AX51: 0 | AY51: 0 | AZ51: 0
A52: 45 | B52: 45 | C52: عبدالحميد محمد حسين | D52: مقاول | E52: مدينتى 6 | F52: عمارات B7 | G52: حداده | I52: ختامى | J52: 33 | K52: 2015-08-31 | L52: 0 | M52: 1447890 | N52: 0 | O52: 0 | P52: 0 | Q52: 0 | R52: 7241.45 | S52: 908500 | T52: 365000 | U52: 72394.5 | V52: 0 | W52: 0 | X52: 74396.25 | Y52: 19313.5 | Z52: 0 | AA52: 0 | AB52: 0 | AC52: 0 | AD52: 0 | AF52: 0.05 | AG52: 1044.25 | AH52: 0 | AI52: 0 | AJ52: 0 | AK52: 1044.25 | AN52: 72394.5 | AO52: 48394.5 | AP52: 24000 | AQ52: 0 | AR52: 0 | AS52: 0 | AU52: 1044.25 | AV52: 0 | AW52: 0 | AX52: 0 | AY52: 1044.25 | AZ52: 1044.25
A53: 46 | B53: 46 | C53: اسماعيل كمال محمد عبدالفتاح | D53: مقاول | E53: مدينتى 6 | F53: عمارات B7 | G53: نجاره وحداده مسلحه | I53: ختامى | J53: 22 | K53: 2013-09-30 | L53: 0 | M53: 1054504.6 | N53: 0 | O53: 0 | P53: 0 | Q53: 0 | R53: 5274.523 | S53: 843050 | T53: 55000 | U53: 52725.23 | V53: 0 | W53: 0 | X53: 77532.5 | Y53: 21087.15 | Z53: 0 | AA53: 0 | AB53: 0 | AC53: -364.71 | AD53: 0 | AF53: 199.91 | AG53: -0.002999999793 | AH53: 0 | AI53: 0 | AJ53: 0 | AK53: -0.002999999793 | AN53: 52725.23 | AO53: 0 | AP53: 52725.23 | AQ53: 0 | AR53: 0 | AS53: 0 | AU53: -0.002999999793 | AV53: 0 | AW53: 0 | AX53: 0 | AY53: -0.002999999793 | AZ53: -0.002999999793
A54: 47 | B54: 47 | C54: السعيد محمود حسن حسن | D54: مقاول | E54: مدينتى 6 | F54: عمارات B7 | G54: نجارة باب وشباك | I54: نظامى | J54: 0 | K54: 2015-12-31 | L54: 0 | M54: 871840 | N54: 0 | O54: 0 | P54: 0 | Q54: 0 | R54: 4360 | S54: 383600 | T54: 321584.15 | U54: 43592 | V54: 0 | W54: 0 | X54: 80080.28 | Y54: 1236 | Z54: 0 | AA54: 0 | AB54: 0 | AC54: 35095.44 | AD54: 0 | AF54: 0.24 | AG54: 2291.89 | AH54: 0 | AI54: 0 | AJ54: 0 | AK54: 2291.89 | AN54: 43592 | AO54: 0 | AP54: 22840 | AQ54: 0 | AR54: 0 | AS54: 20752 | AU54: 2291.89 | AV54: 2250 | AW54: 0 | AX54: 0 | AY54: 41.89 | AZ54: 41.89
A55: 48 | B55: 48 | C55: عبدالله محمد محمد جامع | D55: مقاول | E55: مدينتى 6 | F55: عمارات B7 | G55: ايجار دوبل كابينه | I55: متوقف | J55: 2 | K55: 2010-02-28 | L55: 0 | M55: 1611 | N55: 0 | O55: 0 | P55: 0 | Q55: 0 | R55: 33.02 | S55: 1500 | T55: 0 | U55: 0 | V55: 0 | W55: 0 | X55: 0 | Y55: 0 | Z55: 0 | AA55: 0 | AB55: 0 | AC55: 0 | AD55: 0 | AF55: 77.98 | AG55: 0 | AH55: 0 | AI55: 0 | AJ55: 0 | AK55: 0 | AN55: 0 | AO55: 0 | AP55: 0 | AQ55: 0 | AR55: 0 | AS55: 0 | AU55: 0 | AV55: 0 | AW55: 0 | AX55: 0 | AY55: 0 | AZ55: 0
A56: 49 | B56: 49 | C56: على احمد حسن حمد | D56: مقاول | E56: مدينتى 6 | F56: عمارات B7 | G56: ايجار لودر | I56: جارى | J56: 47 | K56: 2013-11-30 | L56: 0 | M56: 630807.5 | N56: 0 | O56: 0 | P56: 0 | Q56: 0 | R56: 12618.15 | S56: 219500 | T56: 387596 | U56: 0 | V56: 0 | W56: 0 | X56: 0 | Y56: 11062.87 | Z56: 0 | AA56: 0 | AB56: 0 | AC56: 0 | AD56: 0 | AF56: 30.48 | AG56: 0 | AH56: 0 | AI56: 0 | AJ56: 0 | AK56: 0 | AN56: 0 | AO56: 0 | AP56: 0 | AQ56: 0 | AR56: 0 | AS56: 0 | AU56: 0 | AV56: 0 | AW56: 0 | AX56: 0 | AY56: 0 | AZ56: 0
A57: 50 | B57: 50 | C57: السيد عبدالرحمن محمد حسين | D57: مقاول | E57: مدينتى 6 | F57: عمارات B7 | G57: ايجار حفار + لودر | I57: متوقف | J57: 28 | K57: 2012-11-30 | L57: 0 | M57: 280262.5 | N57: 0 | O57: 0 | P57: 0 | Q57: 0 | R57: 5605.65 | S57: 177300 | T57: 93256.85 | U57: 0 | V57: 0 | W57: 0 | X57: 0 | Y57: 4100 | Z57: 0 | AA57: 0 | AB57: 0 | AC57: 0 | AD57: 0 | AF57: 0 | AG57: 0 | AH57: 0 | AI57: 0 | AJ57: 0 | AK57: 0 | AN57: 0 | AO57: 0 | AP57: 0 | AQ57: 0 | AR57: 0 | AS57: 0 | AU57: 0 | AV57: 0 | AW57: 0 | AX57: 0 | AY57: 0 | AZ57: 0 | BA57: اقفال رصيد التامين مذكرة من الادارة المالية
A58: 51 | B58: 51 | C58: على محمد عبدالظاهر سعد | D58: مقاول | E58: مدينتى 6 | F58: عمارات B7 | G58: نجاره مسلحه | I58: ختامى | J58: 3 | K58: 2014-03-31 | L58: 0 | M58: 1414 | N58: 0 | O58: 0 | P58: 0 | Q58: 0 | R58: 7.47 | S58: 1219.55 | T58: 0 | U58: 70.7 | V58: 0 | W58: 0 | X58: 112.5 | Y58: 0 | Z58: 0 | AA58: 0 | AB58: 0 | AC58: 0 | AD58: 0 | AF58: 0 | AG58: 3.78 | AH58: 0 | AI58: 0 | AJ58: 0 | AK58: 3.78 | AN58: 70.7 | AO58: 0 | AP58: 0 | AQ58: 0 | AR58: 70.7 | AS58: 0 | AU58: 3.78 | AV58: 0 | AW58: 0 | AX58: 0 | AY58: 3.78 | AZ58: 3.78
A59: 52 | B59: 52 | C59: الجواد للمقاولات ( حسام عبدالجواد محمد ) | D59: مقاول | E59: مدينتى 6 | F59: عمارات B7 | G59: ايجار لودر | I59: متوقف | J59: 6 | K59: 2012-04-30 | L59: 0 | M59: 39950 | N59: 0 | O59: 0 | P59: 0 | Q59: 0 | R59: 800.2 | S59: 6000 | T59: 38000 | U59: 0 | V59: 0 | W59: 0 | X59: 0 | Y59: 0 | Z59: 0 | AA59: 0 | AB59: 0 | AC59: -5000 | AD59: 0 | AF59: 149.8 | AG59: 0 | AH59: 0 | AI59: 0 | AJ59: 0 | AK59: 0 | AN59: 0 | AO59: 0 | AP59: 0 | AQ59: 0 | AR59: 0 | AS59: 0 | AU59: 0 | AV59: 0 | AW59: 0 | AX59: 0 | AY59: 0 | AZ59: 0
A60: 53 | B60: 53 | C60: محمد فهمى ابوالحسن حسن | D60: مقاول | E60: مدينتى 6 | F60: عمارات B7 | G60: ايجار لودر | I60: متوقف | J60: 7 | K60: 2010-07-31 | L60: 0 | M60: 94300 | N60: 0 | O60: 0 | P60: 0 | Q60: 0 | R60: 1888 | S60: 28400 | T60: 64000 | U60: 0 | V60: 0 | W60: 0 | X60: 0 | Y60: 0 | Z60: 0 | AA60: 0 | AB60: 0 | AC60: 0 | AD60: 0 | AF60: 12 | AG60: 0 | AH60: 0 | AI60: 0 | AJ60: 0 | AK60: 0 | AN60: 0 | AO60: 0 | AP60: 0 | AQ60: 0 | AR60: 0 | AS60: 0 | AU60: 0 | AV60: 0 | AW60: 0 | AX60: 0 | AY60: 0 | AZ60: 0
A61: 54 | B61: 54 | C61: محمود رشدى شحاتة | D61: مقاول | E61: مدينتى 6 | F61: عمارات B7 | G61: نجاره مسلحه | I61: متوقف | J61: 14 | K61: 2011-04-30 | L61: 0 | M61: 470260 | N61: 0 | O61: 0 | P61: 0 | Q61: 0 | R61: 2353.3 | S61: 350500 | T61: 55000 | U61: 23513 | V61: 0 | W61: 0 | X61: 14390.3 | Y61: 24495.5 | Z61: 0 | AA61: 0 | AB61: 0 | AC61: 0 | AD61: 0 | AF61: 7.9 | AG61: 0 | AH61: 0 | AI61: 0 | AJ61: 0 | AK61: 0 | AN61: 23513 | AO61: 0 | AP61: 0 | AQ61: 0 | AR61: 0 | AS61: 23513 | AU61: 0 | AV61: 0 | AW61: 0 | AX61: 0 | AY61: 0 | AZ61: 0
A62: 55 | B62: 55 | C62: جمال محمد احمد بدرى | D62: مقاول | E62: مدينتى 6 | F62: عمارات B7 | G62: ايجار لودر | I62: متوقف | J62: 4 | K62: 2010-05-31 | L62: 0 | M62: 35000 | N62: 0 | O62: 0 | P62: 0 | Q62: 0 | R62: 701.6 | S62: 8500 | T62: 16500 | U62: 0 | V62: 0 | W62: 0 | X62: 0 | Y62: 0 | Z62: 0 | AA62: 0 | AB62: 0 | AC62: 0 | AD62: 0 | AF62: 0 | AG62: 9298.4 | AH62: 0 | AI62: 0 | AJ62: 0 | AK62: 9298.4 | AN62: 0 | AO62: 0 | AP62: 0 | AQ62: 0 | AR62: 0 | AS62: 0 | AU62: 9298.4 | AV62: 0 | AW62: 0 | AX62: 0 | AY62: 9298.4 | AZ62: 9298.4
A63: 56 | B63: 56 | C63: محمد عبدالعزيز ابوالفضل السيد | D63: مقاول | E63: مدينتى 6 | F63: عمارات B7 | G63: ايجار دوبل كابينه | I63: متوقف | J63: 3 | K63: 2010-04-30 | L63: 0 | M63: 10013 | N63: 0 | O63: 0 | P63: 0 | Q63: 0 | R63: 201.46 | S63: 9811.54 | T63: 0 | U63: 0 | V63: 0 | W63: 0 | X63: 0 | Y63: 0 | Z63: 0 | AA63: 0 | AB63: 0 | AC63: 0 | AD63: 0 | AF63: 0 | AG63: 0 | AH63: 0 | AI63: 0 | AJ63: 0 | AK63: 0 | AN63: 0 | AO63: 0 | AP63: 0 | AQ63: 0 | AR63: 0 | AS63: 0 | AU63: 0 | AV63: 0 | AW63: 0 | AX63: 0 | AY63: 0 | AZ63: 0
A64: 57 | B64: 57 | C64: شعبان شعبان عبدالله نصار | D64: مقاول | E64: مدينتى 6 | F64: مركزية | G64: ايجار ميكروباص | I64: متوقف | J64: 3 | K64: 2010-04-30 | L64: 0 | M64: 19140 | N64: 0 | O64: 0 | P64: 0 | Q64: 0 | R64: 384 | S64: 18756 | T64: 0 | U64: 0 | V64: 0 | W64: 0 | X64: 0 | Y64: 0 | Z64: 0 | AA64: 0 | AB64: 0 | AC64: 0 | AD64: 0 | AF64: 0 | AG64: 0 | AH64: 0 | AI64: 0 | AJ64: 0 | AK64: 0 | AN64: 0 | AO64: 0 | AP64: 0 | AQ64: 0 | AR64: 0 | AS64: 0 | AU64: 0 | AV64: 0 | AW64: 0 | AX64: 0 | AY64: 0 | AZ64: 0
A65: 58 | B65: 58 | C65: السيد سليمان محمد حفنى | D65: مقاول | E65: مدينتى 6 | F65: مركزية | G65: ايجار اتوبيس | I65: متوقف | J65: 4 | K65: 2010-05-31 | L65: 0 | M65: 29460 | N65: 0 | O65: 0 | P65: 0 | Q65: 0 | R65: 590.8 | S65: 18769.2 | T65: 10000 | U65: 0 | V65: 0 | W65: 0 | X65: 0 | Y65: 100 | Z65: 0 | AA65: 0 | AB65: 0 | AC65: 0 | AD65: 0 | AF65: 0 | AG65: 0 | AH65: 0 | AI65: 0 | AJ65: 0 | AK65: 0 | AN65: 0 | AO65: 0 | AP65: 0 | AQ65: 0 | AR65: 0 | AS65: 0 | AU65: 0 | AV65: 0 | AW65: 0 | AX65: 0 | AY65: 0 | AZ65: 0
A66: 59 | B66: 59 | C66: عبدالصادق مجاهد قرشم | D66: مقاول | E66: مدينتى 6 | F66: عمارات B7 | G66: ايجار جرار ومقطورة | I66: متوقف | J66: 2 | K66: 2010-03-31 | L66: 0 | M66: 2425 | N66: 0 | O66: 0 | P66: 0 | Q66: 0 | R66: 49.3 | S66: 2375.7 | T66: 0 | U66: 0 | V66: 0 | W66: 0 | X66: 0 | Y66: 0 | Z66: 0 | AA66: 0 | AB66: 0 | AC66: 0 | AD66: 0 | AF66: 0 | AG66: 0 | AH66: 0 | AI66: 0 | AJ66: 0 | AK66: 0 | AN66: 0 | AO66: 0 | AP66: 0 | AQ66: 0 | AR66: 0 | AS66: 0 | AU66: 0 | AV66: 0 | AW66: 0 | AX66: 0 | AY66: 0 | AZ66: 0
A67: 60 | B67: 60 | C67: العربى لتأجير المعدات (خالد محمد عبد الكريم) | D67: مقاول | E67: مدينتى 6 | F67: عمارات B7 | G67: ايجار ونش | I67: متوقف | J67: 4 | K67: 2010-05-31 | L67: 0 | M67: 127750 | N67: 0 | O67: 0 | P67: 0 | Q67: 0 | R67: 2556.6 | S67: 41193.4 | T67: 84000 | U67: 0 | V67: 0 | W67: 0 | X67: 0 | Y67: 0 | Z67: 0 | AA67: 0 | AB67: 0 | AC67: 0 | AD67: 0 | AF67: 0 | AG67: 0 | AH67: 0 | AI67: 0 | AJ67: 0 | AK67: 0 | AN67: 0 | AO67: 0 | AP67: 0 | AQ67: 0 | AR67: 0 | AS67: 0 | AU67: 0 | AV67: 0 | AW67: 0 | AX67: 0 | AY67: 0 | AZ67: 0
A68: 61 | B68: 61 | C68: يوسف محمد ابراهيم جبريل | D68: مقاول | E68: مدينتى 6 | F68: عمارات B7 | G68: ايجار دوبل كابينه | I68: متوقف | J68: 1 | K68: 2010-02-28 | L68: 0 | M68: 2600 | N68: 0 | O68: 0 | P68: 0 | Q68: 0 | R68: 52.4 | S68: 2500 | T68: 0 | U68: 0 | V68: 0 | W68: 0 | X68: 0 | Y68: 0 | Z68: 0 | AA68: 0 | AB68: 0 | AC68: 0 | AD68: 0 | AF68: 47.6 | AG68: 0 | AH68: 0 | AI68: 0 | AJ68: 0 | AK68: 0 | AN68: 0 | AO68: 0 | AP68: 0 | AQ68: 0 | AR68: 0 | AS68: 0 | AU68: 0 | AV68: 0 | AW68: 0 | AX68: 0 | AY68: 0 | AZ68: 0 | BA68: اقفال الرصيد مذكرة من الادارة المالية
A69: 62 | B69: 62 | C69: ابراهيم حمدى عبدالرحمن | D69: مقاول | E69: مدينتى 6 | F69: عمارات B7 | G69: نجاره مسلحه | I69: ختامى | J69: 24 | K69: 2014-03-31 | L69: 0 | M69: 1601736.15 | N69: 0 | O69: 0 | P69: 0 | Q69: 0 | R69: 8010.28075 | S69: 1080000 | T69: 230000 | U69: 80086.8075 | V69: 0 | W69: 0 | X69: 50577 | Y69: 150412.08 | Z69: 0 | AA69: 0 | AB69: 0 | AC69: 2500 | AD69: 0 | AF69: 149.98175 | AG69: 0 | AH69: 0 | AI69: 0 | AJ69: 0 | AK69: 0 | AN69: 80086.8075 | AO69: 40086.81 | AP69: 40000 | AQ69: 0 | AR69: 0 | AS69: -0.002499999973 | AU69: 0 | AV69: 0 | AW69: 0 | AX69: 0 | AY69: 0 | AZ69: 0
A70: 63 | B70: 63 | C70: ايمن صالح عليان قنديل | D70: مقاول | E70: مدينتى 6 | F70: عمارات B7 | G70: حفر وردم | I70: متوقف | J70: 10 | K70: 2011-05-31 | L70: 0 | M70: 1070877.17 | N70: 0 | O70: 0 | P70: 0 | Q70: 0 | R70: 5441.6846 | S70: 515000 | T70: 477000 | U70: 53256.876 | V70: 0 | W70: 0 | X70: 0 | Y70: 19760.78 | Z70: 0 | AA70: 0 | AB70: 417.83 | AC70: 0 | AD70: 0 | AF70: 0 | AG70: -0.0006000001449 | AH70: 0 | AI70: 0 | AJ70: 0 | AK70: -0.0006000001449 | AN70: 53256.876 | AO70: 0 | AP70: 0 | AQ70: 37895.83 | AR70: 0 | AS70: 15361.046 | AU70: -0.0006000000704 | AV70: 0 | AW70: 0 | AX70: 0 | AY70: -0.0006000000704 | AZ70: -0.0006000000704
A71: 64 | B71: 64 | C71: خالد حامد محمد عبدالله | D71: مقاول | E71: مدينتى 6 | F71: عمارات B7 | G71: سيراميك | I71: ختامى | J71: 7 | K71: 2015-08-31 | L71: 0 | M71: 57657.38 | N71: 0 | O71: 0 | P71: 0 | Q71: 0 | R71: 289.0869 | S71: 51500 | T71: 4109.88 | U71: 2882.9 | V71: 0 | W71: 0 | X71: 0 | Y71: 620 | Z71: 0 | AA71: 0 | AB71: 0 | AC71: -1744.45 | AD71: 0 | AF71: -0.01 | AG71: -0.0269 | AH71: 0 | AI71: 0 | AJ71: 0 | AK71: -0.0269 | AN71: 2882.9 | AO71: 0 | AP71: 0 | AQ71: 0 | AR71: 2882.9 | AS71: 0 | AU71: -0.0269 | AV71: 0 | AW71: 0 | AX71: 0 | AY71: -0.0269 | AZ71: -0.0269
A72: 65 | B72: 65 | C72: عبدالحليم عبدالحافظ عبدالله | D72: مقاول | E72: مدينتى 6 | F72: مركزية | G72: دهانات | I72: ختامى | J72: 8 | K72: 2014-03-31 | L72: 0 | M72: 60639.58 | N72: 0 | O72: 0 | P72: 0 | Q72: 0 | R72: 304.3979 | S72: 57000 | T72: 183.69 | U72: 3031.979 | V72: 0 | W72: 0 | X72: 0 | Y72: 19.5 | Z72: 0 | AA72: 0 | AB72: 100 | AC72: 0 | AD72: 0 | AF72: 0.01 | AG72: 0.003099999994 | AH72: 0 | AI72: 0 | AJ72: 0 | AK72: 0.003099999994 | AN72: =+U72 -> 3031.979 | AO72: 0 | AP72: 0 | AQ72: 0 | AR72: 0 | AS72: 3031.979 | AU72: 0.003099999994 | AV72: 0 | AW72: 0 | AX72: 0 | AY72: =AU72-AW72-AV72-AX72 -> 0.003099999994 | AZ72: =AY72+AJ72 -> 0.003099999994
A73: 66 | B73: 66 | C73: ابراهيم فتحى سالم صالح | D73: مقاول | E73: مدينتى 6 | F73: عمارات B7 | G73: عماله | I73: جارى | J73: 35 | K73: 2013-07-31 | L73: 0 | M73: 951063.5 | N73: 0 | O73: 0 | P73: 0 | Q73: 0 | R73: 4756.9175 | S73: 596000 | T73: 319000 | U73: 0 | V73: 0 | W73: 0 | X73: 0 | Y73: 11953.5 | Z73: 0 | AA73: 0 | AB73: 13300 | AC73: 5975.9 | AD73: 0 | AF73: 77.23 | AG73: =(M73-R73-SUM(S73:AF73))+AD73 -> -0.04749999999 | AH73: 0 | AI73: 0 | AJ73: 0 | AK73: =AJ73+AG73 -> -0.04749999999 | AN73: 0 | AO73: 0 | AP73: 0 | AQ73: 0 | AR73: 0 | AS73: =+AN73-AO73-AP73-AQ73-AR73 -> 0 | AU73: -0.04749999999 | AV73: 0 | AW73: 0 | AX73: 0 | AY73: -0.04749999999 | AZ73: -0.04749999999
A74: 67 | B74: 67 | C74: عبدالعظيم عبداللطيف مصطفى سيد | D74: مقاول | E74: مدينتى 6 | F74: عمارات B7 | G74: عماله | I74: متوقف | J74: 3 | K74: 2010-05-31 | L74: 0 | M74: 29338 | N74: 0 | O74: 0 | P74: 0 | Q74: 0 | R74: 147.89 | S74: 29000 | T74: 0 | U74: 0 | V74: 0 | W74: 0 | X74: 0 | Y74: 0 | Z74: 0 | AA74: 0 | AB74: 0 | AC74: 0 | AD74: 0 | AF74: 190.1 | AG74: 0.01 | AH74: 0 | AI74: 0 | AJ74: 0 | AK74: 0.01 | AN74: 0 | AO74: 0 | AP74: 0 | AQ74: 0 | AR74: 0 | AS74: 0 | AU74: 0.01 | AV74: 0 | AW74: 0 | AX74: 0 | AY74: 0.01 | AZ74: 0.01
A75: 68 | B75: 68 | C75: عبدالحليم محمد عبدالحليم | D75: مقاول | E75: مدينتى 6 | F75: عمارات B7 | G75: حداده | I75: ختامى | J75: 5 | K75: 2014-03-31 | L75: 0 | M75: 45398 | N75: 0 | O75: 0 | P75: 0 | Q75: 0 | R75: 228.59 | S75: 40500 | T75: 0 | U75: 2269.9 | V75: 0 | W75: 0 | X75: 1170 | Y75: 1000 | Z75: 0 | AA75: 0 | AB75: 0 | AC75: 0 | AD75: 0 | AF75: 229.51 | AG75: 0 | AH75: 0 | AI75: 0 | AJ75: 0 | AK75: 0 | AN75: 2269.9 | AO75: 0 | AP75: 0 | AQ75: 0 | AR75: 2269.9 | AS75: 0 | AU75: 0 | AV75: 0 | AW75: 0 | AX75: 0 | AY75: 0 | AZ75: 0
A76: 69 | B76: 69 | C76: حشمت يوسف محمد يوسف | D76: مقاول | E76: مدينتى 6 | F76: عمارات B7 | G76: نجاره مسلحه | I76: ختامى | J76: 5 | K76: 2014-03-31 | L76: 0 | M76: 10809.3 | N76: 0 | O76: 0 | P76: 0 | Q76: 0 | R76: 55.2465 | S76: 3000 | T76: 0 | U76: 540.465 | V76: 0 | W76: 0 | X76: 795 | Y76: 6343.25 | Z76: 0 | AA76: 0 | AB76: 0 | AC76: 0 | AD76: 0 | AF76: 75.34 | AG76: -0.0015 | AH76: 0 | AI76: 0 | AJ76: 0 | AK76: -0.0015 | AN76: 540.465 | AO76: 0 | AP76: 0 | AQ76: 0 | AR76: 540.47 | AS76: -0.005 | AU76: -0.0015 | AV76: 0 | AW76: 0 | AX76: 0 | AY76: -0.0015 | AZ76: -0.0015
A77: 70 | B77: 70 | C77: كامل غيط احمد حسن | D77: مقاول | E77: مدينتى 6 | F77: عمارات B7 | G77: صب خرسانه | I77: متوقف | J77: 1 | K77: 2010-03-31 | L77: 0 | M77: 864 | N77: 0 | O77: 0 | P77: 0 | Q77: 0 | R77: 4.72 | S77: 800 | T77: 0 | U77: 43.2 | V77: 0 | W77: 0 | X77: 0 | Y77: 0 | Z77: 0 | AA77: 0 | AB77: 0 | AC77: 0 | AD77: 0 | AF77: 16.08 | AG77: 0 | AH77: 0 | AI77: 0 | AJ77: 0 | AK77: 0 | AN77: 43.2 | AO77: 0 | AP77: 0 | AQ77: 0 | AR77: 43.2 | AS77: 0 | AU77: 0 | AV77: 0 | AW77: 0 | AX77: 0 | AY77: 0 | AZ77: 0
A78: 71 | B78: 71 | C78: عطية محمود جاد عبدالقادر | D78: مقاول | E78: مدينتى 6 | F78: عمارات B7 | G78: مبانى | I78: ختامى | J78: 2 | K78: 2014-03-31 | L78: 0 | M78: 4030 | N78: 0 | O78: 0 | P78: 0 | Q78: 0 | R78: 20.55 | S78: 3500 | T78: 0 | U78: 201.5 | V78: 0 | W78: 0 | X78: 0 | Y78: 0 | Z78: 0 | AA78: 0 | AB78: 0 | AC78: 0 | AD78: 0 | AF78: 307.95 | AG78: 0 | AH78: 0 | AI78: 0 | AJ78: 0 | AK78: 0 | AN78: 201.5 | AO78: 0 | AP78: 0 | AQ78: 0 | AR78: 201.5 | AS78: 0 | AU78: 0 | AV78: 0 | AW78: 0 | AX78: 0 | AY78: 0 | AZ78: 0
A79: 72 | B79: 72 | C79: مهاود عياده يوسف | D79: مقاول | E79: مدينتى 6 | F79: عمارات B7 | G79: نجاره مسلحه | I79: متوقف | J79: 0 | K79: 2010-12-31 | L79: 0 | M79: 0 | N79: 0 | O79: 0 | P79: 0 | Q79: 0 | R79: 0 | S79: 7000 | T79: 0 | U79: 0 | V79: 0 | W79: 0 | X79: 0 | Y79: 0 | Z79: 0 | AA79: 0 | AB79: 0 | AC79: -7000 | AD79: 0 | AF79: 0 | AG79: 0 | AH79: 0 | AI79: 0 | AJ79: 0 | AK79: 0 | AN79: 0 | AO79: 0 | AP79: 0 | AQ79: 0 | AR79: 0 | AS79: 0 | AU79: 0 | AV79: 0 | AW79: 0 | AX79: 0 | AY79: 0 | AZ79: 0
A80: 73 | B80: 73 | C80: شركة سيلفر للاستيراد والتجارة (خالد فايد) | D80: مقاول | E80: مدينتى 6 | F80: عمارات B7 | G80: تصوير | I80: متوقف | J80: 16 | K80: 2012-10-31 | L80: 0 | M80: 203478.07 | N80: 0 | O80: 0 | P80: 0 | Q80: 0 | R80: 1017.79035 | S80: 120900 | T80: 30000 | U80: 10173.9035 | V80: 0 | W80: 0 | X80: 0 | Y80: 35852.74 | Z80: 0 | AA80: 0 | AB80: 0 | AC80: 5447.48 | AD80: 0 | AF80: 86.15615 | AG80: 0 | AH80: 0 | AI80: 0 | AJ80: 0 | AK80: 0 | AN80: 10173.9035 | AO80: 10173.9 | AP80: 0 | AQ80: 0 | AR80: 0 | AS80: 0.003499999999 | AU80: 0 | AV80: 0 | AW80: 0 | AX80: 0 | AY80: 0 | AZ80: 0
A81: 74 | B81: 74 | C81: ممتاز سيد محمود محمد | D81: مقاول | E81: مدينتى 6 | F81: عمارات B7 | G81: ايجار كلارك | I81: جارى | J81: 56 | K81: 2014-09-15 | L81: 0 | M81: 480918.75 | N81: 0 | O81: 0 | P81: 0 | Q81: 0 | R81: 9619.975 | S81: 265650 | T81: 201164.25 | U81: 0 | V81: 0 | W81: 0 | X81: 224.25 | Y81: 2718.75 | Z81: 0 | AA81: 0 | AB81: 0 | AC81: 1500 | AD81: 0 | AF81: 41.52 | AG81: 0.005000000005 | AH81: 0 | AI81: 0 | AJ81: 0 | AK81: 0.005000000005 | AN81: 0 | AO81: 0 | AP81: 0 | AQ81: 0 | AR81: 0 | AS81: 0 | AU81: 0.005000000005 | AV81: 0 | AW81: 0 | AX81: 0 | AY81: 0.005000000005 | AZ81: 0.005000000005
A82: 75 | B82: 75 | C82: عبدالخالق جمال احمد عبدالخالق | D82: مقاول | E82: مدينتى 6 | F82: مركزية | G82: ايجار ميكروباص | I82: متوقف | J82: 4 | K82: 2010-05-31 | L82: 0 | M82: 16250 | N82: 0 | O82: 0 | P82: 0 | Q82: 0 | R82: 326.6 | S82: 15923.4 | T82: 0 | U82: 0 | V82: 0 | W82: 0 | X82: 0 | Y82: 0 | Z82: 0 | AA82: 0 | AB82: 0 | AC82: 0 | AD82: 0 | AF82: 0 | AG82: 0 | AH82: 0 | AI82: 0 | AJ82: 0 | AK82: 0 | AN82: 0 | AO82: 0 | AP82: 0 | AQ82: 0 | AR82: 0 | AS82: 0 | AU82: 0 | AV82: 0 | AW82: 0 | AX82: 0 | AY82: 0 | AZ82: 0
A83: 76 | B83: 76 | C83: أشرف ناجى عطية قطب | D83: مقاول | E83: مدينتى 6 | F83: مرافق B7 | G83: ايجار دبابه | I83: متوقف | J83: 2 | K83: 2010-03-31 | L83: 0 | M83: 3240 | N83: 0 | O83: 0 | P83: 0 | Q83: 0 | R83: 65.6 | S83: 2500 | T83: 0 | U83: 0 | V83: 0 | W83: 0 | X83: 0 | Y83: 0 | Z83: 0 | AA83: 0 | AB83: 0 | AC83: 674.4 | AD83: 0 | AF83: 0 | AG83: 0 | AH83: 0 | AI83: 0 | AJ83: 0 | AK83: 0 | AN83: 0 | AO83: 0 | AP83: 0 | AQ83: 0 | AR83: 0 | AS83: 0 | AU83: 0 | AV83: 0 | AW83: 0 | AX83: 0 | AY83: 0 | AZ83: 0
A84: 77 | B84: 77 | C84: عبدالفتاح كامل عبدالمالك احمد | D84: مقاول | E84: مدينتى 6 | F84: عمارات B7 | G84: صب خرسانه | I84: متوقف | J84: 7 | K84: 2010-12-31 | L84: 0 | M84: 37801.8 | N84: 0 | O84: 0 | P84: 0 | Q84: 0 | R84: 190.609 | S84: 9000 | T84: 25000 | U84: 1890.08 | V84: 0 | W84: 0 | X84: 0 | Y84: 1681.5 | Z84: 0 | AA84: 0 | AB84: 0 | AC84: 0 | AD84: 0 | AF84: 39.601 | AG84: 0.009999999995 | AH84: 0 | AI84: 0 | AJ84: 0 | AK84: 0.009999999995 | AN84: 1890.08 | AO84: 0 | AP84: 0 | AQ84: 0 | AR84: 1890.08 | AS84: 0 | AU84: 0.009999999995 | AV84: 0 | AW84: 0 | AX84: 0 | AY84: 0.009999999995 | AZ84: 0.009999999995
A85: 78 | B85: 78 | C85: اسماعيل عبدالموجود كامل | D85: مقاول | E85: مدينتى 6 | F85: عمارات B7 | G85: صب خرسانه | I85: ختامى | J85: 6 | K85: 2014-03-31 | L85: 0 | M85: 16362 | N85: 0 | O85: 0 | P85: 0 | Q85: 0 | R85: 83.01 | S85: 8500 | T85: 5000 | U85: 818.1 | V85: 0 | W85: 0 | X85: 0 | Y85: 3637.5 | Z85: 0 | AA85: 0 | AB85: 0 | AC85: -1676.61 | AD85: 0 | AF85: 0 | AG85: 1.818989404e-12 | AH85: 0 | AI85: 0 | AJ85: 0 | AK85: 1.818989404e-12 | AN85: 818.1 | AO85: 0 | AP85: 0 | AQ85: 0 | AR85: 818.11 | AS85: -0.01 | AU85: 1.818989404e-12 | AV85: 0 | AW85: 0 | AX85: 0 | AY85: 1.818989404e-12 | AZ85: 1.818989404e-12
A86: 79 | B86: 79 | C86: صبرى عبدالنبى بكرى ابوطالب | D86: مقاول | E86: مدينتى 6 | F86: عمارات B7 | G86: حداده | I86: ختامى | J86: 12 | K86: 2013-03-31 | L86: 0 | M86: 123917.54 | N86: 0 | O86: 0 | P86: 0 | Q86: 0 | R86: 620.7877 | S86: 92000 | T86: 15000 | U86: 6195.877 | V86: 0 | W86: 0 | X86: 4536.25 | Y86: 4940 | Z86: 0 | AA86: 0 | AB86: 0 | AC86: 0 | AD86: 0 | AF86: 624.61 | AG86: 0.0153 | AH86: 0 | AI86: 0 | AJ86: 0 | AK86: 0.0153 | AN86: 6195.877 | AO86: 0 | AP86: 0 | AQ86: 0 | AR86: 0 | AS86: 6195.877 | AU86: 0.0153 | AV86: 0 | AW86: 0 | AX86: 0 | AY86: 0.0153 | AZ86: 0.0153
A87: 80 | B87: 80 | C87: محمد محمد عبدالعزيز ابوالسعود | D87: مقاول | E87: مدينتى 6 | F87: عمارات B7 | G87: ايجار شاسيه | I87: متوقف | J87: 2 | K87: 2010-04-30 | L87: 0 | M87: 4156.5 | N87: 0 | O87: 0 | P87: 0 | Q87: 0 | R87: 83.93 | S87: 4050 | T87: 0 | U87: 0 | V87: 0 | W87: 0 | X87: 0 | Y87: 0 | Z87: 0 | AA87: 0 | AB87: 0 | AC87: 0 | AD87: 0 | AF87: 22.57 | AG87: 0 | AH87: 0 | AI87: 0 | AJ87: 0 | AK87: 0 | AN87: 0 | AO87: 0 | AP87: 0 | AQ87: 0 | AR87: 0 | AS87: 0 | AU87: 0 | AV87: 0 | AW87: 0 | AX87: 0 | AY87: 0 | AZ87: 0 | BA87: اقفال رصيد التامين مذكرة من الادارة المالية
A88: 81 | B88: 81 | C88: احمد محمود عامر محمود | D88: مقاول | E88: مدينتى 6 | F88: عمارات B7 | G88: نجاره مسلحه | I88: ختامى | J88: 6 | K88: 2014-03-31 | L88: 0 | M88: 34604 | N88: 0 | O88: 0 | P88: 0 | Q88: 0 | R88: 174.22 | S88: 29000 | T88: 0 | U88: 1730.2 | V88: 0 | W88: 0 | X88: 1050 | Y88: 2092.5 | Z88: 0 | AA88: 0 | AB88: 0 | AC88: 0 | AD88: 0 | AF88: 557.07 | AG88: 0.01 | AH88: 0 | AI88: 0 | AJ88: 0 | AK88: 0.01 | AN88: 1730.2 | AO88: 0 | AP88: 0 | AQ88: 0 | AR88: 1730.2 | AS88: 0 | AU88: 0.01 | AV88: 0 | AW88: 0 | AX88: 0 | AY88: 0.01 | AZ88: 0.01 | BA88: اقفال رصيد التامين مذكرة من الادارة المالية
A89: 82 | B89: 82 | C89: حمدى عبدالوهاب محمد عبدالوهاب | D89: مقاول | E89: مدينتى 6 | F89: عمارات B7 | G89: حداده | I89: ختامى | J89: 6 | K89: 2014-03-31 | L89: 0 | M89: 29358.56 | N89: 0 | O89: 0 | P89: 0 | Q89: 0 | R89: 147.9928 | S89: 21000 | T89: 0 | U89: 1467.93 | V89: 0 | W89: 0 | X89: 6092.25 | Y89: 625 | Z89: 0 | AA89: 0 | AB89: 0 | AC89: 0 | AD89: 0 | AF89: 25.39 | AG89: -0.002799999998 | AH89: 0 | AI89: 0 | AJ89: 0 | AK89: -0.002799999998 | AN89: 1467.93 | AO89: 0 | AP89: 0 | AQ89: 0 | AR89: 1467.93 | AS89: 0 | AU89: -0.002799999998 | AV89: 0 | AW89: 0 | AX89: 0 | AY89: -0.002799999998 | AZ89: -0.002799999998
A90: 83 | B90: 83 | C90: عبدالله جودة عبدالله زيادة | D90: مقاول | E90: مدينتى 6 | F90: عمارات B7 | G90: ايجار ملاكى | I90: متوقف | J90: 11 | K90: 2011-01-31 | L90: 0 | M90: 28985 | N90: 0 | O90: 0 | P90: 0 | Q90: 0 | R90: 580.9 | S90: 24700 | T90: 0 | U90: 0 | V90: 0 | W90: 0 | X90: 0 | Y90: 2201 | Z90: 0 | AA90: 0 | AB90: 0 | AC90: 1500 | AD90: 0 | AF90: 3.1 | AG90: 0 | AH90: 0 | AI90: 0 | AJ90: 0 | AK90: 0 | AN90: 0 | AO90: 0 | AP90: 0 | AQ90: 0 | AR90: 0 | AS90: 0 | AU90: 0 | AV90: 0 | AW90: 0 | AX90: 0 | AY90: 0 | AZ90: 0
A91: 84 | B91: 84 | C91: عفيفى عبدالله عفيفى السماحى | D91: مقاول | E91: مدينتى 6 | F91: عمارات B7 | G91: ايجار دبابه | I91: متوقف | J91: 2 | K91: 2010-04-30 | L91: 0 | M91: 3845 | N91: 0 | O91: 0 | P91: 0 | Q91: 0 | R91: 77.7 | S91: 3767.3 | T91: 0 | U91: 0 | V91: 0 | W91: 0 | X91: 0 | Y91: 0 | Z91: 0 | AA91: 0 | AB91: 0 | AC91: 0 | AD91: 0 | AF91: 0 | AG91: 0 | AH91: 0 | AI91: 0 | AJ91: 0 | AK91: 0 | AN91: 0 | AO91: 0 | AP91: 0 | AQ91: 0 | AR91: 0 | AS91: 0 | AU91: 0 | AV91: 0 | AW91: 0 | AX91: 0 | AY91: 0 | AZ91: 0
A92: 85 | B92: 85 | C92: السيد السيد كامل السطوحى | D92: مقاول | E92: مدينتى 6 | F92: عمارات B7 | G92: حداده | I92: ختامى | J92: 35 | K92: 2014-12-31 | L92: 0 | M92: 8782414.8 | N92: 0 | O92: 0 | P92: 0 | Q92: 0 | R92: 43913.274 | S92: 3928500 | T92: 4250178.75 | U92: 439120.74 | V92: 0 | W92: 0 | X92: 20621 | Y92: 99363.5 | Z92: 0 | AA92: 0 | AB92: 0 | AC92: 717.47 | AD92: 0 | AF92: 0.07 | AG92: -0.004000000656 | AH92: 0 | AI92: 0 | AJ92: 0 | AK92: -0.004000000656 | AN92: 439120.74 | AO92: 224120 | AP92: 215000 | AQ92: 0 | AR92: 0 | AS92: 0.7400000002 | AU92: -0.004000000656 | AV92: 0 | AW92: 0 | AX92: 0 | AY92: -0.004000000656 | AZ92: -0.004000000656
A93: 86 | B93: 86 | C93: عصام السيد على حديوى | D93: مقاول | E93: مدينتى 6 | F93: عمارات B7 | G93: عماله | I93: متوقف | J93: 3 | K93: 2010-05-31 | L93: 0 | M93: 10740 | N93: 0 | O93: 0 | P93: 0 | Q93: 0 | R93: 54.9 | S93: 10500 | T93: 0 | U93: 0 | V93: 0 | W93: 0 | X93: 0 | Y93: 0 | Z93: 0 | AA93: 0 | AB93: 0 | AC93: 0 | AD93: 0 | AF93: 185.1 | AG93: 0 | AH93: 0 | AI93: 0 | AJ93: 0 | AK93: 0 | AN93: 0 | AO93: 0 | AP93: 0 | AQ93: 0 | AR93: 0 | AS93: 0 | AU93: 0 | AV93: 0 | AW93: 0 | AX93: 0 | AY93: 0 | AZ93: 0
A94: 87 | B94: 87 | C94: احمد فريد محمد ربيع | D94: مقاول | E94: مدينتى 6 | F94: عمارات B7 | G94: ايجار دبابه | I94: متوقف | J94: 25 | K94: 2012-03-31 | L94: 0 | M94: 59630 | N94: 0 | O94: 0 | P94: 0 | Q94: 0 | R94: 1193.8 | S94: 57640 | T94: 0 | U94: 0 | V94: 0 | W94: 0 | X94: 0 | Y94: -204 | Z94: 0 | AA94: 0 | AB94: 0 | AC94: 1000 | AD94: 0 | AF94: 0.2 | AG94: 0 | AH94: 0 | AI94: 0 | AJ94: 0 | AK94: 0 | AN94: 0 | AO94: 0 | AP94: 0 | AQ94: 0 | AR94: 0 | AS94: 0 | AU94: 0 | AV94: 0 | AW94: 0 | AX94: 0 | AY94: 0 | AZ94: 0
A95: 88 | B95: 88 | C95: احمد محمد ابراهيم بدر | D95: مقاول | E95: مدينتى 6 | F95: مرافق B7 | G95: ايجار حفار + لودر | I95: متوقف | J95: 4 | K95: 2010-10-31 | L95: 0 | M95: 20800 | N95: 0 | O95: 0 | P95: 0 | Q95: 0 | R95: 417.2 | S95: 26000 | T95: 1300 | U95: 0 | V95: 0 | W95: 0 | X95: 0 | Y95: 0 | Z95: 0 | AA95: 0 | AB95: 0 | AC95: -6917.2 | AD95: 0 | AF95: 0 | AG95: 0 | AH95: 0 | AI95: 0 | AJ95: 0 | AK95: 0 | AN95: 0 | AO95: 0 | AP95: 0 | AQ95: 0 | AR95: 0 | AS95: 0 | AU95: 0 | AV95: 0 | AW95: 0 | AX95: 0 | AY95: 0 | AZ95: 0
A96: 89 | B96: 89 | C96: رضوان السيد ابراهيم حسن | D96: مقاول | E96: مدينتى 6 | F96: عمارات B7 | G96: ايجار دوبل كابينه | I96: متوقف | J96: 2 | K96: 2010-04-30 | L96: 0 | M96: 2096 | N96: 0 | O96: 0 | P96: 0 | Q96: 0 | R96: 42.72 | S96: 1303.28 | T96: 0 | U96: 0 | V96: 0 | W96: 0 | X96: 0 | Y96: 0 | Z96: 0 | AA96: 0 | AB96: 0 | AC96: 750 | AD96: 0 | AF96: 0 | AG96: 4.547473509e-13 | AH96: 0 | AI96: 0 | AJ96: 0 | AK96: 4.547473509e-13 | AN96: 0 | AO96: 0 | AP96: 0 | AQ96: 0 | AR96: 0 | AS96: 0 | AU96: 4.547473509e-13 | AV96: 0 | AW96: 0 | AX96: 0 | AY96: 4.547473509e-13 | AZ96: 4.547473509e-13
A97: 90 | B97: 90 | C97: احمد هشام عبدالستارابراهيم (بولاية والده) | D97: مقاول | E97: مدينتى 6 | F97: عمارات B7 | G97: ايجار دبابه | I97: متوقف | J97: 13 | K97: 2011-09-30 | L97: 0 | M97: 35870 | N97: 0 | O97: 0 | P97: 0 | Q97: 0 | R97: 718.6 | S97: 35150 | T97: 0 | U97: 0 | V97: 0 | W97: 0 | X97: 0 | Y97: 0 | Z97: 0 | AA97: 0 | AB97: 0 | AC97: 0 | AD97: 0 | AF97: 1.4 | AG97: 0 | AH97: 0 | AI97: 0 | AJ97: 0 | AK97: 0 | AN97: 0 | AO97: 0 | AP97: 0 | AQ97: 0 | AR97: 0 | AS97: 0 | AU97: 0 | AV97: 0 | AW97: 0 | AX97: 0 | AY97: 0 | AZ97: 0
A98: 91 | B98: 91 | C98: واليد عبدالباسط السيد ابوعمر | D98: مقاول | E98: مدينتى 6 | F98: عمارات B7 | G98: ايجار جرار ومقطورة | I98: متوقف | J98: 21 | K98: 2012-08-31 | L98: 0 | M98: 42601.25 | N98: 0 | O98: 0 | P98: 0 | Q98: 0 | R98: 852.825 | S98: 40870 | T98: 0 | U98: 0 | V98: 0 | W98: 0 | X98: 0 | Y98: 377.12 | Z98: 0 | AA98: 0 | AB98: 0 | AC98: 500 | AD98: 0 | AF98: 1.305 | AG98: 0 | AH98: 0 | AI98: 0 | AJ98: 0 | AK98: 0 | AN98: 0 | AO98: 0 | AP98: 0 | AQ98: 0 | AR98: 0 | AS98: 0 | AU98: 0 | AV98: 0 | AW98: 0 | AX98: 0 | AY98: 0 | AZ98: 0
A99: 92 | B99: 92 | C99: عبدالمنعم اسماعيل عبده اسماعيل | D99: مقاول | E99: مدينتى 6 | F99: مرافق B7 | G99: ايجار دوبل كابينه | I99: جارى | J99: 37 | K99: 2013-03-31 | L99: 0 | M99: 132502 | N99: 0 | O99: 0 | P99: 0 | Q99: 0 | R99: 2651.24 | S99: 126147.51 | T99: 4000 | U99: 0 | V99: 0 | W99: 0 | X99: 0 | Y99: -296.75 | Z99: 0 | AA99: 0 | AB99: 0 | AC99: 0 | AD99: 0 | AF99: 0 | AG99: 0 | AH99: 0 | AI99: 0 | AJ99: 0 | AK99: 0 | AN99: 0 | AO99: 0 | AP99: 0 | AQ99: 0 | AR99: 0 | AS99: 0 | AU99: 0 | AV99: 0 | AW99: 0 | AX99: 0 | AY99: 0 | AZ99: 0
A100: 93 | B100: 93 | C100: على احمد حسن حمد | D100: مقاول | E100: مدينتى 6 | F100: مرافق B7 | G100: ايجار لودر | I100: متوقف | J100: 4 | K100: 2012-05-31 | L100: 0 | M100: 17250 | N100: 0 | O100: 0 | P100: 0 | Q100: 0 | R100: 345.8 | S100: 15000 | T100: 1904.2 | U100: 0 | V100: 0 | W100: 0 | X100: 0 | Y100: 0 | Z100: 0 | AA100: 0 | AB100: 0 | AC100: 0 | AD100: 0 | AF100: 0 | AG100: 0 | AH100: 0 | AI100: 0 | AJ100: 0 | AK100: 0 | AN100: 0 | AO100: 0 | AP100: 0 | AQ100: 0 | AR100: 0 | AS100: 0 | AU100: 0 | AV100: 0 | AW100: 0 | AX100: 0 | AY100: 0 | AZ100: 0
A101: 94 | B101: 94 | C101: حمدى عبدالرؤف ابراهيم ناصف | D101: مقاول | E101: مدينتى 6 | F101: مرافق B7 | G101: ايجار جرار ومقطورة | I101: متوقف | J101: 1 | K101: 2010-03-31 | L101: 0 | M101: 3065 | N101: 0 | O101: 0 | P101: 0 | Q101: 0 | R101: 61.7 | S101: 3000 | T101: 0 | U101: 0 | V101: 0 | W101: 0 | X101: 0 | Y101: 0 | Z101: 0 | AA101: 0 | AB101: 0 | AC101: 0 | AD101: 0 | AF101: 3.3 | AG101: 0 | AH101: 0 | AI101: 0 | AJ101: 0 | AK101: 0 | AN101: 0 | AO101: 0 | AP101: 0 | AQ101: 0 | AR101: 0 | AS101: 0 | AU101: 0 | AV101: 0 | AW101: 0 | AX101: 0 | AY101: 0 | AZ101: 0
A102: 95 | B102: 95 | C102: كمال محمود محمد عباس | D102: مقاول | E102: مدينتى 6 | F102: مرافق B7 | G102: شبكات الصرف والمياه والرى | I102: ختامى | J102: 38 | K102: 2022-12-31 | L102: 0 | M102: 419401.17 | N102: 0 | O102: 0 | P102: 0 | Q102: 0 | R102: 2315.92525 | S102: 331529.46 | T102: 60000 | U102: 20970.0585 | V102: 0 | W102: 0 | X102: 0 | Y102: 1135.5 | Z102: 0 | AA102: 0 | AB102: 4400 | AC102: -949.29 | AD102: 0 | AF102: -0.02 | AG102: -0.4637500001 | AH102: 0 | AI102: 0 | AJ102: 0 | AK102: -0.4637500001 | AN102: 20970.0585 | AO102: 0 | AP102: 0 | AQ102: 0 | AR102: 0 | AS102: 20970.0585 | AU102: -0.4637500001 | AV102: 0 | AW102: 0 | AX102: 0 | AY102: -0.4637500001 | AZ102: -0.4637500001
A103: 96 | B103: 96 | C103: عبدالفتاح كامل عبدالمالك احمد | D103: مقاول | E103: مدينتى 6 | F103: عينات فندق الفور سيزون | G103: صب خرسانه | I103: متوقف | J103: 3 | K103: 2010-05-31 | L103: 0 | M103: 552.71 | N103: 0 | O103: 0 | P103: 0 | Q103: 0 | R103: 3.96355 | S103: 500 | T103: 0 | U103: 27.6355 | V103: 0 | W103: 0 | X103: 0 | Y103: 0 | Z103: 0 | AA103: 0 | AB103: 0 | AC103: 0 | AD103: 0 | AF103: 21.11095 | AG103: 0 | AH103: 0 | AI103: 0 | AJ103: 0 | AK103: 0 | AN103: 27.6355 | AO103: 0 | AP103: 0 | AQ103: 0 | AR103: 27.64 | AS103: -0.0045 | AU103: 0 | AV103: 0 | AW103: 0 | AX103: 0 | AY103: 0 | AZ103: 0
A104: 97 | B104: 97 | C104: الجواد للمقاولات ( حسام عبدالجواد محمد ) | D104: مقاول | E104: مدينتى 6 | F104: مرافق B7 | G104: ايجار حفار + لودر | I104: متوقف | J104: 11 | K104: 2012-10-31 | L104: 0 | M104: 209512.5 | N104: 0 | O104: 0 | P104: 0 | Q104: 0 | R104: 4191.45 | S104: 39500 | T104: 150000 | U104: 0 | V104: 0 | W104: 0 | X104: 0 | Y104: 10368.6 | Z104: 0 | AA104: 0 | AB104: 0 | AC104: 5000 | AD104: 0 | AF104: 452.45 | AG104: -2.910383046e-11 | AH104: 0 | AI104: 0 | AJ104: 0 | AK104: -2.910383046e-11 | AN104: 0 | AO104: 0 | AP104: 0 | AQ104: 0 | AR104: 0 | AS104: 0 | AU104: -2.910383046e-11 | AV104: 0 | AW104: 0 | AX104: 0 | AY104: -2.910383046e-11 | AZ104: -2.910383046e-11
A105: 98 | B105: 98 | C105: هانى عبده فاروق محمد | D105: مقاول | E105: مدينتى 6 | F105: عمارات B7 | G105: عماله | I105: ختامى | J105: 23 | K105: 2014-03-31 | L105: 0 | M105: 381678 | N105: 0 | O105: 0 | P105: 0 | Q105: 0 | R105: 1909.59 | S105: 283550 | T105: 85000 | U105: 0 | V105: 0 | W105: 0 | X105: 356.15 | Y105: 4065 | Z105: 0 | AA105: 0 | AB105: 5750 | AC105: 1000 | AD105: 0 | AF105: 47.26 | AG105: -5.820766091e-11 | AH105: 0 | AI105: 0 | AJ105: 0 | AK105: -5.820766091e-11 | AN105: 0 | AO105: 0 | AP105: 0 | AQ105: 0 | AR105: 0 | AS105: 0 | AU105: -5.820766091e-11 | AV105: 0 | AW105: 0 | AX105: 0 | AY105: -5.820766091e-11 | AZ105: -5.820766091e-11
A106: 99 | B106: 99 | C106: اسماعيل عبدالموجود كامل | D106: مقاول | E106: مدينتى 6 | F106: عينات فندق الفور سيزون | G106: صب خرسانه | I106: ختامى | J106: 2 | K106: 2014-03-31 | L106: 0 | M106: 170.27 | N106: 0 | O106: 0 | P106: 0 | Q106: 0 | R106: 1.25135 | S106: 0 | T106: 160.51 | U106: 8.5135 | V106: 0 | W106: 0 | X106: 0 | Y106: 0 | Z106: 0 | AA106: 0 | AB106: 0 | AC106: 0 | AD106: 0 | AF106: 0 | AG106: -0.00485 | AH106: 0 | AI106: 0 | AJ106: 0 | AK106: -0.00485 | AN106: 8.5135 | AO106: 0 | AP106: 0 | AQ106: 0 | AR106: 8.51 | AS106: 0.0035 | AU106: -0.00485 | AV106: 0 | AW106: 0 | AX106: 0 | AY106: -0.00485 | AZ106: -0.00485
A107: 100 | B107: 100 | C107: شركة الشمس للمقاولات | D107: مقاول | E107: مدينتى 6 | F107: عمارات B7 | G107: تسويات | I107: متوقف | J107: 1 | K107: 2010-03-31 | L107: 0 | M107: 4728 | N107: 0 | O107: 0 | P107: 0 | Q107: 0 | R107: 24.04 | S107: -75000 | T107: 77830.1 | U107: 0 | V107: 0 | W107: 0 | X107: 0 | Y107: 0 | Z107: 0 | AA107: 0 | AB107: 0 | AC107: 0 | AD107: 0 | AF107: 1873.86 | AG107: -5.456968211e-12 | AH107: 0 | AI107: 0 | AJ107: 0 | AK107: -5.456968211e-12 | AN107: 0 | AO107: 0 | AP107: 0 | AQ107: 0 | AR107: 0 | AS107: 0 | AU107: -5.456968211e-12 | AV107: 0 | AW107: 0 | AX107: 0 | AY107: -5.456968211e-12 | AZ107: -5.456968211e-12
A108: 101 | B108: 101 | C108: طلعت محمد ابراهيم جعفر | D108: مقاول | E108: مدينتى 6 | F108: عمارات B7 | G108: ايجار شاسيه | I108: جارى | J108: 42 | K108: 2013-10-31 | L108: 0 | M108: 107975.5 | N108: 0 | O108: 0 | P108: 0 | Q108: 0 | R108: 2160.31 | S108: 101600 | T108: 3000 | U108: 0 | V108: 0 | W108: 0 | X108: 0 | Y108: 1212.44 | Z108: 0 | AA108: 0 | AB108: 0 | AC108: 0 | AD108: 0 | AF108: 0.01 | AG108: 2.74 | AH108: 0 | AI108: 0 | AJ108: 0 | AK108: 2.74 | AN108: 0 | AO108: 0 | AP108: 0 | AQ108: 0 | AR108: 0 | AS108: 0 | AU108: 2.74 | AV108: 0 | AW108: 0 | AX108: 0 | AY108: 2.74 | AZ108: 2.74
A109: 102 | B109: 102 | C109: هانى عبده فاروق محمد بولايه والده | D109: مقاول | E109: مدينتى 6 | F109: مركزية | G109: عماله | I109: متوقف | J109: 0 | K109: 2010-12-31 | L109: 0 | M109: 0 | N109: 0 | O109: 0 | P109: 0 | Q109: 0 | R109: 0 | S109: 1000 | T109: 0 | U109: 0 | V109: 0 | W109: 0 | X109: 0 | Y109: 0 | Z109: 0 | AA109: 0 | AB109: 0 | AC109: -1000 | AD109: 0 | AF109: 0 | AG109: 0 | AH109: 0 | AI109: 0 | AJ109: 0 | AK109: 0 | AN109: 0 | AO109: 0 | AP109: 0 | AQ109: 0 | AR109: 0 | AS109: 0 | AU109: 0 | AV109: 0 | AW109: 0 | AX109: 0 | AY109: 0 | AZ109: 0
A110: 103 | B110: 103 | C110: عبدالرحمن عبدالجيد سيد عبدالكريم | D110: مقاول | E110: مدينتى 6 | F110: عمارات B7 | G110: عماله | I110: متوقف | J110: 9 | K110: 2010-12-31 | L110: 0 | M110: 135195 | N110: 0 | O110: 0 | P110: 0 | Q110: 0 | R110: 676.775 | S110: 134500 | T110: 0 | U110: 0 | V110: 0 | W110: 0 | X110: 0 | Y110: 0 | Z110: 0 | AA110: 0 | AB110: 0 | AC110: 0 | AD110: 0 | AF110: 18.225 | AG110: 0 | AH110: 0 | AI110: 0 | AJ110: 0 | AK110: 0 | AN110: 0 | AO110: 0 | AP110: 0 | AQ110: 0 | AR110: 0 | AS110: 0 | AU110: 0 | AV110: 0 | AW110: 0 | AX110: 0 | AY110: 0 | AZ110: 0
A111: 104 | B111: 104 | C111: رضا محب محمود محمد | D111: مقاول | E111: مدينتى 6 | F111: عمارات B7 | G111: نجاره مسلحه | I111: ختامى | J111: 6 | K111: 2014-03-31 | L111: 0 | M111: 59571.66 | N111: 0 | O111: 0 | P111: 0 | Q111: 0 | R111: 298.6583 | S111: 64000 | T111: 0 | U111: 2978.58 | V111: 0 | W111: 0 | X111: 4491.5 | Y111: 3129.7 | Z111: 0 | AA111: 0 | AB111: 0 | AC111: -15353.95 | AD111: 0 | AF111: 27.17 | AG111: 0.001700000001 | AH111: 0 | AI111: 0 | AJ111: 0 | AK111: 0.001700000001 | AN111: 2978.58 | AO111: 0 | AP111: 0 | AQ111: 0 | AR111: 2978.58 | AS111: 0 | AU111: 0.001700000001 | AV111: 0 | AW111: 0 | AX111: 0 | AY111: 0.001700000001 | AZ111: 0.001700000001
A112: 105 | B112: 105 | C112: باسم محمد احمد الكومى | D112: مقاول | E112: مدينتى 6 | F112: عمارات B7 | G112: نجاره مسلحه | I112: ختامى | J112: 5 | K112: 2014-03-31 | L112: 0 | M112: 19112.77 | N112: 0 | O112: 0 | P112: 0 | Q112: 0 | R112: 96.36385 | S112: 16900 | T112: 0 | U112: 955.6385 | V112: 0 | W112: 0 | X112: 646.75 | Y112: 487.5 | Z112: 0 | AA112: 0 | AB112: 0 | AC112: 0 | AD112: 0 | AF112: 26.52 | AG112: -0.002350000002 | AH112: 0 | AI112: 0 | AJ112: 0 | AK112: -0.002350000002 | AN112: 955.6385 | AO112: 0 | AP112: 0 | AQ112: 0 | AR112: 955.64 | AS112: -0.0015 | AU112: -0.002350000002 | AV112: 0 | AW112: 0 | AX112: 0 | AY112: -0.002350000002 | AZ112: -0.002350000002
A113: 106 | B113: 106 | C113: خالد حامد محمد عبدالله | D113: مقاول | E113: مدينتى 6 | F113: عمارات B7 | G113: مبانى وبياض | I113: ختامى | J113: 48 | K113: 2014-08-31 | L113: 0 | M113: 35777566.05 | N113: 0 | O113: 0 | P113: 0 | Q113: 0 | R113: 178888.6288 | S113: 5846500 | T113: 8745547.76 | U113: 1788878.307 | V113: 0 | W113: 0 | X113: 18870203.47 | Y113: 303774.71 | Z113: 0 | AA113: 0 | AB113: 42800 | AC113: 973.08 | AD113: 0 | AF113: 0.09 | AG113: 0.003750003874 | AH113: 0 | AI113: 0 | AJ113: 0 | AK113: 0.003750003874 | AN113: 1788878.307 | AO113: 600000 | AP113: 1160546.18 | AQ113: 0 | AR113: 0 | AS113: 28332.1275 | AU113: 0.003750003874 | AV113: 0 | AW113: 0 | AX113: 0 | AY113: 0.003750003874 | AZ113: 0.003750003874
A114: 107 | B114: 107 | C114: عبدالهادى على عبدالوهاب | D114: مقاول | E114: مدينتى 6 | F114: مركزية | G114: كريتال | I114: متوقف | J114: 1 | K114: 2010-04-30 | L114: 0 | M114: 4998 | N114: 0 | O114: 0 | P114: 0 | Q114: 0 | R114: 24.99 | S114: 4500 | T114: 0 | U114: 249.9 | V114: 0 | W114: 0 | X114: 0 | Y114: 0 | Z114: 0 | AA114: 0 | AB114: 0 | AC114: 0 | AD114: 0 | AF114: 223.11 | AG114: 9.094947018e-13 | AH114: 0 | AI114: 0 | AJ114: 0 | AK114: 9.094947018e-13 | AN114: 249.9 | AO114: 0 | AP114: 0 | AQ114: 0 | AR114: 249.9 | AS114: 0 | AU114: 9.094947018e-13 | AV114: 0 | AW114: 0 | AX114: 0 | AY114: 9.094947018e-13 | AZ114: 9.094947018e-13
A115: 108 | B115: 108 | C115: شركة مصر ريموند للاساسات | D115: مقاول | E115: مدينتى 6 | F115: عمارات B7 | G115: اختبارات معمليه | I115: جارى | J115: 24 | K115: 2014-11-30 | L115: 0 | M115: 46750 | N115: 0 | O115: 0 | P115: 0 | Q115: 0 | R115: 929.4 | S115: 45825 | T115: 0 | U115: 0 | V115: 0 | W115: 0 | X115: 0 | Y115: 0 | Z115: 0 | AA115: 0 | AB115: 0 | AC115: 0 | AD115: 0 | AF115: -4.4 | AG115: 0 | AH115: 0 | AI115: 0 | AJ115: 0 | AK115: 0 | AN115: 0 | AO115: 0 | AP115: 0 | AQ115: 0 | AR115: 0 | AS115: 0 | AU115: 0 | AV115: 0 | AW115: 0 | AX115: 0 | AY115: 0 | AZ115: 0
A116: 109 | B116: 109 | C116: ابراهيم احمد محمد المقاول | D116: مقاول | E116: مدينتى 6 | F116: عمارات B7 | G116: ايجار دبابه | I116: متوقف | J116: 4 | K116: 2010-07-31 | L116: 0 | M116: 7190 | N116: 0 | O116: 0 | P116: 0 | Q116: 0 | R116: 144.6 | S116: 7045.4 | T116: 0 | U116: 0 | V116: 0 | W116: 0 | X116: 0 | Y116: 0 | Z116: 0 | AA116: 0 | AB116: 0 | AC116: 0 | AD116: 0 | AF116: 0 | AG116: 0 | AH116: 0 | AI116: 0 | AJ116: 0 | AK116: 0 | AN116: 0 | AO116: 0 | AP116: 0 | AQ116: 0 | AR116: 0 | AS116: 0 | AU116: 0 | AV116: 0 | AW116: 0 | AX116: 0 | AY116: 0 | AZ116: 0
A117: 110 | B117: 110 | C117: عبدالله ابراهيم احمد مطر | D117: مقاول | E117: مدينتى 6 | F117: عمارات B7 | G117: نجاره مسلحه | I117: ختامى | J117: 10 | K117: 2014-03-31 | L117: 0 | M117: 214267.65 | N117: 0 | O117: 0 | P117: 0 | Q117: 0 | R117: 1072.13825 | S117: 179000 | T117: 25000 | U117: 10713.3825 | V117: 0 | W117: 0 | X117: 0 | Y117: 6026.64 | Z117: 0 | AA117: 0 | AB117: 0 | AC117: -8000 | AD117: 0 | AF117: 455.82 | AG117: -0.33075 | AH117: 0 | AI117: 0 | AJ117: 0 | AK117: -0.33075 | AN117: 10713.3825 | AO117: 0 | AP117: 0 | AQ117: 0 | AR117: 0 | AS117: 10713.3825 | AU117: -0.33075 | AV117: 0 | AW117: 0 | AX117: 0 | AY117: -0.33075 | AZ117: -0.33075
A118: 111 | B118: 111 | C118: وحيد وجدى محمد | D118: مقاول | E118: مدينتى 6 | F118: عمارات B7 | G118: حداده | I118: ختامى | J118: 7 | K118: 2014-03-31 | L118: 0 | M118: 103135.42 | N118: 0 | O118: 0 | P118: 0 | Q118: 0 | R118: 516.4771 | S118: 86000 | T118: 0 | U118: 5156.771 | V118: 0 | W118: 0 | X118: 6865 | Y118: 4500 | Z118: 0 | AA118: 0 | AB118: 0 | AC118: 0 | AD118: 0 | AF118: 97.17 | AG118: 0.001900000003 | AH118: 0 | AI118: 0 | AJ118: 0 | AK118: 0.001900000003 | AN118: 5156.771 | AO118: 0 | AP118: 0 | AQ118: 0 | AR118: 0 | AS118: 5156.771 | AU118: 0.001900000003 | AV118: 0 | AW118: 0 | AX118: 0 | AY118: 0.001900000003 | AZ118: 0.001900000003
A119: 112 | B119: 112 | C119: عماد حمدى السيد محمد | D119: مقاول | E119: مدينتى 6 | F119: عمارات B7 | G119: حداده | I119: ختامى | J119: 5 | K119: 2014-03-31 | L119: 0 | M119: 11632 | N119: 0 | O119: 0 | P119: 0 | Q119: 0 | R119: 58.96 | S119: 6000 | T119: 0 | U119: 581.6 | V119: 0 | W119: 0 | X119: 4639 | Y119: 300 | Z119: 0 | AA119: 0 | AB119: 0 | AC119: 0 | AD119: 0 | AF119: 52.44 | AG119: 0 | AH119: 0 | AI119: 0 | AJ119: 0 | AK119: 0 | AN119: 581.6 | AO119: 0 | AP119: 0 | AQ119: 0 | AR119: 581.6 | AS119: 0 | AU119: 0 | AV119: 0 | AW119: 0 | AX119: 0 | AY119: 0 | AZ119: 0
A120: 113 | B120: 113 | C120: تاج الدين على محمد على | D120: مقاول | E120: مدينتى 6 | F120: عمارات B7 | G120: مقطوعيات | I120: ختامى | J120: 0 | K120: 2017-01-31 | L120: 0 | M120: 1314313.62 | N120: 0 | O120: 0 | P120: 0 | Q120: 0 | R120: 6571.9681 | S120: 506500 | T120: 697210.68 | U120: 65715.681 | V120: 0 | W120: 0 | X120: 8678.54 | Y120: 20995.86 | Z120: 0 | AA120: 0 | AB120: 0 | AC120: 8640.84 | AD120: 0 | AF120: 0.05 | AG120: 0.0008999994025 | AH120: 0 | AI120: 0 | AJ120: 0 | AK120: 0.0008999994025 | AN120: 65715.681 | AO120: 32965.68 | AP120: 32750 | AQ120: 0 | AR120: 0 | AS120: 0.0009999999966 | AU120: 0.0008999994025 | AV120: 0 | AW120: 0 | AX120: 0 | AY120: 0.0008999994025 | AZ120: 0.0008999994025
A121: 114 | B121: 114 | C121: حسن السيد حسن السيد الشحات | D121: مقاول | E121: مدينتى 6 | F121: عمارات B7 | G121: ايجار دبابه | I121: متوقف | J121: 1 | K121: 2010-04-30 | L121: 0 | M121: 1110 | N121: 0 | O121: 0 | P121: 0 | Q121: 0 | R121: 22.6 | S121: 1087.4 | T121: 0 | U121: 0 | V121: 0 | W121: 0 | X121: 0 | Y121: 0 | Z121: 0 | AA121: 0 | AB121: 0 | AC121: 0 | AD121: 0 | AF121: 0 | AG121: 0 | AH121: 0 | AI121: 0 | AJ121: 0 | AK121: 0 | AN121: 0 | AO121: 0 | AP121: 0 | AQ121: 0 | AR121: 0 | AS121: 0 | AU121: 0 | AV121: 0 | AW121: 0 | AX121: 0 | AY121: 0 | AZ121: 0 | BA121: اقفال رصيد التامين مذكرة من الادارة المالية
A122: 115 | B122: 115 | C122: حمدى ابوبكر محمود على | D122: مقاول | E122: مدينتى 6 | F122: عمارات B7 | G122: نجاره مسلحه | I122: ختامى | J122: 5 | K122: 2014-03-31 | L122: 0 | M122: 40160.2 | N122: 0 | O122: 0 | P122: 0 | Q122: 0 | R122: 201.201 | S122: 33000 | T122: 0 | U122: 2008.01 | V122: 0 | W122: 0 | X122: 3384.5 | Y122: 1540 | Z122: 0 | AA122: 0 | AB122: 0 | AC122: 0 | AD122: 0 | AF122: 26.49 | AG122: -0.001000000004 | AH122: 0 | AI122: 0 | AJ122: 0 | AK122: -0.001000000004 | AN122: 2008.01 | AO122: 0 | AP122: 0 | AQ122: 0 | AR122: 2008.01 | AS122: 0 | AU122: -0.001000000004 | AV122: 0 | AW122: 0 | AX122: 0 | AY122: -0.001000000004 | AZ122: -0.001000000004
A123: 116 | B123: 116 | C123: اشرف الحسينى صالح محمد | D123: مقاول | E123: مدينتى 6 | F123: عمارات B7 | G123: نجاره مسلحه | I123: ختامى | J123: 6 | K123: 2014-03-31 | L123: 0 | M123: 59739.5 | N123: 0 | O123: 0 | P123: 0 | Q123: 0 | R123: 299.0975 | S123: 48000 | T123: 0 | U123: 2986.98 | V123: 0 | W123: 0 | X123: 3847.35 | Y123: 4410.5 | Z123: 0 | AA123: 0 | AB123: 0 | AC123: 0 | AD123: 0 | AF123: 195.57 | AG123: 0.002499999995 | AH123: 0 | AI123: 0 | AJ123: 0 | AK123: 0.002499999995 | AN123: 2986.98 | AO123: 0 | AP123: 0 | AQ123: 0 | AR123: 2986.98 | AS123: 0 | AU123: 0.002499999995 | AV123: 0 | AW123: 0 | AX123: 0 | AY123: 0.002499999995 | AZ123: 0.002499999995
A124: 117 | B124: 117 | C124: رجب محمد شبل شديد | D124: مقاول | E124: مدينتى 6 | F124: عمارات B7 | G124: حداده | I124: ختامى | J124: 4 | K124: 2014-03-31 | L124: 0 | M124: 13305 | N124: 0 | O124: 0 | P124: 0 | Q124: 0 | R124: 67.325 | S124: 10000 | T124: 0 | U124: 665.25 | V124: 0 | W124: 0 | X124: 543.45 | Y124: 975 | Z124: 0 | AA124: 0 | AB124: 0 | AC124: 0 | AD124: 0 | AF124: 1053.97 | AG124: 0.004999999999 | AH124: 0 | AI124: 0 | AJ124: 0 | AK124: 0.004999999999 | AN124: 665.25 | AO124: 0 | AP124: 0 | AQ124: 0 | AR124: 665.25 | AS124: 0 | AU124: 0.004999999999 | AV124: 0 | AW124: 0 | AX124: 0 | AY124: 0.004999999999 | AZ124: 0.004999999999
A125: 118 | B125: 118 | C125: وائل فؤاد شاكر بليدى | D125: مقاول | E125: مدينتى 6 | F125: عمارات B7 | G125: حداده | I125: ختامى | J125: 4 | K125: 2014-03-31 | L125: 0 | M125: 14914 | N125: 0 | O125: 0 | P125: 0 | Q125: 0 | R125: 74.97 | S125: 11000 | T125: 0 | U125: 745.7 | V125: 0 | W125: 0 | X125: 948 | Y125: 1500 | Z125: 0 | AA125: 0 | AB125: 0 | AC125: 0 | AD125: 0 | AF125: 645.31 | AG125: 0.02 | AH125: 0 | AI125: 0 | AJ125: 0 | AK125: 0.02 | AN125: 745.7 | AO125: 0 | AP125: 0 | AQ125: 0 | AR125: 745.7 | AS125: 0 | AU125: 0.02 | AV125: 0 | AW125: 0 | AX125: 0 | AY125: 0.02 | AZ125: 0.02
L126: =SUBTOTAL(9,L8:L125) -> 0 | M126: 66177307.06 | N126: 0 | O126: 0 | P126: 0 | Q126: 0 | R126: =M126*0.01 -> 661773.0706 | S126: =SUBTOTAL(9,S8:S125) -> 21621241.59 | T126: =SUBTOTAL(9,T8:T125) -> 20855418.49 | U126: =M126*0.05 -> 3308865.353 | V126: =SUBTOTAL(9,V8:V125) -> 0 | W126: 0 | X126: 19288715.69 | Y126: 1071239.832 | Z126: 0 | AA126: 0 | AB126: 70282.83 | AC126: -65648.72 | AD126: 0 | AE126: 0 | AF126: 10879.1889 | AG126: 16046.37061 | AH126: =N126+O126+P126 -> 0 | AI126: =SUBTOTAL(9,AI8:AI125) -> 0 | AJ126: =AH126-AI126 -> 0 | AK126: =AJ126+AG126 -> 16046.37061 | AL126: =SUBTOTAL(9,AL8:AL125) -> 0 | AM126: =SUBTOTAL(9,AM8:AM125) -> 0 | AN126: =+U126 -> 3308865.353 | AO126: =SUBTOTAL(9,AO8:AO125) -> 996948.72 | AP126: =SUBTOTAL(9,AP8:AP125) -> 1551111.41 | AQ126: =SUBTOTAL(9,AQ8:AQ125) -> 50100.08 | AR126: =SUBTOTAL(9,AR8:AR125) -> 27617 | AS126: =+AN126-AO126-AP126-AQ126-AR126 -> 683088.143 | AT126: =SUBTOTAL(9,AT8:AT125) -> 0 | AU126: =AG126 -> 16046.37061 | AV126: =SUBTOTAL(9,AV8:AV125) -> 2250 | AW126: =SUBTOTAL(9,AW8:AW125) -> 0 | AX126: =SUBTOTAL(9,AX8:AX125) -> 0 | AY126: =AU126-AW126-AV126-AX126 -> 13796.37061 | AZ126: =AY126+AJ126-0.2015 -> 13796.16911
